Workbook

Sheet الرئيسيه
D1: =HYPERLINK("#'"&VLOOKUP(E1,G4:G6,1,0)&"'!A1","الذهــــــــــــاب الــــــــــــى") -> الذهــــــــــــاب الــــــــــــى | E1: التقرير
B2: كود | C2: الاجمالى الكلى | D2: =SUM(D4:D33) -> 2972 | E2: =SUM(E4:E33) -> 2972 | F2: 1
C3: اسم الحساب / صاحب العهدة | D3: ارصدة العهد الحالية | E3: ارصدة العهد اول المده | F3: 2
B4: =IF(C4="","",COUNTA($B$2:B3)) -> 1 | C4: موظف 1 | D4: =IF(E4+SUMPRODUCT(--(B4=الادخال!$D$5:$D$1005),--(الادخال!$G$5:$G$1005)-(الادخال!$H$5:$H$1005+الادخال!$I$5:$I$1005)),E4+SUMPRODUCT(--(B4=الادخال!$D$5:$D$1005),--(الادخال!$G$5:$G$1005)-(الادخال!$H$5:$H$1005+الادخال!$I$5:$I$1005)),"") ->  | F4: =F$2 -> 1 | G4: الرئيسيه
B5: =IF(C5="","",COUNTA($B$2:B4)) -> 2 | C5: موظف 2 | D5: =IF(E5+SUMPRODUCT(--(B5=الادخال!$D$5:$D$1005),--(الادخال!$G$5:$G$1005)-(الادخال!$H$5:$H$1005+الادخال!$I$5:$I$1005)),E5+SUMPRODUCT(--(B5=الادخال!$D$5:$D$1005),--(الادخال!$G$5:$G$1005)-(الادخال!$H$5:$H$1005+الادخال!$I$5:$I$1005)),"") ->  | F5: =F$3 -> 2 | G5: الادخال
B6: =IF(C6="","",COUNTA($B$2:B5)) -> 3 | C6: موظف 3 | D6: =IF(E6+SUMPRODUCT(--(B6=الادخال!$D$5:$D$1005),--(الادخال!$G$5:$G$1005)-(الادخال!$H$5:$H$1005+الادخال!$I$5:$I$1005)),E6+SUMPRODUCT(--(B6=الادخال!$D$5:$D$1005),--(الادخال!$G$5:$G$1005)-(الادخال!$H$5:$H$1005+الادخال!$I$5:$I$1005)),"") -> 255 | E6: 255 | F6: =F$2 -> 1 | G6: التقرير
B7: =IF(C7="","",COUNTA($B$2:B6)) -> 4 | C7: موظف 4 | D7: =IF(E7+SUMPRODUCT(--(B7=الادخال!$D$5:$D$1005),--(الادخال!$G$5:$G$1005)-(الادخال!$H$5:$H$1005+الادخال!$I$5:$I$1005)),E7+SUMPRODUCT(--(B7=الادخال!$D$5:$D$1005),--(الادخال!$G$5:$G$1005)-(الادخال!$H$5:$H$1005+الادخال!$I$5:$I$1005)),"") -> 600 | E7: 600 | F7: =F$3 -> 2
B8: =IF(C8="","",COUNTA($B$2:B7)) -> 5 | C8: موظف 5 | D8: =IF(E8+SUMPRODUCT(--(B8=الادخال!$D$5:$D$1005),--(الادخال!$G$5:$G$1005)-(الادخال!$H$5:$H$1005+الادخال!$I$5:$I$1005)),E8+SUMPRODUCT(--(B8=الادخال!$D$5:$D$1005),--(الادخال!$G$5:$G$1005)-(الادخال!$H$5:$H$1005+الادخال!$I$5:$I$1005)),"") ->  | F8: =F$2 -> 1
B9: =IF(C9="","",COUNTA($B$2:B8)) -> 6 | C9: موظف 6 | D9: =IF(E9+SUMPRODUCT(--(B9=الادخال!$D$5:$D$1005),--(الادخال!$G$5:$G$1005)-(الادخال!$H$5:$H$1005+الادخال!$I$5:$I$1005)),E9+SUMPRODUCT(--(B9=الادخال!$D$5:$D$1005),--(الادخال!$G$5:$G$1005)-(الادخال!$H$5:$H$1005+الادخال!$I$5:$I$1005)),"") -> 50 | E9: 50 | F9: =F$3 -> 2
B10: =IF(C10="","",COUNTA($B$2:B9)) -> 7 | C10: موظف 7 | D10: =IF(E10+SUMPRODUCT(--(B10=الادخال!$D$5:$D$1005),--(الادخال!$G$5:$G$1005)-(الادخال!$H$5:$H$1005+الادخال!$I$5:$I$1005)),E10+SUMPRODUCT(--(B10=الادخال!$D$5:$D$1005),--(الادخال!$G$5:$G$1005)-(الادخال!$H$5:$H$1005+الادخال!$I$5:$I$1005)),"") ->  | F10: =F$2 -> 1
B11: =IF(C11="","",COUNTA($B$2:B10)) -> 8 | C11: موظف 8 | D11: =IF(E11+SUMPRODUCT(--(B11=الادخال!$D$5:$D$1005),--(الادخال!$G$5:$G$1005)-(الادخال!$H$5:$H$1005+الادخال!$I$5:$I$1005)),E11+SUMPRODUCT(--(B11=الادخال!$D$5:$D$1005),--(الادخال!$G$5:$G$1005)-(الادخال!$H$5:$H$1005+الادخال!$I$5:$I$1005)),"") ->  | F11: =F$3 -> 2
B12: =IF(C12="","",COUNTA($B$2:B11)) -> 9 | C12: موظف 9 | D12: =IF(E12+SUMPRODUCT(--(B12=الادخال!$D$5:$D$1005),--(الادخال!$G$5:$G$1005)-(الادخال!$H$5:$H$1005+الادخال!$I$5:$I$1005)),E12+SUMPRODUCT(--(B12=الادخال!$D$5:$D$1005),--(الادخال!$G$5:$G$1005)-(الادخال!$H$5:$H$1005+الادخال!$I$5:$I$1005)),"") ->  | F12: =F$2 -> 1
B13: =IF(C13="","",COUNTA($B$2:B12)) -> 10 | C13: موظف 10 | D13: =IF(E13+SUMPRODUCT(--(B13=الادخال!$D$5:$D$1005),--(الادخال!$G$5:$G$1005)-(الادخال!$H$5:$H$1005+الادخال!$I$5:$I$1005)),E13+SUMPRODUCT(--(B13=الادخال!$D$5:$D$1005),--(الادخال!$G$5:$G$1005)-(الادخال!$H$5:$H$1005+الادخال!$I$5:$I$1005)),"") ->  | F13: =F$3 -> 2
B14: =IF(C14="","",COUNTA($B$2:B13)) -> 11 | C14: موظف 11 | D14: =IF(E14+SUMPRODUCT(--(B14=الادخال!$D$5:$D$1005),--(الادخال!$G$5:$G$1005)-(الادخال!$H$5:$H$1005+الادخال!$I$5:$I$1005)),E14+SUMPRODUCT(--(B14=الادخال!$D$5:$D$1005),--(الادخال!$G$5:$G$1005)-(الادخال!$H$5:$H$1005+الادخال!$I$5:$I$1005)),"") ->  | F14: =F$2 -> 1
B15: =IF(C15="","",COUNTA($B$2:B14)) -> 12 | C15: موظف 12 | D15: =IF(E15+SUMPRODUCT(--(B15=الادخال!$D$5:$D$1005),--(الادخال!$G$5:$G$1005)-(الادخال!$H$5:$H$1005+الادخال!$I$5:$I$1005)),E15+SUMPRODUCT(--(B15=الادخال!$D$5:$D$1005),--(الادخال!$G$5:$G$1005)-(الادخال!$H$5:$H$1005+الادخال!$I$5:$I$1005)),"") -> 400 | E15: 400 | F15: =F$3 -> 2
B16: =IF(C16="","",COUNTA($B$2:B15)) -> 13 | C16: موظف 13 | D16: =IF(E16+SUMPRODUCT(--(B16=الادخال!$D$5:$D$1005),--(الادخال!$G$5:$G$1005)-(الادخال!$H$5:$H$1005+الادخال!$I$5:$I$1005)),E16+SUMPRODUCT(--(B16=الادخال!$D$5:$D$1005),--(الادخال!$G$5:$G$1005)-(الادخال!$H$5:$H$1005+الادخال!$I$5:$I$1005)),"") -> 1032 | E16: 1032 | F16: =F$2 -> 1
B17: =IF(C17="","",COUNTA($B$2:B16)) -> 14 | C17: موظف 14 | D17: =IF(E17+SUMPRODUCT(--(B17=الادخال!$D$5:$D$1005),--(الادخال!$G$5:$G$1005)-(الادخال!$H$5:$H$1005+الادخال!$I$5:$I$1005)),E17+SUMPRODUCT(--(B17=الادخال!$D$5:$D$1005),--(الادخال!$G$5:$G$1005)-(الادخال!$H$5:$H$1005+الادخال!$I$5:$I$1005)),"") ->  | F17: =F$3 -> 2
B18: =IF(C18="","",COUNTA($B$2:B17)) -> 15 | C18: موظف 15 | D18: =IF(E18+SUMPRODUCT(--(B18=الادخال!$D$5:$D$1005),--(الادخال!$G$5:$G$1005)-(الادخال!$H$5:$H$1005+الادخال!$I$5:$I$1005)),E18+SUMPRODUCT(--(B18=الادخال!$D$5:$D$1005),--(الادخال!$G$5:$G$1005)-(الادخال!$H$5:$H$1005+الادخال!$I$5:$I$1005)),"") ->  | F18: =F$2 -> 1
B19: =IF(C19="","",COUNTA($B$2:B18)) -> 16 | C19: موظف 16 | D19: =IF(E19+SUMPRODUCT(--(B19=الادخال!$D$5:$D$1005),--(الادخال!$G$5:$G$1005)-(الادخال!$H$5:$H$1005+الادخال!$I$5:$I$1005)),E19+SUMPRODUCT(--(B19=الادخال!$D$5:$D$1005),--(الادخال!$G$5:$G$1005)-(الادخال!$H$5:$H$1005+الادخال!$I$5:$I$1005)),"") ->  | F19: =F$3 -> 2
B20: =IF(C20="","",COUNTA($B$2:B19)) -> 17 | C20: موظف 17 | D20: =IF(E20+SUMPRODUCT(--(B20=الادخال!$D$5:$D$1005),--(الادخال!$G$5:$G$1005)-(الادخال!$H$5:$H$1005+الادخال!$I$5:$I$1005)),E20+SUMPRODUCT(--(B20=الادخال!$D$5:$D$1005),--(الادخال!$G$5:$G$1005)-(الادخال!$H$5:$H$1005+الادخال!$I$5:$I$1005)),"") ->  | F20: =F$2 -> 1
B21: =IF(C21="","",COUNTA($B$2:B20)) -> 18 | C21: موظف 18 | D21: =IF(E21+SUMPRODUCT(--(B21=الادخال!$D$5:$D$1005),--(الادخال!$G$5:$G$1005)-(الادخال!$H$5:$H$1005+الادخال!$I$5:$I$1005)),E21+SUMPRODUCT(--(B21=الادخال!$D$5:$D$1005),--(الادخال!$G$5:$G$1005)-(الادخال!$H$5:$H$1005+الادخال!$I$5:$I$1005)),"") ->  | F21: =F$3 -> 2
B22: =IF(C22="","",COUNTA($B$2:B21)) -> 19 | C22: موظف 19 | D22: =IF(E22+SUMPRODUCT(--(B22=الادخال!$D$5:$D$1005),--(الادخال!$G$5:$G$1005)-(الادخال!$H$5:$H$1005+الادخال!$I$5:$I$1005)),E22+SUMPRODUCT(--(B22=الادخال!$D$5:$D$1005),--(الادخال!$G$5:$G$1005)-(الادخال!$H$5:$H$1005+الادخال!$I$5:$I$1005)),"") ->  | F22: =F$2 -> 1
B23: =IF(C23="","",COUNTA($B$2:B22)) -> 20 | C23: موظف 20 | D23: =IF(E23+SUMPRODUCT(--(B23=الادخال!$D$5:$D$1005),--(الادخال!$G$5:$G$1005)-(الادخال!$H$5:$H$1005+الادخال!$I$5:$I$1005)),E23+SUMPRODUCT(--(B23=الادخال!$D$5:$D$1005),--(الادخال!$G$5:$G$1005)-(الادخال!$H$5:$H$1005+الادخال!$I$5:$I$1005)),"") -> 635 | E23: 635 | F23: =F$3 -> 2
B24: =IF(C24="","",COUNTA($B$2:B23)) ->  | D24: =IF(E24+SUMPRODUCT(--(B24=الادخال!$D$5:$D$1005),--(الادخال!$G$5:$G$1005)-(الادخال!$H$5:$H$1005+الادخال!$I$5:$I$1005)),E24+SUMPRODUCT(--(B24=الادخال!$D$5:$D$1005),--(الادخال!$G$5:$G$1005)-(الادخال!$H$5:$H$1005+الادخال!$I$5:$I$1005)),"") ->  | F24: =F$2 -> 1
B25: =IF(C25="","",COUNTA($B$2:B24)) ->  | D25: =IF(E25+SUMPRODUCT(--(B25=الادخال!$D$5:$D$1005),--(الادخال!$G$5:$G$1005)-(الادخال!$H$5:$H$1005+الادخال!$I$5:$I$1005)),E25+SUMPRODUCT(--(B25=الادخال!$D$5:$D$1005),--(الادخال!$G$5:$G$1005)-(الادخال!$H$5:$H$1005+الادخال!$I$5:$I$1005)),"") ->  | F25: =F$3 -> 2
B26: =IF(C26="","",COUNTA($B$2:B25)) ->  | D26: =IF(E26+SUMPRODUCT(--(B26=الادخال!$D$5:$D$1005),--(الادخال!$G$5:$G$1005)-(الادخال!$H$5:$H$1005+الادخال!$I$5:$I$1005)),E26+SUMPRODUCT(--(B26=الادخال!$D$5:$D$1005),--(الادخال!$G$5:$G$1005)-(الادخال!$H$5:$H$1005+الادخال!$I$5:$I$1005)),"") ->  | F26: =F$2 -> 1
B27: =IF(C27="","",COUNTA($B$2:B26)) ->  | D27: =IF(E27+SUMPRODUCT(--(B27=الادخال!$D$5:$D$1005),--(الادخال!$G$5:$G$1005)-(الادخال!$H$5:$H$1005+الادخال!$I$5:$I$1005)),E27+SUMPRODUCT(--(B27=الادخال!$D$5:$D$1005),--(الادخال!$G$5:$G$1005)-(الادخال!$H$5:$H$1005+الادخال!$I$5:$I$1005)),"") ->  | F27: =F$3 -> 2
B28: =IF(C28="","",COUNTA($B$2:B27)) ->  | D28: =IF(E28+SUMPRODUCT(--(B28=الادخال!$D$5:$D$1005),--(الادخال!$G$5:$G$1005)-(الادخال!$H$5:$H$1005+الادخال!$I$5:$I$1005)),E28+SUMPRODUCT(--(B28=الادخال!$D$5:$D$1005),--(الادخال!$G$5:$G$1005)-(الادخال!$H$5:$H$1005+الادخال!$I$5:$I$1005)),"") ->  | F28: =F$2 -> 1
B29: =IF(C29="","",COUNTA($B$2:B28)) ->  | D29: =IF(E29+SUMPRODUCT(--(B29=الادخال!$D$5:$D$1005),--(الادخال!$G$5:$G$1005)-(الادخال!$H$5:$H$1005+الادخال!$I$5:$I$1005)),E29+SUMPRODUCT(--(B29=الادخال!$D$5:$D$1005),--(الادخال!$G$5:$G$1005)-(الادخال!$H$5:$H$1005+الادخال!$I$5:$I$1005)),"") ->  | F29: =F$3 -> 2
B30: =IF(C30="","",COUNTA($B$2:B29)) ->  | D30: =IF(E30+SUMPRODUCT(--(B30=الادخال!$D$5:$D$1005),--(الادخال!$G$5:$G$1005)-(الادخال!$H$5:$H$1005+الادخال!$I$5:$I$1005)),E30+SUMPRODUCT(--(B30=الادخال!$D$5:$D$1005),--(الادخال!$G$5:$G$1005)-(الادخال!$H$5:$H$1005+الادخال!$I$5:$I$1005)),"") ->  | F30: =F$2 -> 1
B31: =IF(C31="","",COUNTA($B$2:B30)) ->  | D31: =IF(E31+SUMPRODUCT(--(B31=الادخال!$D$5:$D$1005),--(الادخال!$G$5:$G$1005)-(الادخال!$H$5:$H$1005+الادخال!$I$5:$I$1005)),E31+SUMPRODUCT(--(B31=الادخال!$D$5:$D$1005),--(الادخال!$G$5:$G$1005)-(الادخال!$H$5:$H$1005+الادخال!$I$5:$I$1005)),"") ->  | F31: =F$3 -> 2
B32: =IF(C32="","",COUNTA($B$2:B31)) ->  | D32: =IF(E32+SUMPRODUCT(--(B32=الادخال!$D$5:$D$1005),--(الادخال!$G$5:$G$1005)-(الادخال!$H$5:$H$1005+الادخال!$I$5:$I$1005)),E32+SUMPRODUCT(--(B32=الادخال!$D$5:$D$1005),--(الادخال!$G$5:$G$1005)-(الادخال!$H$5:$H$1005+الادخال!$I$5:$I$1005)),"") ->  | F32: =F$2 -> 1
B33: =IF(C33="","",COUNTA($B$2:B32)) ->  | D33: =IF(E33+SUMPRODUCT(--(B33=الادخال!$D$5:$D$1005),--(الادخال!$G$5:$G$1005)-(الادخال!$H$5:$H$1005+الادخال!$I$5:$I$1005)),E33+SUMPRODUCT(--(B33=الادخال!$D$5:$D$1005),--(الادخال!$G$5:$G$1005)-(الادخال!$H$5:$H$1005+الادخال!$I$5:$I$1005)),"") ->  | F33: =F$3 -> 2
B34: =IF(C34="","",COUNTA($B$2:B33)) ->  | D34: =IF(E34+SUMPRODUCT(--(B34=الادخال!$D$5:$D$1005),--(الادخال!$G$5:$G$1005)-(الادخال!$H$5:$H$1005+الادخال!$I$5:$I$1005)),E34+SUMPRODUCT(--(B34=الادخال!$D$5:$D$1005),--(الادخال!$G$5:$G$1005)-(الادخال!$H$5:$H$1005+الادخال!$I$5:$I$1005)),"") ->  | F34: =F$2 -> 1
B35: =IF(C35="","",COUNTA($B$2:B34)) ->  | D35: =IF(E35+SUMPRODUCT(--(B35=الادخال!$D$5:$D$1005),--(الادخال!$G$5:$G$1005)-(الادخال!$H$5:$H$1005+الادخال!$I$5:$I$1005)),E35+SUMPRODUCT(--(B35=الادخال!$D$5:$D$1005),--(الادخال!$G$5:$G$1005)-(الادخال!$H$5:$H$1005+الادخال!$I$5:$I$1005)),"") ->  | F35: =F$3 -> 2
B36: =IF(C36="","",COUNTA($B$2:B35)) ->  | D36: =IF(E36+SUMPRODUCT(--(B36=الادخال!$D$5:$D$1005),--(الادخال!$G$5:$G$1005)-(الادخال!$H$5:$H$1005+الادخال!$I$5:$I$1005)),E36+SUMPRODUCT(--(B36=الادخال!$D$5:$D$1005),--(الادخال!$G$5:$G$1005)-(الادخال!$H$5:$H$1005+الادخال!$I$5:$I$1005)),"") ->  | F36: =F$2 -> 1
B37: =IF(C37="","",COUNTA($B$2:B36)) ->  | D37: =IF(E37+SUMPRODUCT(--(B37=الادخال!$D$5:$D$1005),--(الادخال!$G$5:$G$1005)-(الادخال!$H$5:$H$1005+الادخال!$I$5:$I$1005)),E37+SUMPRODUCT(--(B37=الادخال!$D$5:$D$1005),--(الادخال!$G$5:$G$1005)-(الادخال!$H$5:$H$1005+الادخال!$I$5:$I$1005)),"") ->  | F37: =F$3 -> 2
B38: =IF(C38="","",COUNTA($B$2:B37)) ->  | D38: =IF(E38+SUMPRODUCT(--(B38=الادخال!$D$5:$D$1005),--(الادخال!$G$5:$G$1005)-(الادخال!$H$5:$H$1005+الادخال!$I$5:$I$1005)),E38+SUMPRODUCT(--(B38=الادخال!$D$5:$D$1005),--(الادخال!$G$5:$G$1005)-(الادخال!$H$5:$H$1005+الادخال!$I$5:$I$1005)),"") ->  | F38: =F$2 -> 1
B39: =IF(C39="","",COUNTA($B$2:B38)) ->  | D39: =IF(E39+SUMPRODUCT(--(B39=الادخال!$D$5:$D$1005),--(الادخال!$G$5:$G$1005)-(الادخال!$H$5:$H$1005+الادخال!$I$5:$I$1005)),E39+SUMPRODUCT(--(B39=الادخال!$D$5:$D$1005),--(الادخال!$G$5:$G$1005)-(الادخال!$H$5:$H$1005+الادخال!$I$5:$I$1005)),"") ->  | F39: =F$3 -> 2
B40: =IF(C40="","",COUNTA($B$2:B39)) ->  | D40: =IF(E40+SUMPRODUCT(--(B40=الادخال!$D$5:$D$1005),--(الادخال!$G$5:$G$1005)-(الادخال!$H$5:$H$1005+الادخال!$I$5:$I$1005)),E40+SUMPRODUCT(--(B40=الادخال!$D$5:$D$1005),--(الادخال!$G$5:$G$1005)-(الادخال!$H$5:$H$1005+الادخال!$I$5:$I$1005)),"") ->  | F40: =F$2 -> 1
B41: =IF(C41="","",COUNTA($B$2:B40)) ->  | D41: =IF(E41+SUMPRODUCT(--(B41=الادخال!$D$5:$D$1005),--(الادخال!$G$5:$G$1005)-(الادخال!$H$5:$H$1005+الادخال!$I$5:$I$1005)),E41+SUMPRODUCT(--(B41=الادخال!$D$5:$D$1005),--(الادخال!$G$5:$G$1005)-(الادخال!$H$5:$H$1005+الادخال!$I$5:$I$1005)),"") ->  | F41: =F$3 -> 2
B42: =IF(C42="","",COUNTA($B$2:B41)) ->  | D42: =IF(E42+SUMPRODUCT(--(B42=الادخال!$D$5:$D$1005),--(الادخال!$G$5:$G$1005)-(الادخال!$H$5:$H$1005+الادخال!$I$5:$I$1005)),E42+SUMPRODUCT(--(B42=الادخال!$D$5:$D$1005),--(الادخال!$G$5:$G$1005)-(الادخال!$H$5:$H$1005+الادخال!$I$5:$I$1005)),"") ->  | F42: =F$2 -> 1
B43: =IF(C43="","",COUNTA($B$2:B42)) ->  | D43: =IF(E43+SUMPRODUCT(--(B43=الادخال!$D$5:$D$1005),--(الادخال!$G$5:$G$1005)-(الادخال!$H$5:$H$1005+الادخال!$I$5:$I$1005)),E43+SUMPRODUCT(--(B43=الادخال!$D$5:$D$1005),--(الادخال!$G$5:$G$1005)-(الادخال!$H$5:$H$1005+الادخال!$I$5:$I$1005)),"") ->  | F43: =F$3 -> 2
B44: =IF(C44="","",COUNTA($B$2:B43)) ->  | D44: =IF(E44+SUMPRODUCT(--(B44=الادخال!$D$5:$D$1005),--(الادخال!$G$5:$G$1005)-(الادخال!$H$5:$H$1005+الادخال!$I$5:$I$1005)),E44+SUMPRODUCT(--(B44=الادخال!$D$5:$D$1005),--(الادخال!$G$5:$G$1005)-(الادخال!$H$5:$H$1005+الادخال!$I$5:$I$1005)),"") ->  | F44: =F$2 -> 1
B45: =IF(C45="","",COUNTA($B$2:B44)) ->  | D45: =IF(E45+SUMPRODUCT(--(B45=الادخال!$D$5:$D$1005),--(الادخال!$G$5:$G$1005)-(الادخال!$H$5:$H$1005+الادخال!$I$5:$I$1005)),E45+SUMPRODUCT(--(B45=الادخال!$D$5:$D$1005),--(الادخال!$G$5:$G$1005)-(الادخال!$H$5:$H$1005+الادخال!$I$5:$I$1005)),"") ->  | F45: =F$3 -> 2
B46: =IF(C46="","",COUNTA($B$2:B45)) ->  | D46: =IF(E46+SUMPRODUCT(--(B46=الادخال!$D$5:$D$1005),--(الادخال!$G$5:$G$1005)-(الادخال!$H$5:$H$1005+الادخال!$I$5:$I$1005)),E46+SUMPRODUCT(--(B46=الادخال!$D$5:$D$1005),--(الادخال!$G$5:$G$1005)-(الادخال!$H$5:$H$1005+الادخال!$I$5:$I$1005)),"") ->  | F46: =F$2 -> 1
B47: =IF(C47="","",COUNTA($B$2:B46)) ->  | D47: =IF(E47+SUMPRODUCT(--(B47=الادخال!$D$5:$D$1005),--(الادخال!$G$5:$G$1005)-(الادخال!$H$5:$H$1005+الادخال!$I$5:$I$1005)),E47+SUMPRODUCT(--(B47=الادخال!$D$5:$D$1005),--(الادخال!$G$5:$G$1005)-(الادخال!$H$5:$H$1005+الادخال!$I$5:$I$1005)),"") ->  | F47: =F$3 -> 2
B48: =IF(C48="","",COUNTA($B$2:B47)) ->  | D48: =IF(E48+SUMPRODUCT(--(B48=الادخال!$D$5:$D$1005),--(الادخال!$G$5:$G$1005)-(الادخال!$H$5:$H$1005+الادخال!$I$5:$I$1005)),E48+SUMPRODUCT(--(B48=الادخال!$D$5:$D$1005),--(الادخال!$G$5:$G$1005)-(الادخال!$H$5:$H$1005+الادخال!$I$5:$I$1005)),"") ->  | F48: =F$2 -> 1
B49: =IF(C49="","",COUNTA($B$2:B48)) ->  | D49: =IF(E49+SUMPRODUCT(--(B49=الادخال!$D$5:$D$1005),--(الادخال!$G$5:$G$1005)-(الادخال!$H$5:$H$1005+الادخال!$I$5:$I$1005)),E49+SUMPRODUCT(--(B49=الادخال!$D$5:$D$1005),--(الادخال!$G$5:$G$1005)-(الادخال!$H$5:$H$1005+الادخال!$I$5:$I$1005)),"") ->  | F49: =F$3 -> 2
B50: =IF(C50="","",COUNTA($B$2:B49)) ->  | D50: =IF(E50+SUMPRODUCT(--(B50=الادخال!$D$5:$D$1005),--(الادخال!$G$5:$G$1005)-(الادخال!$H$5:$H$1005+الادخال!$I$5:$I$1005)),E50+SUMPRODUCT(--(B50=الادخال!$D$5:$D$1005),--(الادخال!$G$5:$G$1005)-(الادخال!$H$5:$H$1005+الادخال!$I$5:$I$1005)),"") ->  | F50: =F$2 -> 1
B51: =IF(C51="","",COUNTA($B$2:B50)) ->  | D51: =IF(E51+SUMPRODUCT(--(B51=الادخال!$D$5:$D$1005),--(الادخال!$G$5:$G$1005)-(الادخال!$H$5:$H$1005+الادخال!$I$5:$I$1005)),E51+SUMPRODUCT(--(B51=الادخال!$D$5:$D$1005),--(الادخال!$G$5:$G$1005)-(الادخال!$H$5:$H$1005+الادخال!$I$5:$I$1005)),"") ->  | F51: =F$3 -> 2
B52: =IF(C52="","",COUNTA($B$2:B51)) ->  | D52: =IF(E52+SUMPRODUCT(--(B52=الادخال!$D$5:$D$1005),--(الادخال!$G$5:$G$1005)-(الادخال!$H$5:$H$1005+الادخال!$I$5:$I$1005)),E52+SUMPRODUCT(--(B52=الادخال!$D$5:$D$1005),--(الادخال!$G$5:$G$1005)-(الادخال!$H$5:$H$1005+الادخال!$I$5:$I$1005)),"") ->  | F52: =F$2 -> 1
B53: =IF(C53="","",COUNTA($B$2:B52)) ->  | D53: =IF(E53+SUMPRODUCT(--(B53=الادخال!$D$5:$D$1005),--(الادخال!$G$5:$G$1005)-(الادخال!$H$5:$H$1005+الادخال!$I$5:$I$1005)),E53+SUMPRODUCT(--(B53=الادخال!$D$5:$D$1005),--(الادخال!$G$5:$G$1005)-(الادخال!$H$5:$H$1005+الادخال!$I$5:$I$1005)),"") ->  | F53: =F$3 -> 2
B54: =IF(C54="","",COUNTA($B$2:B53)) ->  | D54: =IF(E54+SUMPRODUCT(--(B54=الادخال!$D$5:$D$1005),--(الادخال!$G$5:$G$1005)-(الادخال!$H$5:$H$1005+الادخال!$I$5:$I$1005)),E54+SUMPRODUCT(--(B54=الادخال!$D$5:$D$1005),--(الادخال!$G$5:$G$1005)-(الادخال!$H$5:$H$1005+الادخال!$I$5:$I$1005)),"") ->  | F54: =F$2 -> 1
B55: =IF(C55="","",COUNTA($B$2:B54)) ->  | D55: =IF(E55+SUMPRODUCT(--(B55=الادخال!$D$5:$D$1005),--(الادخال!$G$5:$G$1005)-(الادخال!$H$5:$H$1005+الادخال!$I$5:$I$1005)),E55+SUMPRODUCT(--(B55=الادخال!$D$5:$D$1005),--(الادخال!$G$5:$G$1005)-(الادخال!$H$5:$H$1005+الادخال!$I$5:$I$1005)),"") ->  | F55: =F$3 -> 2
B56: =IF(C56="","",COUNTA($B$2:B55)) ->  | D56: =IF(E56+SUMPRODUCT(--(B56=الادخال!$D$5:$D$1005),--(الادخال!$G$5:$G$1005)-(الادخال!$H$5:$H$1005+الادخال!$I$5:$I$1005)),E56+SUMPRODUCT(--(B56=الادخال!$D$5:$D$1005),--(الادخال!$G$5:$G$1005)-(الادخال!$H$5:$H$1005+الادخال!$I$5:$I$1005)),"") ->  | F56: =F$2 -> 1
B57: =IF(C57="","",COUNTA($B$2:B56)) ->  | D57: =IF(E57+SUMPRODUCT(--(B57=الادخال!$D$5:$D$1005),--(الادخال!$G$5:$G$1005)-(الادخال!$H$5:$H$1005+الادخال!$I$5:$I$1005)),E57+SUMPRODUCT(--(B57=الادخال!$D$5:$D$1005),--(الادخال!$G$5:$G$1005)-(الادخال!$H$5:$H$1005+الادخال!$I$5:$I$1005)),"") ->  | F57: =F$3 -> 2
B58: =IF(C58="","",COUNTA($B$2:B57)) ->  | D58: =IF(E58+SUMPRODUCT(--(B58=الادخال!$D$5:$D$1005),--(الادخال!$G$5:$G$1005)-(الادخال!$H$5:$H$1005+الادخال!$I$5:$I$1005)),E58+SUMPRODUCT(--(B58=الادخال!$D$5:$D$1005),--(الادخال!$G$5:$G$1005)-(الادخال!$H$5:$H$1005+الادخال!$I$5:$I$1005)),"") ->  | F58: =F$2 -> 1
B59: =IF(C59="","",COUNTA($B$2:B58)) ->  | D59: =IF(E59+SUMPRODUCT(--(B59=الادخال!$D$5:$D$1005),--(الادخال!$G$5:$G$1005)-(الادخال!$H$5:$H$1005+الادخال!$I$5:$I$1005)),E59+SUMPRODUCT(--(B59=الادخال!$D$5:$D$1005),--(الادخال!$G$5:$G$1005)-(الادخال!$H$5:$H$1005+الادخال!$I$5:$I$1005)),"") ->  | F59: =F$3 -> 2
B60: =IF(C60="","",COUNTA($B$2:B59)) ->  | D60: =IF(E60+SUMPRODUCT(--(B60=الادخال!$D$5:$D$1005),--(الادخال!$G$5:$G$1005)-(الادخال!$H$5:$H$1005+الادخال!$I$5:$I$1005)),E60+SUMPRODUCT(--(B60=الادخال!$D$5:$D$1005),--(الادخال!$G$5:$G$1005)-(الادخال!$H$5:$H$1005+الادخال!$I$5:$I$1005)),"") ->  | F60: =F$2 -> 1
B61: =IF(C61="","",COUNTA($B$2:B60)) ->  | D61: =IF(E61+SUMPRODUCT(--(B61=الادخال!$D$5:$D$1005),--(الادخال!$G$5:$G$1005)-(الادخال!$H$5:$H$1005+الادخال!$I$5:$I$1005)),E61+SUMPRODUCT(--(B61=الادخال!$D$5:$D$1005),--(الادخال!$G$5:$G$1005)-(الادخال!$H$5:$H$1005+الادخال!$I$5:$I$1005)),"") ->  | F61: =F$3 -> 2
B62: =IF(C62="","",COUNTA($B$2:B61)) ->  | D62: =IF(E62+SUMPRODUCT(--(B62=الادخال!$D$5:$D$1005),--(الادخال!$G$5:$G$1005)-(الادخال!$H$5:$H$1005+الادخال!$I$5:$I$1005)),E62+SUMPRODUCT(--(B62=الادخال!$D$5:$D$1005),--(الادخال!$G$5:$G$1005)-(الادخال!$H$5:$H$1005+الادخال!$I$5:$I$1005)),"") ->  | F62: =F$2 -> 1
B63: =IF(C63="","",COUNTA($B$2:B62)) ->  | D63: =IF(E63+SUMPRODUCT(--(B63=الادخال!$D$5:$D$1005),--(الادخال!$G$5:$G$1005)-(الادخال!$H$5:$H$1005+الادخال!$I$5:$I$1005)),E63+SUMPRODUCT(--(B63=الادخال!$D$5:$D$1005),--(الادخال!$G$5:$G$1005)-(الادخال!$H$5:$H$1005+الادخال!$I$5:$I$1005)),"") ->  | F63: =F$3 -> 2
B64: =IF(C64="","",COUNTA($B$2:B63)) ->  | D64: =IF(E64+SUMPRODUCT(--(B64=الادخال!$D$5:$D$1005),--(الادخال!$G$5:$G$1005)-(الادخال!$H$5:$H$1005+الادخال!$I$5:$I$1005)),E64+SUMPRODUCT(--(B64=الادخال!$D$5:$D$1005),--(الادخال!$G$5:$G$1005)-(الادخال!$H$5:$H$1005+الادخال!$I$5:$I$1005)),"") ->  | F64: =F$2 -> 1
B65: =IF(C65="","",COUNTA($B$2:B64)) ->  | D65: =IF(E65+SUMPRODUCT(--(B65=الادخال!$D$5:$D$1005),--(الادخال!$G$5:$G$1005)-(الادخال!$H$5:$H$1005+الادخال!$I$5:$I$1005)),E65+SUMPRODUCT(--(B65=الادخال!$D$5:$D$1005),--(الادخال!$G$5:$G$1005)-(الادخال!$H$5:$H$1005+الادخال!$I$5:$I$1005)),"") ->  | F65: =F$3 -> 2
B66: =IF(C66="","",COUNTA($B$2:B65)) ->  | D66: =IF(E66+SUMPRODUCT(--(B66=الادخال!$D$5:$D$1005),--(الادخال!$G$5:$G$1005)-(الادخال!$H$5:$H$1005+الادخال!$I$5:$I$1005)),E66+SUMPRODUCT(--(B66=الادخال!$D$5:$D$1005),--(الادخال!$G$5:$G$1005)-(الادخال!$H$5:$H$1005+الادخال!$I$5:$I$1005)),"") ->  | F66: =F$2 -> 1
B67: =IF(C67="","",COUNTA($B$2:B66)) ->  | D67: =IF(E67+SUMPRODUCT(--(B67=الادخال!$D$5:$D$1005),--(الادخال!$G$5:$G$1005)-(الادخال!$H$5:$H$1005+الادخال!$I$5:$I$1005)),E67+SUMPRODUCT(--(B67=الادخال!$D$5:$D$1005),--(الادخال!$G$5:$G$1005)-(الادخال!$H$5:$H$1005+الادخال!$I$5:$I$1005)),"") ->  | F67: =F$3 -> 2
B68: =IF(C68="","",COUNTA($B$2:B67)) ->  | D68: =IF(E68+SUMPRODUCT(--(B68=الادخال!$D$5:$D$1005),--(الادخال!$G$5:$G$1005)-(الادخال!$H$5:$H$1005+الادخال!$I$5:$I$1005)),E68+SUMPRODUCT(--(B68=الادخال!$D$5:$D$1005),--(الادخال!$G$5:$G$1005)-(الادخال!$H$5:$H$1005+الادخال!$I$5:$I$1005)),"") ->  | F68: =F$2 -> 1
B69: =IF(C69="","",COUNTA($B$2:B68)) ->  | D69: =IF(E69+SUMPRODUCT(--(B69=الادخال!$D$5:$D$1005),--(الادخال!$G$5:$G$1005)-(الادخال!$H$5:$H$1005+الادخال!$I$5:$I$1005)),E69+SUMPRODUCT(--(B69=الادخال!$D$5:$D$1005),--(الادخال!$G$5:$G$1005)-(الادخال!$H$5:$H$1005+الادخال!$I$5:$I$1005)),"") ->  | F69: =F$3 -> 2
B70: =IF(C70="","",COUNTA($B$2:B69)) ->  | D70: =IF(E70+SUMPRODUCT(--(B70=الادخال!$D$5:$D$1005),--(الادخال!$G$5:$G$1005)-(الادخال!$H$5:$H$1005+الادخال!$I$5:$I$1005)),E70+SUMPRODUCT(--(B70=الادخال!$D$5:$D$1005),--(الادخال!$G$5:$G$1005)-(الادخال!$H$5:$H$1005+الادخال!$I$5:$I$1005)),"") ->  | F70: =F$2 -> 1
B71: =IF(C71="","",COUNTA($B$2:B70)) ->  | D71: =IF(E71+SUMPRODUCT(--(B71=الادخال!$D$5:$D$1005),--(الادخال!$G$5:$G$1005)-(الادخال!$H$5:$H$1005+الادخال!$I$5:$I$1005)),E71+SUMPRODUCT(--(B71=الادخال!$D$5:$D$1005),--(الادخال!$G$5:$G$1005)-(الادخال!$H$5:$H$1005+الادخال!$I$5:$I$1005)),"") ->  | F71: =F$3 -> 2
B72: =IF(C72="","",COUNTA($B$2:B71)) ->  | D72: =IF(E72+SUMPRODUCT(--(B72=الادخال!$D$5:$D$1005),--(الادخال!$G$5:$G$1005)-(الادخال!$H$5:$H$1005+الادخال!$I$5:$I$1005)),E72+SUMPRODUCT(--(B72=الادخال!$D$5:$D$1005),--(الادخال!$G$5:$G$1005)-(الادخال!$H$5:$H$1005+الادخال!$I$5:$I$1005)),"") ->  | F72: =F$2 -> 1
B73: =IF(C73="","",COUNTA($B$2:B72)) ->  | D73: =IF(E73+SUMPRODUCT(--(B73=الادخال!$D$5:$D$1005),--(الادخال!$G$5:$G$1005)-(الادخال!$H$5:$H$1005+الادخال!$I$5:$I$1005)),E73+SUMPRODUCT(--(B73=الادخال!$D$5:$D$1005),--(الادخال!$G$5:$G$1005)-(الادخال!$H$5:$H$1005+الادخال!$I$5:$I$1005)),"") ->  | F73: =F$3 -> 2
B74: =IF(C74="","",COUNTA($B$2:B73)) ->  | D74: =IF(E74+SUMPRODUCT(--(B74=الادخال!$D$5:$D$1005),--(الادخال!$G$5:$G$1005)-(الادخال!$H$5:$H$1005+الادخال!$I$5:$I$1005)),E74+SUMPRODUCT(--(B74=الادخال!$D$5:$D$1005),--(الادخال!$G$5:$G$1005)-(الادخال!$H$5:$H$1005+الادخال!$I$5:$I$1005)),"") ->  | F74: =F$2 -> 1
B75: =IF(C75="","",COUNTA($B$2:B74)) ->  | D75: =IF(E75+SUMPRODUCT(--(B75=الادخال!$D$5:$D$1005),--(الادخال!$G$5:$G$1005)-(الادخال!$H$5:$H$1005+الادخال!$I$5:$I$1005)),E75+SUMPRODUCT(--(B75=الادخال!$D$5:$D$1005),--(الادخال!$G$5:$G$1005)-(الادخال!$H$5:$H$1005+الادخال!$I$5:$I$1005)),"") ->  | F75: =F$3 -> 2
B76: =IF(C76="","",COUNTA($B$2:B75)) ->  | D76: =IF(E76+SUMPRODUCT(--(B76=الادخال!$D$5:$D$1005),--(الادخال!$G$5:$G$1005)-(الادخال!$H$5:$H$1005+الادخال!$I$5:$I$1005)),E76+SUMPRODUCT(--(B76=الادخال!$D$5:$D$1005),--(الادخال!$G$5:$G$1005)-(الادخال!$H$5:$H$1005+الادخال!$I$5:$I$1005)),"") ->  | F76: =F$2 -> 1
B77: =IF(C77="","",COUNTA($B$2:B76)) ->  | D77: =IF(E77+SUMPRODUCT(--(B77=الادخال!$D$5:$D$1005),--(الادخال!$G$5:$G$1005)-(الادخال!$H$5:$H$1005+الادخال!$I$5:$I$1005)),E77+SUMPRODUCT(--(B77=الادخال!$D$5:$D$1005),--(الادخال!$G$5:$G$1005)-(الادخال!$H$5:$H$1005+الادخال!$I$5:$I$1005)),"") ->  | F77: =F$3 -> 2
B78: =IF(C78="","",COUNTA($B$2:B77)) ->  | D78: =IF(E78+SUMPRODUCT(--(B78=الادخال!$D$5:$D$1005),--(الادخال!$G$5:$G$1005)-(الادخال!$H$5:$H$1005+الادخال!$I$5:$I$1005)),E78+SUMPRODUCT(--(B78=الادخال!$D$5:$D$1005),--(الادخال!$G$5:$G$1005)-(الادخال!$H$5:$H$1005+الادخال!$I$5:$I$1005)),"") ->  | F78: =F$2 -> 1
B79: =IF(C79="","",COUNTA($B$2:B78)) ->  | D79: =IF(E79+SUMPRODUCT(--(B79=الادخال!$D$5:$D$1005),--(الادخال!$G$5:$G$1005)-(الادخال!$H$5:$H$1005+الادخال!$I$5:$I$1005)),E79+SUMPRODUCT(--(B79=الادخال!$D$5:$D$1005),--(الادخال!$G$5:$G$1005)-(الادخال!$H$5:$H$1005+الادخال!$I$5:$I$1005)),"") ->  | F79: =F$3 -> 2
B80: =IF(C80="","",COUNTA($B$2:B79)) ->  | D80: =IF(E80+SUMPRODUCT(--(B80=الادخال!$D$5:$D$1005),--(الادخال!$G$5:$G$1005)-(الادخال!$H$5:$H$1005+الادخال!$I$5:$I$1005)),E80+SUMPRODUCT(--(B80=الادخال!$D$5:$D$1005),--(الادخال!$G$5:$G$1005)-(الادخال!$H$5:$H$1005+الادخال!$I$5:$I$1005)),"") ->  | F80: =F$2 -> 1
B81: =IF(C81="","",COUNTA($B$2:B80)) ->  | D81: =IF(E81+SUMPRODUCT(--(B81=الادخال!$D$5:$D$1005),--(الادخال!$G$5:$G$1005)-(الادخال!$H$5:$H$1005+الادخال!$I$5:$I$1005)),E81+SUMPRODUCT(--(B81=الادخال!$D$5:$D$1005),--(الادخال!$G$5:$G$1005)-(الادخال!$H$5:$H$1005+الادخال!$I$5:$I$1005)),"") ->  | F81: =F$3 -> 2
B82: =IF(C82="","",COUNTA($B$2:B81)) ->  | D82: =IF(E82+SUMPRODUCT(--(B82=الادخال!$D$5:$D$1005),--(الادخال!$G$5:$G$1005)-(الادخال!$H$5:$H$1005+الادخال!$I$5:$I$1005)),E82+SUMPRODUCT(--(B82=الادخال!$D$5:$D$1005),--(الادخال!$G$5:$G$1005)-(الادخال!$H$5:$H$1005+الادخال!$I$5:$I$1005)),"") ->  | F82: =F$2 -> 1
B83: =IF(C83="","",COUNTA($B$2:B82)) ->  | D83: =IF(E83+SUMPRODUCT(--(B83=الادخال!$D$5:$D$1005),--(الادخال!$G$5:$G$1005)-(الادخال!$H$5:$H$1005+الادخال!$I$5:$I$1005)),E83+SUMPRODUCT(--(B83=الادخال!$D$5:$D$1005),--(الادخال!$G$5:$G$1005)-(الادخال!$H$5:$H$1005+الادخال!$I$5:$I$1005)),"") ->  | F83: =F$3 -> 2
B84: =IF(C84="","",COUNTA($B$2:B83)) ->  | D84: =IF(E84+SUMPRODUCT(--(B84=الادخال!$D$5:$D$1005),--(الادخال!$G$5:$G$1005)-(الادخال!$H$5:$H$1005+الادخال!$I$5:$I$1005)),E84+SUMPRODUCT(--(B84=الادخال!$D$5:$D$1005),--(الادخال!$G$5:$G$1005)-(الادخال!$H$5:$H$1005+الادخال!$I$5:$I$1005)),"") ->  | F84: =F$2 -> 1
B85: =IF(C85="","",COUNTA($B$2:B84)) ->  | D85: =IF(E85+SUMPRODUCT(--(B85=الادخال!$D$5:$D$1005),--(الادخال!$G$5:$G$1005)-(الادخال!$H$5:$H$1005+الادخال!$I$5:$I$1005)),E85+SUMPRODUCT(--(B85=الادخال!$D$5:$D$1005),--(الادخال!$G$5:$G$1005)-(الادخال!$H$5:$H$1005+الادخال!$I$5:$I$1005)),"") ->  | F85: =F$3 -> 2
B86: =IF(C86="","",COUNTA($B$2:B85)) ->  | D86: =IF(E86+SUMPRODUCT(--(B86=الادخال!$D$5:$D$1005),--(الادخال!$G$5:$G$1005)-(الادخال!$H$5:$H$1005+الادخال!$I$5:$I$1005)),E86+SUMPRODUCT(--(B86=الادخال!$D$5:$D$1005),--(الادخال!$G$5:$G$1005)-(الادخال!$H$5:$H$1005+الادخال!$I$5:$I$1005)),"") ->  | F86: =F$2 -> 1
B87: =IF(C87="","",COUNTA($B$2:B86)) ->  | D87: =IF(E87+SUMPRODUCT(--(B87=الادخال!$D$5:$D$1005),--(الادخال!$G$5:$G$1005)-(الادخال!$H$5:$H$1005+الادخال!$I$5:$I$1005)),E87+SUMPRODUCT(--(B87=الادخال!$D$5:$D$1005),--(الادخال!$G$5:$G$1005)-(الادخال!$H$5:$H$1005+الادخال!$I$5:$I$1005)),"") ->  | F87: =F$3 -> 2
B88: =IF(C88="","",COUNTA($B$2:B87)) ->  | D88: =IF(E88+SUMPRODUCT(--(B88=الادخال!$D$5:$D$1005),--(الادخال!$G$5:$G$1005)-(الادخال!$H$5:$H$1005+الادخال!$I$5:$I$1005)),E88+SUMPRODUCT(--(B88=الادخال!$D$5:$D$1005),--(الادخال!$G$5:$G$1005)-(الادخال!$H$5:$H$1005+الادخال!$I$5:$I$1005)),"") ->  | F88: =F$2 -> 1
B89: =IF(C89="","",COUNTA($B$2:B88)) ->  | D89: =IF(E89+SUMPRODUCT(--(B89=الادخال!$D$5:$D$1005),--(الادخال!$G$5:$G$1005)-(الادخال!$H$5:$H$1005+الادخال!$I$5:$I$1005)),E89+SUMPRODUCT(--(B89=الادخال!$D$5:$D$1005),--(الادخال!$G$5:$G$1005)-(الادخال!$H$5:$H$1005+الادخال!$I$5:$I$1005)),"") ->  | F89: =F$3 -> 2
B90: =IF(C90="","",COUNTA($B$2:B89)) ->  | D90: =IF(E90+SUMPRODUCT(--(B90=الادخال!$D$5:$D$1005),--(الادخال!$G$5:$G$1005)-(الادخال!$H$5:$H$1005+الادخال!$I$5:$I$1005)),E90+SUMPRODUCT(--(B90=الادخال!$D$5:$D$1005),--(الادخال!$G$5:$G$1005)-(الادخال!$H$5:$H$1005+الادخال!$I$5:$I$1005)),"") ->  | F90: =F$2 -> 1
B91: =IF(C91="","",COUNTA($B$2:B90)) ->  | D91: =IF(E91+SUMPRODUCT(--(B91=الادخال!$D$5:$D$1005),--(الادخال!$G$5:$G$1005)-(الادخال!$H$5:$H$1005+الادخال!$I$5:$I$1005)),E91+SUMPRODUCT(--(B91=الادخال!$D$5:$D$1005),--(الادخال!$G$5:$G$1005)-(الادخال!$H$5:$H$1005+الادخال!$I$5:$I$1005)),"") ->  | F91: =F$3 -> 2
B92: =IF(C92="","",COUNTA($B$2:B91)) ->  | D92: =IF(E92+SUMPRODUCT(--(B92=الادخال!$D$5:$D$1005),--(الادخال!$G$5:$G$1005)-(الادخال!$H$5:$H$1005+الادخال!$I$5:$I$1005)),E92+SUMPRODUCT(--(B92=الادخال!$D$5:$D$1005),--(الادخال!$G$5:$G$1005)-(الادخال!$H$5:$H$1005+الادخال!$I$5:$I$1005)),"") ->  | F92: =F$2 -> 1
B93: =IF(C93="","",COUNTA($B$2:B92)) ->  | D93: =IF(E93+SUMPRODUCT(--(B93=الادخال!$D$5:$D$1005),--(الادخال!$G$5:$G$1005)-(الادخال!$H$5:$H$1005+الادخال!$I$5:$I$1005)),E93+SUMPRODUCT(--(B93=الادخال!$D$5:$D$1005),--(الادخال!$G$5:$G$1005)-(الادخال!$H$5:$H$1005+الادخال!$I$5:$I$1005)),"") ->  | F93: =F$3 -> 2
B94: =IF(C94="","",COUNTA($B$2:B93)) ->  | D94: =IF(E94+SUMPRODUCT(--(B94=الادخال!$D$5:$D$1005),--(الادخال!$G$5:$G$1005)-(الادخال!$H$5:$H$1005+الادخال!$I$5:$I$1005)),E94+SUMPRODUCT(--(B94=الادخال!$D$5:$D$1005),--(الادخال!$G$5:$G$1005)-(الادخال!$H$5:$H$1005+الادخال!$I$5:$I$1005)),"") ->  | F94: =F$2 -> 1
B95: =IF(C95="","",COUNTA($B$2:B94)) ->  | D95: =IF(E95+SUMPRODUCT(--(B95=الادخال!$D$5:$D$1005),--(الادخال!$G$5:$G$1005)-(الادخال!$H$5:$H$1005+الادخال!$I$5:$I$1005)),E95+SUMPRODUCT(--(B95=الادخال!$D$5:$D$1005),--(الادخال!$G$5:$G$1005)-(الادخال!$H$5:$H$1005+الادخال!$I$5:$I$1005)),"") ->  | F95: =F$3 -> 2
B96: =IF(C96="","",COUNTA($B$2:B95)) ->  | D96: =IF(E96+SUMPRODUCT(--(B96=الادخال!$D$5:$D$1005),--(الادخال!$G$5:$G$1005)-(الادخال!$H$5:$H$1005+الادخال!$I$5:$I$1005)),E96+SUMPRODUCT(--(B96=الادخال!$D$5:$D$1005),--(الادخال!$G$5:$G$1005)-(الادخال!$H$5:$H$1005+الادخال!$I$5:$I$1005)),"") ->  | F96: =F$2 -> 1
B97: =IF(C97="","",COUNTA($B$2:B96)) ->  | D97: =IF(E97+SUMPRODUCT(--(B97=الادخال!$D$5:$D$1005),--(الادخال!$G$5:$G$1005)-(الادخال!$H$5:$H$1005+الادخال!$I$5:$I$1005)),E97+SUMPRODUCT(--(B97=الادخال!$D$5:$D$1005),--(الادخال!$G$5:$G$1005)-(الادخال!$H$5:$H$1005+الادخال!$I$5:$I$1005)),"") ->  | F97: =F$3 -> 2
B98: =IF(C98="","",COUNTA($B$2:B97)) ->  | D98: =IF(E98+SUMPRODUCT(--(B98=الادخال!$D$5:$D$1005),--(الادخال!$G$5:$G$1005)-(الادخال!$H$5:$H$1005+الادخال!$I$5:$I$1005)),E98+SUMPRODUCT(--(B98=الادخال!$D$5:$D$1005),--(الادخال!$G$5:$G$1005)-(الادخال!$H$5:$H$1005+الادخال!$I$5:$I$1005)),"") ->  | F98: =F$2 -> 1
B99: =IF(C99="","",COUNTA($B$2:B98)) ->  | D99: =IF(E99+SUMPRODUCT(--(B99=الادخال!$D$5:$D$1005),--(الادخال!$G$5:$G$1005)-(الادخال!$H$5:$H$1005+الادخال!$I$5:$I$1005)),E99+SUMPRODUCT(--(B99=الادخال!$D$5:$D$1005),--(الادخال!$G$5:$G$1005)-(الادخال!$H$5:$H$1005+الادخال!$I$5:$I$1005)),"") ->  | F99: =F$3 -> 2
B100: =IF(C100="","",COUNTA($B$2:B99)) ->  | D100: =IF(E100+SUMPRODUCT(--(B100=الادخال!$D$5:$D$1005),--(الادخال!$G$5:$G$1005)-(الادخال!$H$5:$H$1005+الادخال!$I$5:$I$1005)),E100+SUMPRODUCT(--(B100=الادخال!$D$5:$D$1005),--(الادخال!$G$5:$G$1005)-(الادخال!$H$5:$H$1005+الادخال!$I$5:$I$1005)),"") ->  | F100: =F$2 -> 1
B101: =IF(C101="","",COUNTA($B$2:B100)) ->  | D101: =IF(E101+SUMPRODUCT(--(B101=الادخال!$D$5:$D$1005),--(الادخال!$G$5:$G$1005)-(الادخال!$H$5:$H$1005+الادخال!$I$5:$I$1005)),E101+SUMPRODUCT(--(B101=الادخال!$D$5:$D$1005),--(الادخال!$G$5:$G$1005)-(الادخال!$H$5:$H$1005+الادخال!$I$5:$I$1005)),"") ->  | F101: =F$3 -> 2
B102: =IF(C102="","",COUNTA($B$2:B101)) ->  | D102: =IF(E102+SUMPRODUCT(--(B102=الادخال!$D$5:$D$1005),--(الادخال!$G$5:$G$1005)-(الادخال!$H$5:$H$1005+الادخال!$I$5:$I$1005)),E102+SUMPRODUCT(--(B102=الادخال!$D$5:$D$1005),--(الادخال!$G$5:$G$1005)-(الادخال!$H$5:$H$1005+الادخال!$I$5:$I$1005)),"") ->  | F102: =F$2 -> 1
B103: =IF(C103="","",COUNTA($B$2:B102)) ->  | D103: =IF(E103+SUMPRODUCT(--(B103=الادخال!$D$5:$D$1005),--(الادخال!$G$5:$G$1005)-(الادخال!$H$5:$H$1005+الادخال!$I$5:$I$1005)),E103+SUMPRODUCT(--(B103=الادخال!$D$5:$D$1005),--(الادخال!$G$5:$G$1005)-(الادخال!$H$5:$H$1005+الادخال!$I$5:$I$1005)),"") ->  | F103: =F$3 -> 2
B104: =IF(C104="","",COUNTA($B$2:B103)) ->  | D104: =IF(E104+SUMPRODUCT(--(B104=الادخال!$D$5:$D$1005),--(الادخال!$G$5:$G$1005)-(الادخال!$H$5:$H$1005+الادخال!$I$5:$I$1005)),E104+SUMPRODUCT(--(B104=الادخال!$D$5:$D$1005),--(الادخال!$G$5:$G$1005)-(الادخال!$H$5:$H$1005+الادخال!$I$5:$I$1005)),"") ->  | F104: =F$2 -> 1

Sheet الادخال
F1: الادخـــــــــــــال | I1: =HYPERLINK("#'"&VLOOKUP(K1,M1:M3,1,0)&"'!A1","الذهاب الى") -> الذهاب الى | K1: التقرير | M1: الرئيسيه
M2: الادخال
B3: الاجمـــــــــــــــــــــــــــــــالى | G3: =SUM(G5:G1005) -> 4587 | H3: =SUM(H5:H1005) -> 4582 | I3: =SUM(I5:I1005) -> 5 | J3: =IFERROR(IF(K3<>"",SUMIFS($H$5:$H$1006,$J$5:$J$1006,K3),SUM($H$5:$H$1006)),"") -> 4582 | L3: 1 | M3: التقرير
B4: مسلسل | C4: التاريخ | D4: كود | E4: يصرف الى | F4: رقم الايصال | G4: صرف عهد | H4: تسوية | I4: رد الباقى | J4: مركز التكلفة | K4: الشرح | L4: 2
A5: =IF(AND(C5>=التقرير!$D$3,C5<=التقرير!$E$3,D5=التقرير!$B$3),MAX($A$4:$A4)+1,"") -> 1 | B5: =IF(C5<>"",ROW(C1),"") -> 1 | C5: 2022-01-01 | D5: 1 | E5: =IFERROR(INDEX(الرئيسيه!$C$4:$C$104,MATCH(D5,الرئيسيه!$B$4:$B$104,0),0),"") -> موظف 1 | F5: 216400 | G5: 9 | H5: 9 | J5: عمومية | K5: بصل + ثوم | L5: =L$3 -> 1
A6: =IF(AND(C6>=التقرير!$D$3,C6<=التقرير!$E$3,D6=التقرير!$B$3),MAX($A$4:$A5)+1,"") -> 2 | B6: =IF(C6<>"",ROW(C2),"") -> 2 | C6: 2022-01-01 | D6: 1 | E6: =IFERROR(INDEX(الرئيسيه!$C$4:$C$104,MATCH(D6,الرئيسيه!$B$4:$B$104,0),0),"") -> موظف 1 | F6: 688662 | G6: 14 | H6: 14 | J6: عمومية | K6: طماطم + فلفل | L6: =L$4 -> 2
A7: =IF(AND(C7>=التقرير!$D$3,C7<=التقرير!$E$3,D7=التقرير!$B$3),MAX($A$4:$A6)+1,"") -> 3 | B7: 3 | C7: 2022-01-01 | D7: 1 | E7: =IFERROR(INDEX(الرئيسيه!$C$4:$C$104,MATCH(D7,الرئيسيه!$B$4:$B$104,0),0),"") -> موظف 1 | F7: 832193 | G7: 37 | H7: 37 | J7: عمومية | K7: غاز | L7: =L$3 -> 1
A8: =IF(AND(C8>=التقرير!$D$3,C8<=التقرير!$E$3,D8=التقرير!$B$3),MAX($A$4:$A7)+1,"") -> 4 | B8: 4 | C8: 2022-01-01 | D8: 1 | E8: =IFERROR(INDEX(الرئيسيه!$C$4:$C$104,MATCH(D8,الرئيسيه!$B$4:$B$104,0),0),"") -> موظف 1 | F8: 402629 | G8: 81 | H8: 81 | J8: عمومية | K8: ALSI كولا صغير 3ربطة | L8: =L$4 -> 2
A9: =IF(AND(C9>=التقرير!$D$3,C9<=التقرير!$E$3,D9=التقرير!$B$3),MAX($A$4:$A8)+1,"") -> 5 | B9: 5 | C9: 2022-01-02 | D9: 1 | E9: =IFERROR(INDEX(الرئيسيه!$C$4:$C$104,MATCH(D9,الرئيسيه!$B$4:$B$104,0),0),"") -> موظف 1 | F9: 605520 | G9: 22 | H9: 22 | J9: عمومية | K9: تميس | L9: =L$3 -> 1
A10: =IF(AND(C10>=التقرير!$D$3,C10<=التقرير!$E$3,D10=التقرير!$B$3),MAX($A$4:$A9)+1,"") -> 6 | B10: 6 | C10: 2022-01-02 | D10: 1 | E10: =IFERROR(INDEX(الرئيسيه!$C$4:$C$104,MATCH(D10,الرئيسيه!$B$4:$B$104,0),0),"") -> موظف 1 | F10: 789302 | G10: 50 | H10: 50 | J10: عمومية | K10: فول + تميس | L10: =L$4 -> 2
A11: =IF(AND(C11>=التقرير!$D$3,C11<=التقرير!$E$3,D11=التقرير!$B$3),MAX($A$4:$A10)+1,"") -> 7 | B11: 7 | C11: 2022-01-02 | D11: 1 | E11: =IFERROR(INDEX(الرئيسيه!$C$4:$C$104,MATCH(D11,الرئيسيه!$B$4:$B$104,0),0),"") -> موظف 1 | F11: 527028 | G11: 20 | H11: 20 | J11: عمومية | K11: ديزل | L11: =L$3 -> 1
A12: =IF(AND(C12>=التقرير!$D$3,C12<=التقرير!$E$3,D12=التقرير!$B$3),MAX($A$4:$A11)+1,"") -> 8 | B12: 8 | C12: 2022-01-01 | D12: 1 | E12: =IFERROR(INDEX(الرئيسيه!$C$4:$C$104,MATCH(D12,الرئيسيه!$B$4:$B$104,0),0),"") -> موظف 1 | F12: 672511 | G12: 398 | H12: 398 | J12: عمومية | K12: ارز + دجاج + المونيوم | L12: =L$4 -> 2
A13: =IF(AND(C13>=التقرير!$D$3,C13<=التقرير!$E$3,D13=التقرير!$B$3),MAX($A$4:$A12)+1,"") -> 9 | B13: 9 | C13: 2022-01-04 | D13: 1 | E13: =IFERROR(INDEX(الرئيسيه!$C$4:$C$104,MATCH(D13,الرئيسيه!$B$4:$B$104,0),0),"") -> موظف 1 | F13: * | G13: 100 | J13: جاري المالك | K13: سحب من الصراف الآلي | L13: =L$3 -> 1
A14: =IF(AND(C14>=التقرير!$D$3,C14<=التقرير!$E$3,D14=التقرير!$B$3),MAX($A$4:$A13)+1,"") -> 10 | B14: 10 | C14: 2022-01-04 | D14: 1 | E14: =IFERROR(INDEX(الرئيسيه!$C$4:$C$104,MATCH(D14,الرئيسيه!$B$4:$B$104,0),0),"") -> موظف 1 | F14: * | H14: 47 | J14: المصنع | K14: لمون وفلفل وكزبرة وطماطم | L14: =L$4 -> 2
A15: =IF(AND(C15>=التقرير!$D$3,C15<=التقرير!$E$3,D15=التقرير!$B$3),MAX($A$4:$A14)+1,"") -> 11 | B15: 11 | C15: 2022-01-04 | D15: 1 | E15: =IFERROR(INDEX(الرئيسيه!$C$4:$C$104,MATCH(D15,الرئيسيه!$B$4:$B$104,0),0),"") -> موظف 1 | F15: 609 | H15: 48 | J15: المصنع | K15: خضروات | L15: =L$3 -> 1
A16: =IF(AND(C16>=التقرير!$D$3,C16<=التقرير!$E$3,D16=التقرير!$B$3),MAX($A$4:$A15)+1,"") -> 12 | B16: 12 | C16: 2022-01-04 | D16: 1 | E16: =IFERROR(INDEX(الرئيسيه!$C$4:$C$104,MATCH(D16,الرئيسيه!$B$4:$B$104,0),0),"") -> موظف 1 | F16: 549361 | G16: 2060 | H16: 2060 | J16: عمومية | K16: بهارات وتوابل | L16: =L$4 -> 2
A17: =IF(AND(C17>=التقرير!$D$3,C17<=التقرير!$E$3,D17=التقرير!$B$3),MAX($A$4:$A16)+1,"") -> 13 | B17: 13 | C17: 2022-01-04 | D17: 1 | E17: =IFERROR(INDEX(الرئيسيه!$C$4:$C$104,MATCH(D17,الرئيسيه!$B$4:$B$104,0),0),"") -> موظف 1 | F17: 25625 | G17: 243 | H17: 243 | J17: عمومية | K17: صحون و اكياس | L17: =L$3 -> 1
A18: =IF(AND(C18>=التقرير!$D$3,C18<=التقرير!$E$3,D18=التقرير!$B$3),MAX($A$4:$A17)+1,"") -> 14 | B18: 14 | C18: 2022-01-04 | D18: 1 | E18: =IFERROR(INDEX(الرئيسيه!$C$4:$C$104,MATCH(D18,الرئيسيه!$B$4:$B$104,0),0),"") -> موظف 1 | F18: 267055 | G18: 8 | H18: 8 | J18: الهيبر | K18: فطور | L18: =L$4 -> 2
A19: =IF(AND(C19>=التقرير!$D$3,C19<=التقرير!$E$3,D19=التقرير!$B$3),MAX($A$4:$A18)+1,"") -> 15 | B19: 15 | C19: 2022-01-04 | D19: 1 | E19: =IFERROR(INDEX(الرئيسيه!$C$4:$C$104,MATCH(D19,الرئيسيه!$B$4:$B$104,0),0),"") -> موظف 1 | F19: 771523 | G19: 50 | H19: 50 | J19: عمومية | K19: فطور | L19: =L$3 -> 1
A20: =IF(AND(C20>=التقرير!$D$3,C20<=التقرير!$E$3,D20=التقرير!$B$3),MAX($A$4:$A19)+1,"") -> 16 | B20: 16 | C20: 2022-01-04 | D20: 1 | E20: =IFERROR(INDEX(الرئيسيه!$C$4:$C$104,MATCH(D20,الرئيسيه!$B$4:$B$104,0),0),"") -> موظف 1 | F20: 982329 | G20: 18 | H20: 18 | J20: عمومية | K20: فطور | L20: =L$4 -> 2
A21: =IF(AND(C21>=التقرير!$D$3,C21<=التقرير!$E$3,D21=التقرير!$B$3),MAX($A$4:$A20)+1,"") -> 17 | B21: 17 | C21: 2022-01-04 | D21: 1 | E21: =IFERROR(INDEX(الرئيسيه!$C$4:$C$104,MATCH(D21,الرئيسيه!$B$4:$B$104,0),0),"") -> موظف 1 | F21: 991781 | G21: 20 | H21: 20 | J21: عمومية | K21: فطور | L21: =L$3 -> 1
A22: =IF(AND(C22>=التقرير!$D$3,C22<=التقرير!$E$3,D22=التقرير!$B$3),MAX($A$4:$A21)+1,"") -> 18 | B22: 18 | C22: 2022-01-04 | D22: 1 | E22: =IFERROR(INDEX(الرئيسيه!$C$4:$C$104,MATCH(D22,الرئيسيه!$B$4:$B$104,0),0),"") -> موظف 1 | F22: 788283 | G22: 37 | H22: 37 | J22: عمومية | K22: غاز | L22: =L$4 -> 2
A23: =IF(AND(C23>=التقرير!$D$3,C23<=التقرير!$E$3,D23=التقرير!$B$3),MAX($A$4:$A22)+1,"") -> 19 | B23: 19 | C23: 2022-01-04 | D23: 1 | E23: =IFERROR(INDEX(الرئيسيه!$C$4:$C$104,MATCH(D23,الرئيسيه!$B$4:$B$104,0),0),"") -> موظف 1 | F23: * | I23: 5 | K23: استرجاع باقي المبلغ لابو احمد | L23: =L$3 -> 1
A24: =IF(AND(C24>=التقرير!$D$3,C24<=التقرير!$E$3,D24=التقرير!$B$3),MAX($A$4:$A23)+1,"") ->  | B24: 20 | C24: 2022-01-04 | D24: 2 | E24: =IFERROR(INDEX(الرئيسيه!$C$4:$C$104,MATCH(D24,الرئيسيه!$B$4:$B$104,0),0),"") -> موظف 2 | F24: 1119 | G24: 1420 | J24: المصنع | K24: اجرة نقل مخزون ريكسون من الباحة الى مكة | L24: =L$4 -> 2
A25: =IF(AND(C25>=التقرير!$D$3,C25<=التقرير!$E$3,D25=التقرير!$B$3),MAX($A$4:$A24)+1,"") ->  | B25: 21 | C25: 2022-01-04 | D25: 2 | E25: =IFERROR(INDEX(الرئيسيه!$C$4:$C$104,MATCH(D25,الرئيسيه!$B$4:$B$104,0),0),"") -> موظف 2 | F25: * | H25: 700 | J25: التجارية | K25: اجرة نقل مخزون ريكسون من الباحة الى مكة | L25: =L$3 -> 1
A26: =IF(AND(C26>=التقرير!$D$3,C26<=التقرير!$E$3,D26=التقرير!$B$3),MAX($A$4:$A25)+1,"") ->  | B26: 22 | C26: 2022-01-04 | D26: 2 | E26: =IFERROR(INDEX(الرئيسيه!$C$4:$C$104,MATCH(D26,الرئيسيه!$B$4:$B$104,0),0),"") -> موظف 2 | F26: * | H26: 700 | J26: التجارية | K26: اجرة نقل مخزون ريكسون من الباحة الى مكة | L26: =L$4 -> 2
A27: =IF(AND(C27>=التقرير!$D$3,C27<=التقرير!$E$3,D27=التقرير!$B$3),MAX($A$4:$A26)+1,"") ->  | B27: 23 | C27: 2022-01-04 | D27: 2 | E27: =IFERROR(INDEX(الرئيسيه!$C$4:$C$104,MATCH(D27,الرئيسيه!$B$4:$B$104,0),0),"") -> موظف 2 | F27: * | H27: 20 | J27: التجارية | K27: اجرة نقل مخزون ريكسون من الباحة الى مكة | L27: =L$3 -> 1
A28: =IF(AND(C28>=التقرير!$D$3,C28<=التقرير!$E$3,D28=التقرير!$B$3),MAX($A$4:$A27)+1,"") ->  | E28: =IFERROR(INDEX(الرئيسيه!$C$4:$C$104,MATCH(D28,الرئيسيه!$B$4:$B$104,0),0),"") ->  | L28: =L$4 -> 2
A29: =IF(AND(C29>=التقرير!$D$3,C29<=التقرير!$E$3,D29=التقرير!$B$3),MAX($A$4:$A28)+1,"") ->  | E29: =IFERROR(INDEX(الرئيسيه!$C$4:$C$104,MATCH(D29,الرئيسيه!$B$4:$B$104,0),0),"") ->  | L29: =L$3 -> 1
A30: =IF(AND(C30>=التقرير!$D$3,C30<=التقرير!$E$3,D30=التقرير!$B$3),MAX($A$4:$A29)+1,"") ->  | E30: =IFERROR(INDEX(الرئيسيه!$C$4:$C$104,MATCH(D30,الرئيسيه!$B$4:$B$104,0),0),"") ->  | L30: =L$4 -> 2
A31: =IF(AND(C31>=التقرير!$D$3,C31<=التقرير!$E$3,D31=التقرير!$B$3),MAX($A$4:$A30)+1,"") ->  | E31: =IFERROR(INDEX(الرئيسيه!$C$4:$C$104,MATCH(D31,الرئيسيه!$B$4:$B$104,0),0),"") ->  | L31: =L$3 -> 1
A32: =IF(AND(C32>=التقرير!$D$3,C32<=التقرير!$E$3,D32=التقرير!$B$3),MAX($A$4:$A31)+1,"") ->  | E32: =IFERROR(INDEX(الرئيسيه!$C$4:$C$104,MATCH(D32,الرئيسيه!$B$4:$B$104,0),0),"") ->  | L32: =L$4 -> 2
A33: =IF(AND(C33>=التقرير!$D$3,C33<=التقرير!$E$3,D33=التقرير!$B$3),MAX($A$4:$A32)+1,"") ->  | E33: =IFERROR(INDEX(الرئيسيه!$C$4:$C$104,MATCH(D33,الرئيسيه!$B$4:$B$104,0),0),"") ->  | L33: =L$3 -> 1
A34: =IF(AND(C34>=التقرير!$D$3,C34<=التقرير!$E$3,D34=التقرير!$B$3),MAX($A$4:$A33)+1,"") ->  | E34: =IFERROR(INDEX(الرئيسيه!$C$4:$C$104,MATCH(D34,الرئيسيه!$B$4:$B$104,0),0),"") ->  | L34: =L$4 -> 2
A35: =IF(AND(C35>=التقرير!$D$3,C35<=التقرير!$E$3,D35=التقرير!$B$3),MAX($A$4:$A34)+1,"") ->  | E35: =IFERROR(INDEX(الرئيسيه!$C$4:$C$104,MATCH(D35,الرئيسيه!$B$4:$B$104,0),0),"") ->  | L35: =L$3 -> 1
A36: =IF(AND(C36>=التقرير!$D$3,C36<=التقرير!$E$3,D36=التقرير!$B$3),MAX($A$4:$A35)+1,"") ->  | E36: =IFERROR(INDEX(الرئيسيه!$C$4:$C$104,MATCH(D36,الرئيسيه!$B$4:$B$104,0),0),"") ->  | L36: =L$4 -> 2
A37: =IF(AND(C37>=التقرير!$D$3,C37<=التقرير!$E$3,D37=التقرير!$B$3),MAX($A$4:$A36)+1,"") ->  | E37: =IFERROR(INDEX(الرئيسيه!$C$4:$C$104,MATCH(D37,الرئيسيه!$B$4:$B$104,0),0),"") ->  | L37: =L$3 -> 1
A38: =IF(AND(C38>=التقرير!$D$3,C38<=التقرير!$E$3,D38=التقرير!$B$3),MAX($A$4:$A37)+1,"") ->  | E38: =IFERROR(INDEX(الرئيسيه!$C$4:$C$104,MATCH(D38,الرئيسيه!$B$4:$B$104,0),0),"") ->  | L38: =L$4 -> 2
A39: =IF(AND(C39>=التقرير!$D$3,C39<=التقرير!$E$3,D39=التقرير!$B$3),MAX($A$4:$A38)+1,"") ->  | E39: =IFERROR(INDEX(الرئيسيه!$C$4:$C$104,MATCH(D39,الرئيسيه!$B$4:$B$104,0),0),"") ->  | L39: =L$3 -> 1
A40: =IF(AND(C40>=التقرير!$D$3,C40<=التقرير!$E$3,D40=التقرير!$B$3),MAX($A$4:$A39)+1,"") ->  | E40: =IFERROR(INDEX(الرئيسيه!$C$4:$C$104,MATCH(D40,الرئيسيه!$B$4:$B$104,0),0),"") ->  | L40: =L$4 -> 2
A41: =IF(AND(C41>=التقرير!$D$3,C41<=التقرير!$E$3,D41=التقرير!$B$3),MAX($A$4:$A40)+1,"") ->  | E41: =IFERROR(INDEX(الرئيسيه!$C$4:$C$104,MATCH(D41,الرئيسيه!$B$4:$B$104,0),0),"") ->  | L41: =L$3 -> 1
A42: =IF(AND(C42>=التقرير!$D$3,C42<=التقرير!$E$3,D42=التقرير!$B$3),MAX($A$4:$A41)+1,"") ->  | E42: =IFERROR(INDEX(الرئيسيه!$C$4:$C$104,MATCH(D42,الرئيسيه!$B$4:$B$104,0),0),"") ->  | L42: =L$4 -> 2
A43: =IF(AND(C43>=التقرير!$D$3,C43<=التقرير!$E$3,D43=التقرير!$B$3),MAX($A$4:$A42)+1,"") ->  | E43: =IFERROR(INDEX(الرئيسيه!$C$4:$C$104,MATCH(D43,الرئيسيه!$B$4:$B$104,0),0),"") ->  | L43: =L$3 -> 1
A44: =IF(AND(C44>=التقرير!$D$3,C44<=التقرير!$E$3,D44=التقرير!$B$3),MAX($A$4:$A43)+1,"") ->  | E44: =IFERROR(INDEX(الرئيسيه!$C$4:$C$104,MATCH(D44,الرئيسيه!$B$4:$B$104,0),0),"") ->  | L44: =L$4 -> 2
A45: =IF(AND(C45>=التقرير!$D$3,C45<=التقرير!$E$3,D45=التقرير!$B$3),MAX($A$4:$A44)+1,"") ->  | E45: =IFERROR(INDEX(الرئيسيه!$C$4:$C$104,MATCH(D45,الرئيسيه!$B$4:$B$104,0),0),"") ->  | L45: =L$3 -> 1
A46: =IF(AND(C46>=التقرير!$D$3,C46<=التقرير!$E$3,D46=التقرير!$B$3),MAX($A$4:$A45)+1,"") ->  | E46: =IFERROR(INDEX(الرئيسيه!$C$4:$C$104,MATCH(D46,الرئيسيه!$B$4:$B$104,0),0),"") ->  | L46: =L$4 -> 2
A47: =IF(AND(C47>=التقرير!$D$3,C47<=التقرير!$E$3,D47=التقرير!$B$3),MAX($A$4:$A46)+1,"") ->  | E47: =IFERROR(INDEX(الرئيسيه!$C$4:$C$104,MATCH(D47,الرئيسيه!$B$4:$B$104,0),0),"") ->  | L47: =L$3 -> 1
A48: =IF(AND(C48>=التقرير!$D$3,C48<=التقرير!$E$3,D48=التقرير!$B$3),MAX($A$4:$A47)+1,"") ->  | E48: =IFERROR(INDEX(الرئيسيه!$C$4:$C$104,MATCH(D48,الرئيسيه!$B$4:$B$104,0),0),"") ->  | L48: =L$4 -> 2
A49: =IF(AND(C49>=التقرير!$D$3,C49<=التقرير!$E$3,D49=التقرير!$B$3),MAX($A$4:$A48)+1,"") ->  | E49: =IFERROR(INDEX(الرئيسيه!$C$4:$C$104,MATCH(D49,الرئيسيه!$B$4:$B$104,0),0),"") ->  | L49: =L$3 -> 1
A50: =IF(AND(C50>=التقرير!$D$3,C50<=التقرير!$E$3,D50=التقرير!$B$3),MAX($A$4:$A49)+1,"") ->  | E50: =IFERROR(INDEX(الرئيسيه!$C$4:$C$104,MATCH(D50,الرئيسيه!$B$4:$B$104,0),0),"") ->  | L50: =L$4 -> 2
A51: =IF(AND(C51>=التقرير!$D$3,C51<=التقرير!$E$3,D51=التقرير!$B$3),MAX($A$4:$A50)+1,"") ->  | E51: =IFERROR(INDEX(الرئيسيه!$C$4:$C$104,MATCH(D51,الرئيسيه!$B$4:$B$104,0),0),"") ->  | L51: =L$3 -> 1
A52: =IF(AND(C52>=التقرير!$D$3,C52<=التقرير!$E$3,D52=التقرير!$B$3),MAX($A$4:$A51)+1,"") ->  | E52: =IFERROR(INDEX(الرئيسيه!$C$4:$C$104,MATCH(D52,الرئيسيه!$B$4:$B$104,0),0),"") ->  | L52: =L$4 -> 2
A53: =IF(AND(C53>=التقرير!$D$3,C53<=التقرير!$E$3,D53=التقرير!$B$3),MAX($A$4:$A52)+1,"") ->  | E53: =IFERROR(INDEX(الرئيسيه!$C$4:$C$104,MATCH(D53,الرئيسيه!$B$4:$B$104,0),0),"") ->  | L53: =L$3 -> 1
A54: =IF(AND(C54>=التقرير!$D$3,C54<=التقرير!$E$3,D54=التقرير!$B$3),MAX($A$4:$A53)+1,"") ->  | E54: =IFERROR(INDEX(الرئيسيه!$C$4:$C$104,MATCH(D54,الرئيسيه!$B$4:$B$104,0),0),"") ->  | L54: =L$4 -> 2
A55: =IF(AND(C55>=التقرير!$D$3,C55<=التقرير!$E$3,D55=التقرير!$B$3),MAX($A$4:$A54)+1,"") ->  | E55: =IFERROR(INDEX(الرئيسيه!$C$4:$C$104,MATCH(D55,الرئيسيه!$B$4:$B$104,0),0),"") ->  | L55: =L$3 -> 1
A56: =IF(AND(C56>=التقرير!$D$3,C56<=التقرير!$E$3,D56=التقرير!$B$3),MAX($A$4:$A55)+1,"") ->  | E56: =IFERROR(INDEX(الرئيسيه!$C$4:$C$104,MATCH(D56,الرئيسيه!$B$4:$B$104,0),0),"") ->  | L56: =L$4 -> 2
A57: =IF(AND(C57>=التقرير!$D$3,C57<=التقرير!$E$3,D57=التقرير!$B$3),MAX($A$4:$A56)+1,"") ->  | E57: =IFERROR(INDEX(الرئيسيه!$C$4:$C$104,MATCH(D57,الرئيسيه!$B$4:$B$104,0),0),"") ->  | L57: =L$3 -> 1
A58: =IF(AND(C58>=التقرير!$D$3,C58<=التقرير!$E$3,D58=التقرير!$B$3),MAX($A$4:$A57)+1,"") ->  | E58: =IFERROR(INDEX(الرئيسيه!$C$4:$C$104,MATCH(D58,الرئيسيه!$B$4:$B$104,0),0),"") ->  | L58: =L$4 -> 2
A59: =IF(AND(C59>=التقرير!$D$3,C59<=التقرير!$E$3,D59=التقرير!$B$3),MAX($A$4:$A58)+1,"") ->  | E59: =IFERROR(INDEX(الرئيسيه!$C$4:$C$104,MATCH(D59,الرئيسيه!$B$4:$B$104,0),0),"") ->  | L59: =L$3 -> 1
A60: =IF(AND(C60>=التقرير!$D$3,C60<=التقرير!$E$3,D60=التقرير!$B$3),MAX($A$4:$A59)+1,"") ->  | E60: =IFERROR(INDEX(الرئيسيه!$C$4:$C$104,MATCH(D60,الرئيسيه!$B$4:$B$104,0),0),"") ->  | L60: =L$4 -> 2
A61: =IF(AND(C61>=التقرير!$D$3,C61<=التقرير!$E$3,D61=التقرير!$B$3),MAX($A$4:$A60)+1,"") ->  | E61: =IFERROR(INDEX(الرئيسيه!$C$4:$C$104,MATCH(D61,الرئيسيه!$B$4:$B$104,0),0),"") ->  | L61: =L$3 -> 1
A62: =IF(AND(C62>=التقرير!$D$3,C62<=التقرير!$E$3,D62=التقرير!$B$3),MAX($A$4:$A61)+1,"") ->  | E62: =IFERROR(INDEX(الرئيسيه!$C$4:$C$104,MATCH(D62,الرئيسيه!$B$4:$B$104,0),0),"") ->  | L62: =L$4 -> 2
A63: =IF(AND(C63>=التقرير!$D$3,C63<=التقرير!$E$3,D63=التقرير!$B$3),MAX($A$4:$A62)+1,"") ->  | E63: =IFERROR(INDEX(الرئيسيه!$C$4:$C$104,MATCH(D63,الرئيسيه!$B$4:$B$104,0),0),"") ->  | L63: =L$3 -> 1
A64: =IF(AND(C64>=التقرير!$D$3,C64<=التقرير!$E$3,D64=التقرير!$B$3),MAX($A$4:$A63)+1,"") ->  | E64: =IFERROR(INDEX(الرئيسيه!$C$4:$C$104,MATCH(D64,الرئيسيه!$B$4:$B$104,0),0),"") ->  | L64: =L$4 -> 2
A65: =IF(AND(C65>=التقرير!$D$3,C65<=التقرير!$E$3,D65=التقرير!$B$3),MAX($A$4:$A64)+1,"") ->  | E65: =IFERROR(INDEX(الرئيسيه!$C$4:$C$104,MATCH(D65,الرئيسيه!$B$4:$B$104,0),0),"") ->  | L65: =L$3 -> 1
A66: =IF(AND(C66>=التقرير!$D$3,C66<=التقرير!$E$3,D66=التقرير!$B$3),MAX($A$4:$A65)+1,"") ->  | E66: =IFERROR(INDEX(الرئيسيه!$C$4:$C$104,MATCH(D66,الرئيسيه!$B$4:$B$104,0),0),"") ->  | L66: =L$4 -> 2
A67: =IF(AND(C67>=التقرير!$D$3,C67<=التقرير!$E$3,D67=التقرير!$B$3),MAX($A$4:$A66)+1,"") ->  | E67: =IFERROR(INDEX(الرئيسيه!$C$4:$C$104,MATCH(D67,الرئيسيه!$B$4:$B$104,0),0),"") ->  | L67: =L$3 -> 1
A68: =IF(AND(C68>=التقرير!$D$3,C68<=التقرير!$E$3,D68=التقرير!$B$3),MAX($A$4:$A67)+1,"") ->  | E68: =IFERROR(INDEX(الرئيسيه!$C$4:$C$104,MATCH(D68,الرئيسيه!$B$4:$B$104,0),0),"") ->  | L68: =L$4 -> 2
A69: =IF(AND(C69>=التقرير!$D$3,C69<=التقرير!$E$3,D69=التقرير!$B$3),MAX($A$4:$A68)+1,"") ->  | E69: =IFERROR(INDEX(الرئيسيه!$C$4:$C$104,MATCH(D69,الرئيسيه!$B$4:$B$104,0),0),"") ->  | L69: =L$3 -> 1
A70: =IF(AND(C70>=التقرير!$D$3,C70<=التقرير!$E$3,D70=التقرير!$B$3),MAX($A$4:$A69)+1,"") ->  | B70: =IF(C70<>"",ROW(C66),"") ->  | E70: =IFERROR(INDEX(الرئيسيه!$C$4:$C$104,MATCH(D70,الرئيسيه!$B$4:$B$104,0),0),"") ->  | L70: =L$4 -> 2
A71: =IF(AND(C71>=التقرير!$D$3,C71<=التقرير!$E$3,D71=التقرير!$B$3),MAX($A$4:$A70)+1,"") ->  | E71: =IFERROR(INDEX(الرئيسيه!$C$4:$C$104,MATCH(D71,الرئيسيه!$B$4:$B$104,0),0),"") ->  | L71: =L$3 -> 1
A72: =IF(AND(C72>=التقرير!$D$3,C72<=التقرير!$E$3,D72=التقرير!$B$3),MAX($A$4:$A71)+1,"") ->  | E72: =IFERROR(INDEX(الرئيسيه!$C$4:$C$104,MATCH(D72,الرئيسيه!$B$4:$B$104,0),0),"") ->  | L72: =L$4 -> 2
A73: =IF(AND(C73>=التقرير!$D$3,C73<=التقرير!$E$3,D73=التقرير!$B$3),MAX($A$4:$A72)+1,"") ->  | E73: =IFERROR(INDEX(الرئيسيه!$C$4:$C$104,MATCH(D73,الرئيسيه!$B$4:$B$104,0),0),"") ->  | L73: =L$3 -> 1
A74: =IF(AND(C74>=التقرير!$D$3,C74<=التقرير!$E$3,D74=التقرير!$B$3),MAX($A$4:$A73)+1,"") ->  | E74: =IFERROR(INDEX(الرئيسيه!$C$4:$C$104,MATCH(D74,الرئيسيه!$B$4:$B$104,0),0),"") ->  | L74: =L$4 -> 2
A75: =IF(AND(C75>=التقرير!$D$3,C75<=التقرير!$E$3,D75=التقرير!$B$3),MAX($A$4:$A74)+1,"") ->  | E75: =IFERROR(INDEX(الرئيسيه!$C$4:$C$104,MATCH(D75,الرئيسيه!$B$4:$B$104,0),0),"") ->  | L75: =L$3 -> 1
A76: =IF(AND(C76>=التقرير!$D$3,C76<=التقرير!$E$3,D76=التقرير!$B$3),MAX($A$4:$A75)+1,"") ->  | E76: =IFERROR(INDEX(الرئيسيه!$C$4:$C$104,MATCH(D76,الرئيسيه!$B$4:$B$104,0),0),"") ->  | L76: =L$4 -> 2
A77: =IF(AND(C77>=التقرير!$D$3,C77<=التقرير!$E$3,D77=التقرير!$B$3),MAX($A$4:$A76)+1,"") ->  | E77: =IFERROR(INDEX(الرئيسيه!$C$4:$C$104,MATCH(D77,الرئيسيه!$B$4:$B$104,0),0),"") ->  | L77: =L$3 -> 1
A78: =IF(AND(C78>=التقرير!$D$3,C78<=التقرير!$E$3,D78=التقرير!$B$3),MAX($A$4:$A77)+1,"") ->  | E78: =IFERROR(INDEX(الرئيسيه!$C$4:$C$104,MATCH(D78,الرئيسيه!$B$4:$B$104,0),0),"") ->  | L78: =L$4 -> 2
A79: =IF(AND(C79>=التقرير!$D$3,C79<=التقرير!$E$3,D79=التقرير!$B$3),MAX($A$4:$A78)+1,"") ->  | E79: =IFERROR(INDEX(الرئيسيه!$C$4:$C$104,MATCH(D79,الرئيسيه!$B$4:$B$104,0),0),"") ->  | L79: =L$3 -> 1
A80: =IF(AND(C80>=التقرير!$D$3,C80<=التقرير!$E$3,D80=التقرير!$B$3),MAX($A$4:$A79)+1,"") ->  | E80: =IFERROR(INDEX(الرئيسيه!$C$4:$C$104,MATCH(D80,الرئيسيه!$B$4:$B$104,0),0),"") ->  | L80: =L$4 -> 2
A81: =IF(AND(C81>=التقرير!$D$3,C81<=التقرير!$E$3,D81=التقرير!$B$3),MAX($A$4:$A80)+1,"") ->  | E81: =IFERROR(INDEX(الرئيسيه!$C$4:$C$104,MATCH(D81,الرئيسيه!$B$4:$B$104,0),0),"") ->  | L81: =L$3 -> 1
A82: =IF(AND(C82>=التقرير!$D$3,C82<=التقرير!$E$3,D82=التقرير!$B$3),MAX($A$4:$A81)+1,"") ->  | E82: =IFERROR(INDEX(الرئيسيه!$C$4:$C$104,MATCH(D82,الرئيسيه!$B$4:$B$104,0),0),"") ->  | L82: =L$4 -> 2
A83: =IF(AND(C83>=التقرير!$D$3,C83<=التقرير!$E$3,D83=التقرير!$B$3),MAX($A$4:$A82)+1,"") ->  | E83: =IFERROR(INDEX(الرئيسيه!$C$4:$C$104,MATCH(D83,الرئيسيه!$B$4:$B$104,0),0),"") ->  | L83: =L$3 -> 1
A84: =IF(AND(C84>=التقرير!$D$3,C84<=التقرير!$E$3,D84=التقرير!$B$3),MAX($A$4:$A83)+1,"") ->  | E84: =IFERROR(INDEX(الرئيسيه!$C$4:$C$104,MATCH(D84,الرئيسيه!$B$4:$B$104,0),0),"") ->  | L84: =L$4 -> 2
A85: =IF(AND(C85>=التقرير!$D$3,C85<=التقرير!$E$3,D85=التقرير!$B$3),MAX($A$4:$A84)+1,"") ->  | E85: =IFERROR(INDEX(الرئيسيه!$C$4:$C$104,MATCH(D85,الرئيسيه!$B$4:$B$104,0),0),"") ->  | L85: =L$3 -> 1
A86: =IF(AND(C86>=التقرير!$D$3,C86<=التقرير!$E$3,D86=التقرير!$B$3),MAX($A$4:$A85)+1,"") ->  | E86: =IFERROR(INDEX(الرئيسيه!$C$4:$C$104,MATCH(D86,الرئيسيه!$B$4:$B$104,0),0),"") ->  | L86: =L$4 -> 2
A87: =IF(AND(C87>=التقرير!$D$3,C87<=التقرير!$E$3,D87=التقرير!$B$3),MAX($A$4:$A86)+1,"") ->  | E87: =IFERROR(INDEX(الرئيسيه!$C$4:$C$104,MATCH(D87,الرئيسيه!$B$4:$B$104,0),0),"") ->  | L87: =L$3 -> 1
A88: =IF(AND(C88>=التقرير!$D$3,C88<=التقرير!$E$3,D88=التقرير!$B$3),MAX($A$4:$A87)+1,"") ->  | E88: =IFERROR(INDEX(الرئيسيه!$C$4:$C$104,MATCH(D88,الرئيسيه!$B$4:$B$104,0),0),"") ->  | L88: =L$4 -> 2
A89: =IF(AND(C89>=التقرير!$D$3,C89<=التقرير!$E$3,D89=التقرير!$B$3),MAX($A$4:$A88)+1,"") ->  | E89: =IFERROR(INDEX(الرئيسيه!$C$4:$C$104,MATCH(D89,الرئيسيه!$B$4:$B$104,0),0),"") ->  | L89: =L$3 -> 1
A90: =IF(AND(C90>=التقرير!$D$3,C90<=التقرير!$E$3,D90=التقرير!$B$3),MAX($A$4:$A89)+1,"") ->  | E90: =IFERROR(INDEX(الرئيسيه!$C$4:$C$104,MATCH(D90,الرئيسيه!$B$4:$B$104,0),0),"") ->  | L90: =L$4 -> 2
A91: =IF(AND(C91>=التقرير!$D$3,C91<=التقرير!$E$3,D91=التقرير!$B$3),MAX($A$4:$A90)+1,"") ->  | E91: =IFERROR(INDEX(الرئيسيه!$C$4:$C$104,MATCH(D91,الرئيسيه!$B$4:$B$104,0),0),"") ->  | L91: =L$3 -> 1
A92: =IF(AND(C92>=التقرير!$D$3,C92<=التقرير!$E$3,D92=التقرير!$B$3),MAX($A$4:$A91)+1,"") ->  | E92: =IFERROR(INDEX(الرئيسيه!$C$4:$C$104,MATCH(D92,الرئيسيه!$B$4:$B$104,0),0),"") ->  | L92: =L$4 -> 2
A93: =IF(AND(C93>=التقرير!$D$3,C93<=التقرير!$E$3,D93=التقرير!$B$3),MAX($A$4:$A92)+1,"") ->  | E93: =IFERROR(INDEX(الرئيسيه!$C$4:$C$104,MATCH(D93,الرئيسيه!$B$4:$B$104,0),0),"") ->  | L93: =L$3 -> 1
A94: =IF(AND(C94>=التقرير!$D$3,C94<=التقرير!$E$3,D94=التقرير!$B$3),MAX($A$4:$A93)+1,"") ->  | E94: =IFERROR(INDEX(الرئيسيه!$C$4:$C$104,MATCH(D94,الرئيسيه!$B$4:$B$104,0),0),"") ->  | L94: =L$4 -> 2
A95: =IF(AND(C95>=التقرير!$D$3,C95<=التقرير!$E$3,D95=التقرير!$B$3),MAX($A$4:$A94)+1,"") ->  | E95: =IFERROR(INDEX(الرئيسيه!$C$4:$C$104,MATCH(D95,الرئيسيه!$B$4:$B$104,0),0),"") ->  | L95: =L$3 -> 1
A96: =IF(AND(C96>=التقرير!$D$3,C96<=التقرير!$E$3,D96=التقرير!$B$3),MAX($A$4:$A95)+1,"") ->  | E96: =IFERROR(INDEX(الرئيسيه!$C$4:$C$104,MATCH(D96,الرئيسيه!$B$4:$B$104,0),0),"") ->  | L96: =L$4 -> 2
A97: =IF(AND(C97>=التقرير!$D$3,C97<=التقرير!$E$3,D97=التقرير!$B$3),MAX($A$4:$A96)+1,"") ->  | E97: =IFERROR(INDEX(الرئيسيه!$C$4:$C$104,MATCH(D97,الرئيسيه!$B$4:$B$104,0),0),"") ->  | L97: =L$3 -> 1
A98: =IF(AND(C98>=التقرير!$D$3,C98<=التقرير!$E$3,D98=التقرير!$B$3),MAX($A$4:$A97)+1,"") ->  | E98: =IFERROR(INDEX(الرئيسيه!$C$4:$C$104,MATCH(D98,الرئيسيه!$B$4:$B$104,0),0),"") ->  | L98: =L$4 -> 2
A99: =IF(AND(C99>=التقرير!$D$3,C99<=التقرير!$E$3,D99=التقرير!$B$3),MAX($A$4:$A98)+1,"") ->  | E99: =IFERROR(INDEX(الرئيسيه!$C$4:$C$104,MATCH(D99,الرئيسيه!$B$4:$B$104,0),0),"") ->  | L99: =L$3 -> 1
A100: =IF(AND(C100>=التقرير!$D$3,C100<=التقرير!$E$3,D100=التقرير!$B$3),MAX($A$4:$A99)+1,"") ->  | E100: =IFERROR(INDEX(الرئيسيه!$C$4:$C$104,MATCH(D100,الرئيسيه!$B$4:$B$104,0),0),"") ->  | L100: =L$4 -> 2
A101: =IF(AND(C101>=التقرير!$D$3,C101<=التقرير!$E$3,D101=التقرير!$B$3),MAX($A$4:$A100)+1,"") ->  | E101: =IFERROR(INDEX(الرئيسيه!$C$4:$C$104,MATCH(D101,الرئيسيه!$B$4:$B$104,0),0),"") ->  | L101: =L$3 -> 1
A102: =IF(AND(C102>=التقرير!$D$3,C102<=التقرير!$E$3,D102=التقرير!$B$3),MAX($A$4:$A101)+1,"") ->  | E102: =IFERROR(INDEX(الرئيسيه!$C$4:$C$104,MATCH(D102,الرئيسيه!$B$4:$B$104,0),0),"") ->  | L102: =L$4 -> 2
A103: =IF(AND(C103>=التقرير!$D$3,C103<=التقرير!$E$3,D103=التقرير!$B$3),MAX($A$4:$A102)+1,"") ->  | E103: =IFERROR(INDEX(الرئيسيه!$C$4:$C$104,MATCH(D103,الرئيسيه!$B$4:$B$104,0),0),"") ->  | L103: =L$3 -> 1
A104: =IF(AND(C104>=التقرير!$D$3,C104<=التقرير!$E$3,D104=التقرير!$B$3),MAX($A$4:$A103)+1,"") ->  | E104: =IFERROR(INDEX(الرئيسيه!$C$4:$C$104,MATCH(D104,الرئيسيه!$B$4:$B$104,0),0),"") ->  | L104: =L$4 -> 2
A105: =IF(AND(C105>=التقرير!$D$3,C105<=التقرير!$E$3,D105=التقرير!$B$3),MAX($A$4:$A104)+1,"") ->  | E105: =IFERROR(INDEX(الرئيسيه!$C$4:$C$104,MATCH(D105,الرئيسيه!$B$4:$B$104,0),0),"") ->  | L105: =L$3 -> 1
A106: =IF(AND(C106>=التقرير!$D$3,C106<=التقرير!$E$3,D106=التقرير!$B$3),MAX($A$4:$A105)+1,"") ->  | E106: =IFERROR(INDEX(الرئيسيه!$C$4:$C$104,MATCH(D106,الرئيسيه!$B$4:$B$104,0),0),"") ->  | L106: =L$4 -> 2
A107: =IF(AND(C107>=التقرير!$D$3,C107<=التقرير!$E$3,D107=التقرير!$B$3),MAX($A$4:$A106)+1,"") ->  | E107: =IFERROR(INDEX(الرئيسيه!$C$4:$C$104,MATCH(D107,الرئيسيه!$B$4:$B$104,0),0),"") ->  | L107: =L$3 -> 1
A108: =IF(AND(C108>=التقرير!$D$3,C108<=التقرير!$E$3,D108=التقرير!$B$3),MAX($A$4:$A107)+1,"") ->  | E108: =IFERROR(INDEX(الرئيسيه!$C$4:$C$104,MATCH(D108,الرئيسيه!$B$4:$B$104,0),0),"") ->  | L108: =L$4 -> 2
A109: =IF(AND(C109>=التقرير!$D$3,C109<=التقرير!$E$3,D109=التقرير!$B$3),MAX($A$4:$A108)+1,"") ->  | E109: =IFERROR(INDEX(الرئيسيه!$C$4:$C$104,MATCH(D109,الرئيسيه!$B$4:$B$104,0),0),"") ->  | L109: =L$3 -> 1
A110: =IF(AND(C110>=التقرير!$D$3,C110<=التقرير!$E$3,D110=التقرير!$B$3),MAX($A$4:$A109)+1,"") ->  | E110: =IFERROR(INDEX(الرئيسيه!$C$4:$C$104,MATCH(D110,الرئيسيه!$B$4:$B$104,0),0),"") ->  | L110: =L$4 -> 2
A111: =IF(AND(C111>=التقرير!$D$3,C111<=التقرير!$E$3,D111=التقرير!$B$3),MAX($A$4:$A110)+1,"") ->  | E111: =IFERROR(INDEX(الرئيسيه!$C$4:$C$104,MATCH(D111,الرئيسيه!$B$4:$B$104,0),0),"") ->  | L111: =L$3 -> 1
A112: =IF(AND(C112>=التقرير!$D$3,C112<=التقرير!$E$3,D112=التقرير!$B$3),MAX($A$4:$A111)+1,"") ->  | E112: =IFERROR(INDEX(الرئيسيه!$C$4:$C$104,MATCH(D112,الرئيسيه!$B$4:$B$104,0),0),"") ->  | L112: =L$4 -> 2
A113: =IF(AND(C113>=التقرير!$D$3,C113<=التقرير!$E$3,D113=التقرير!$B$3),MAX($A$4:$A112)+1,"") ->  | E113: =IFERROR(INDEX(الرئيسيه!$C$4:$C$104,MATCH(D113,الرئيسيه!$B$4:$B$104,0),0),"") ->  | L113: =L$3 -> 1
A114: =IF(AND(C114>=التقرير!$D$3,C114<=التقرير!$E$3,D114=التقرير!$B$3),MAX($A$4:$A113)+1,"") ->  | E114: =IFERROR(INDEX(الرئيسيه!$C$4:$C$104,MATCH(D114,الرئيسيه!$B$4:$B$104,0),0),"") ->  | L114: =L$4 -> 2
A115: =IF(AND(C115>=التقرير!$D$3,C115<=التقرير!$E$3,D115=التقرير!$B$3),MAX($A$4:$A114)+1,"") ->  | E115: =IFERROR(INDEX(الرئيسيه!$C$4:$C$104,MATCH(D115,الرئيسيه!$B$4:$B$104,0),0),"") ->  | L115: =L$3 -> 1
A116: =IF(AND(C116>=التقرير!$D$3,C116<=التقرير!$E$3,D116=التقرير!$B$3),MAX($A$4:$A115)+1,"") ->  | E116: =IFERROR(INDEX(الرئيسيه!$C$4:$C$104,MATCH(D116,الرئيسيه!$B$4:$B$104,0),0),"") ->  | L116: =L$4 -> 2
A117: =IF(AND(C117>=التقرير!$D$3,C117<=التقرير!$E$3,D117=التقرير!$B$3),MAX($A$4:$A116)+1,"") ->  | E117: =IFERROR(INDEX(الرئيسيه!$C$4:$C$104,MATCH(D117,الرئيسيه!$B$4:$B$104,0),0),"") ->  | L117: =L$3 -> 1
A118: =IF(AND(C118>=التقرير!$D$3,C118<=التقرير!$E$3,D118=التقرير!$B$3),MAX($A$4:$A117)+1,"") ->  | E118: =IFERROR(INDEX(الرئيسيه!$C$4:$C$104,MATCH(D118,الرئيسيه!$B$4:$B$104,0),0),"") ->  | L118: =L$4 -> 2
A119: =IF(AND(C119>=التقرير!$D$3,C119<=التقرير!$E$3,D119=التقرير!$B$3),MAX($A$4:$A118)+1,"") ->  | E119: =IFERROR(INDEX(الرئيسيه!$C$4:$C$104,MATCH(D119,الرئيسيه!$B$4:$B$104,0),0),"") ->  | L119: =L$3 -> 1
A120: =IF(AND(C120>=التقرير!$D$3,C120<=التقرير!$E$3,D120=التقرير!$B$3),MAX($A$4:$A119)+1,"") ->  | E120: =IFERROR(INDEX(الرئيسيه!$C$4:$C$104,MATCH(D120,الرئيسيه!$B$4:$B$104,0),0),"") ->  | L120: =L$4 -> 2
A121: =IF(AND(C121>=التقرير!$D$3,C121<=التقرير!$E$3,D121=التقرير!$B$3),MAX($A$4:$A120)+1,"") ->  | E121: =IFERROR(INDEX(الرئيسيه!$C$4:$C$104,MATCH(D121,الرئيسيه!$B$4:$B$104,0),0),"") ->  | L121: =L$3 -> 1
A122: =IF(AND(C122>=التقرير!$D$3,C122<=التقرير!$E$3,D122=التقرير!$B$3),MAX($A$4:$A121)+1,"") ->  | E122: =IFERROR(INDEX(الرئيسيه!$C$4:$C$104,MATCH(D122,الرئيسيه!$B$4:$B$104,0),0),"") ->  | L122: =L$4 -> 2
A123: =IF(AND(C123>=التقرير!$D$3,C123<=التقرير!$E$3,D123=التقرير!$B$3),MAX($A$4:$A122)+1,"") ->  | E123: =IFERROR(INDEX(الرئيسيه!$C$4:$C$104,MATCH(D123,الرئيسيه!$B$4:$B$104,0),0),"") ->  | L123: =L$3 -> 1
A124: =IF(AND(C124>=التقرير!$D$3,C124<=التقرير!$E$3,D124=التقرير!$B$3),MAX($A$4:$A123)+1,"") ->  | E124: =IFERROR(INDEX(الرئيسيه!$C$4:$C$104,MATCH(D124,الرئيسيه!$B$4:$B$104,0),0),"") ->  | L124: =L$4 -> 2
A125: =IF(AND(C125>=التقرير!$D$3,C125<=التقرير!$E$3,D125=التقرير!$B$3),MAX($A$4:$A124)+1,"") ->  | E125: =IFERROR(INDEX(الرئيسيه!$C$4:$C$104,MATCH(D125,الرئيسيه!$B$4:$B$104,0),0),"") ->  | L125: =L$3 -> 1
A126: =IF(AND(C126>=التقرير!$D$3,C126<=التقرير!$E$3,D126=التقرير!$B$3),MAX($A$4:$A125)+1,"") ->  | E126: =IFERROR(INDEX(الرئيسيه!$C$4:$C$104,MATCH(D126,الرئيسيه!$B$4:$B$104,0),0),"") ->  | L126: =L$4 -> 2
A127: =IF(AND(C127>=التقرير!$D$3,C127<=التقرير!$E$3,D127=التقرير!$B$3),MAX($A$4:$A126)+1,"") ->  | E127: =IFERROR(INDEX(الرئيسيه!$C$4:$C$104,MATCH(D127,الرئيسيه!$B$4:$B$104,0),0),"") ->  | L127: =L$3 -> 1
A128: =IF(AND(C128>=التقرير!$D$3,C128<=التقرير!$E$3,D128=التقرير!$B$3),MAX($A$4:$A127)+1,"") ->  | E128: =IFERROR(INDEX(الرئيسيه!$C$4:$C$104,MATCH(D128,الرئيسيه!$B$4:$B$104,0),0),"") ->  | L128: =L$4 -> 2
A129: =IF(AND(C129>=التقرير!$D$3,C129<=التقرير!$E$3,D129=التقرير!$B$3),MAX($A$4:$A128)+1,"") ->  | E129: =IFERROR(INDEX(الرئيسيه!$C$4:$C$104,MATCH(D129,الرئيسيه!$B$4:$B$104,0),0),"") ->  | L129: =L$3 -> 1
A130: =IF(AND(C130>=التقرير!$D$3,C130<=التقرير!$E$3,D130=التقرير!$B$3),MAX($A$4:$A129)+1,"") ->  | E130: =IFERROR(INDEX(الرئيسيه!$C$4:$C$104,MATCH(D130,الرئيسيه!$B$4:$B$104,0),0),"") ->  | L130: =L$4 -> 2
A131: =IF(AND(C131>=التقرير!$D$3,C131<=التقرير!$E$3,D131=التقرير!$B$3),MAX($A$4:$A130)+1,"") ->  | E131: =IFERROR(INDEX(الرئيسيه!$C$4:$C$104,MATCH(D131,الرئيسيه!$B$4:$B$104,0),0),"") ->  | L131: =L$3 -> 1
A132: =IF(AND(C132>=التقرير!$D$3,C132<=التقرير!$E$3,D132=التقرير!$B$3),MAX($A$4:$A131)+1,"") ->  | E132: =IFERROR(INDEX(الرئيسيه!$C$4:$C$104,MATCH(D132,الرئيسيه!$B$4:$B$104,0),0),"") ->  | L132: =L$4 -> 2
A133: =IF(AND(C133>=التقرير!$D$3,C133<=التقرير!$E$3,D133=التقرير!$B$3),MAX($A$4:$A132)+1,"") ->  | E133: =IFERROR(INDEX(الرئيسيه!$C$4:$C$104,MATCH(D133,الرئيسيه!$B$4:$B$104,0),0),"") ->  | L133: =L$3 -> 1
A134: =IF(AND(C134>=التقرير!$D$3,C134<=التقرير!$E$3,D134=التقرير!$B$3),MAX($A$4:$A133)+1,"") ->  | B134: =IF(C134<>"",ROW(C130),"") ->  | E134: =IFERROR(INDEX(الرئيسيه!$C$4:$C$104,MATCH(D134,الرئيسيه!$B$4:$B$104,0),0),"") ->  | L134: =L$4 -> 2
A135: =IF(AND(C135>=التقرير!$D$3,C135<=التقرير!$E$3,D135=التقرير!$B$3),MAX($A$4:$A134)+1,"") ->  | E135: =IFERROR(INDEX(الرئيسيه!$C$4:$C$104,MATCH(D135,الرئيسيه!$B$4:$B$104,0),0),"") ->  | L135: =L$3 -> 1
A136: =IF(AND(C136>=التقرير!$D$3,C136<=التقرير!$E$3,D136=التقرير!$B$3),MAX($A$4:$A135)+1,"") ->  | E136: =IFERROR(INDEX(الرئيسيه!$C$4:$C$104,MATCH(D136,الرئيسيه!$B$4:$B$104,0),0),"") ->  | L136: =L$4 -> 2
A137: =IF(AND(C137>=التقرير!$D$3,C137<=التقرير!$E$3,D137=التقرير!$B$3),MAX($A$4:$A136)+1,"") ->  | E137: =IFERROR(INDEX(الرئيسيه!$C$4:$C$104,MATCH(D137,الرئيسيه!$B$4:$B$104,0),0),"") ->  | L137: =L$3 -> 1
A138: =IF(AND(C138>=التقرير!$D$3,C138<=التقرير!$E$3,D138=التقرير!$B$3),MAX($A$4:$A137)+1,"") ->  | E138: =IFERROR(INDEX(الرئيسيه!$C$4:$C$104,MATCH(D138,الرئيسيه!$B$4:$B$104,0),0),"") ->  | L138: =L$4 -> 2
A139: =IF(AND(C139>=التقرير!$D$3,C139<=التقرير!$E$3,D139=التقرير!$B$3),MAX($A$4:$A138)+1,"") ->  | E139: =IFERROR(INDEX(الرئيسيه!$C$4:$C$104,MATCH(D139,الرئيسيه!$B$4:$B$104,0),0),"") ->  | L139: =L$3 -> 1
A140: =IF(AND(C140>=التقرير!$D$3,C140<=التقرير!$E$3,D140=التقرير!$B$3),MAX($A$4:$A139)+1,"") ->  | E140: =IFERROR(INDEX(الرئيسيه!$C$4:$C$104,MATCH(D140,الرئيسيه!$B$4:$B$104,0),0),"") ->  | L140: =L$4 -> 2
A141: =IF(AND(C141>=التقرير!$D$3,C141<=التقرير!$E$3,D141=التقرير!$B$3),MAX($A$4:$A140)+1,"") ->  | E141: =IFERROR(INDEX(الرئيسيه!$C$4:$C$104,MATCH(D141,الرئيسيه!$B$4:$B$104,0),0),"") ->  | L141: =L$3 -> 1
A142: =IF(AND(C142>=التقرير!$D$3,C142<=التقرير!$E$3,D142=التقرير!$B$3),MAX($A$4:$A141)+1,"") ->  | E142: =IFERROR(INDEX(الرئيسيه!$C$4:$C$104,MATCH(D142,الرئيسيه!$B$4:$B$104,0),0),"") ->  | L142: =L$4 -> 2
A143: =IF(AND(C143>=التقرير!$D$3,C143<=التقرير!$E$3,D143=التقرير!$B$3),MAX($A$4:$A142)+1,"") ->  | E143: =IFERROR(INDEX(الرئيسيه!$C$4:$C$104,MATCH(D143,الرئيسيه!$B$4:$B$104,0),0),"") ->  | L143: =L$3 -> 1
A144: =IF(AND(C144>=التقرير!$D$3,C144<=التقرير!$E$3,D144=التقرير!$B$3),MAX($A$4:$A143)+1,"") ->  | E144: =IFERROR(INDEX(الرئيسيه!$C$4:$C$104,MATCH(D144,الرئيسيه!$B$4:$B$104,0),0),"") ->  | L144: =L$4 -> 2
A145: =IF(AND(C145>=التقرير!$D$3,C145<=التقرير!$E$3,D145=التقرير!$B$3),MAX($A$4:$A144)+1,"") ->  | E145: =IFERROR(INDEX(الرئيسيه!$C$4:$C$104,MATCH(D145,الرئيسيه!$B$4:$B$104,0),0),"") ->  | L145: =L$3 -> 1
A146: =IF(AND(C146>=التقرير!$D$3,C146<=التقرير!$E$3,D146=التقرير!$B$3),MAX($A$4:$A145)+1,"") ->  | E146: =IFERROR(INDEX(الرئيسيه!$C$4:$C$104,MATCH(D146,الرئيسيه!$B$4:$B$104,0),0),"") ->  | L146: =L$4 -> 2
A147: =IF(AND(C147>=التقرير!$D$3,C147<=التقرير!$E$3,D147=التقرير!$B$3),MAX($A$4:$A146)+1,"") ->  | E147: =IFERROR(INDEX(الرئيسيه!$C$4:$C$104,MATCH(D147,الرئيسيه!$B$4:$B$104,0),0),"") ->  | L147: =L$3 -> 1
A148: =IF(AND(C148>=التقرير!$D$3,C148<=التقرير!$E$3,D148=التقرير!$B$3),MAX($A$4:$A147)+1,"") ->  | E148: =IFERROR(INDEX(الرئيسيه!$C$4:$C$104,MATCH(D148,الرئيسيه!$B$4:$B$104,0),0),"") ->  | L148: =L$4 -> 2
A149: =IF(AND(C149>=التقرير!$D$3,C149<=التقرير!$E$3,D149=التقرير!$B$3),MAX($A$4:$A148)+1,"") ->  | E149: =IFERROR(INDEX(الرئيسيه!$C$4:$C$104,MATCH(D149,الرئيسيه!$B$4:$B$104,0),0),"") ->  | L149: =L$3 -> 1
A150: =IF(AND(C150>=التقرير!$D$3,C150<=التقرير!$E$3,D150=التقرير!$B$3),MAX($A$4:$A149)+1,"") ->  | E150: =IFERROR(INDEX(الرئيسيه!$C$4:$C$104,MATCH(D150,الرئيسيه!$B$4:$B$104,0),0),"") ->  | L150: =L$4 -> 2
A151: =IF(AND(C151>=التقرير!$D$3,C151<=التقرير!$E$3,D151=التقرير!$B$3),MAX($A$4:$A150)+1,"") ->  | E151: =IFERROR(INDEX(الرئيسيه!$C$4:$C$104,MATCH(D151,الرئيسيه!$B$4:$B$104,0),0),"") ->  | L151: =L$3 -> 1
A152: =IF(AND(C152>=التقرير!$D$3,C152<=التقرير!$E$3,D152=التقرير!$B$3),MAX($A$4:$A151)+1,"") ->  | E152: =IFERROR(INDEX(الرئيسيه!$C$4:$C$104,MATCH(D152,الرئيسيه!$B$4:$B$104,0),0),"") ->  | L152: =L$4 -> 2
A153: =IF(AND(C153>=التقرير!$D$3,C153<=التقرير!$E$3,D153=التقرير!$B$3),MAX($A$4:$A152)+1,"") ->  | E153: =IFERROR(INDEX(الرئيسيه!$C$4:$C$104,MATCH(D153,الرئيسيه!$B$4:$B$104,0),0),"") ->  | L153: =L$3 -> 1
A154: =IF(AND(C154>=التقرير!$D$3,C154<=التقرير!$E$3,D154=التقرير!$B$3),MAX($A$4:$A153)+1,"") ->  | E154: =IFERROR(INDEX(الرئيسيه!$C$4:$C$104,MATCH(D154,الرئيسيه!$B$4:$B$104,0),0),"") ->  | L154: =L$4 -> 2
A155: =IF(AND(C155>=التقرير!$D$3,C155<=التقرير!$E$3,D155=التقرير!$B$3),MAX($A$4:$A154)+1,"") ->  | E155: =IFERROR(INDEX(الرئيسيه!$C$4:$C$104,MATCH(D155,الرئيسيه!$B$4:$B$104,0),0),"") ->  | L155: =L$3 -> 1
A156: =IF(AND(C156>=التقرير!$D$3,C156<=التقرير!$E$3,D156=التقرير!$B$3),MAX($A$4:$A155)+1,"") ->  | E156: =IFERROR(INDEX(الرئيسيه!$C$4:$C$104,MATCH(D156,الرئيسيه!$B$4:$B$104,0),0),"") ->  | L156: =L$4 -> 2
A157: =IF(AND(C157>=التقرير!$D$3,C157<=التقرير!$E$3,D157=التقرير!$B$3),MAX($A$4:$A156)+1,"") ->  | E157: =IFERROR(INDEX(الرئيسيه!$C$4:$C$104,MATCH(D157,الرئيسيه!$B$4:$B$104,0),0),"") ->  | L157: =L$3 -> 1
A158: =IF(AND(C158>=التقرير!$D$3,C158<=التقرير!$E$3,D158=التقرير!$B$3),MAX($A$4:$A157)+1,"") ->  | E158: =IFERROR(INDEX(الرئيسيه!$C$4:$C$104,MATCH(D158,الرئيسيه!$B$4:$B$104,0),0),"") ->  | L158: =L$4 -> 2
A159: =IF(AND(C159>=التقرير!$D$3,C159<=التقرير!$E$3,D159=التقرير!$B$3),MAX($A$4:$A158)+1,"") ->  | E159: =IFERROR(INDEX(الرئيسيه!$C$4:$C$104,MATCH(D159,الرئيسيه!$B$4:$B$104,0),0),"") ->  | L159: =L$3 -> 1
A160: =IF(AND(C160>=التقرير!$D$3,C160<=التقرير!$E$3,D160=التقرير!$B$3),MAX($A$4:$A159)+1,"") ->  | E160: =IFERROR(INDEX(الرئيسيه!$C$4:$C$104,MATCH(D160,الرئيسيه!$B$4:$B$104,0),0),"") ->  | L160: =L$4 -> 2
A161: =IF(AND(C161>=التقرير!$D$3,C161<=التقرير!$E$3,D161=التقرير!$B$3),MAX($A$4:$A160)+1,"") ->  | E161: =IFERROR(INDEX(الرئيسيه!$C$4:$C$104,MATCH(D161,الرئيسيه!$B$4:$B$104,0),0),"") ->  | L161: =L$3 -> 1
A162: =IF(AND(C162>=التقرير!$D$3,C162<=التقرير!$E$3,D162=التقرير!$B$3),MAX($A$4:$A161)+1,"") ->  | E162: =IFERROR(INDEX(الرئيسيه!$C$4:$C$104,MATCH(D162,الرئيسيه!$B$4:$B$104,0),0),"") ->  | L162: =L$4 -> 2
A163: =IF(AND(C163>=التقرير!$D$3,C163<=التقرير!$E$3,D163=التقرير!$B$3),MAX($A$4:$A162)+1,"") ->  | E163: =IFERROR(INDEX(الرئيسيه!$C$4:$C$104,MATCH(D163,الرئيسيه!$B$4:$B$104,0),0),"") ->  | L163: =L$3 -> 1
A164: =IF(AND(C164>=التقرير!$D$3,C164<=التقرير!$E$3,D164=التقرير!$B$3),MAX($A$4:$A163)+1,"") ->  | E164: =IFERROR(INDEX(الرئيسيه!$C$4:$C$104,MATCH(D164,الرئيسيه!$B$4:$B$104,0),0),"") ->  | L164: =L$4 -> 2
A165: =IF(AND(C165>=التقرير!$D$3,C165<=التقرير!$E$3,D165=التقرير!$B$3),MAX($A$4:$A164)+1,"") ->  | E165: =IFERROR(INDEX(الرئيسيه!$C$4:$C$104,MATCH(D165,الرئيسيه!$B$4:$B$104,0),0),"") ->  | L165: =L$3 -> 1
A166: =IF(AND(C166>=التقرير!$D$3,C166<=التقرير!$E$3,D166=التقرير!$B$3),MAX($A$4:$A165)+1,"") ->  | E166: =IFERROR(INDEX(الرئيسيه!$C$4:$C$104,MATCH(D166,الرئيسيه!$B$4:$B$104,0),0),"") ->  | L166: =L$4 -> 2
A167: =IF(AND(C167>=التقرير!$D$3,C167<=التقرير!$E$3,D167=التقرير!$B$3),MAX($A$4:$A166)+1,"") ->  | E167: =IFERROR(INDEX(الرئيسيه!$C$4:$C$104,MATCH(D167,الرئيسيه!$B$4:$B$104,0),0),"") ->  | L167: =L$3 -> 1
A168: =IF(AND(C168>=التقرير!$D$3,C168<=التقرير!$E$3,D168=التقرير!$B$3),MAX($A$4:$A167)+1,"") ->  | E168: =IFERROR(INDEX(الرئيسيه!$C$4:$C$104,MATCH(D168,الرئيسيه!$B$4:$B$104,0),0),"") ->  | L168: =L$4 -> 2
A169: =IF(AND(C169>=التقرير!$D$3,C169<=التقرير!$E$3,D169=التقرير!$B$3),MAX($A$4:$A168)+1,"") ->  | E169: =IFERROR(INDEX(الرئيسيه!$C$4:$C$104,MATCH(D169,الرئيسيه!$B$4:$B$104,0),0),"") ->  | L169: =L$3 -> 1
A170: =IF(AND(C170>=التقرير!$D$3,C170<=التقرير!$E$3,D170=التقرير!$B$3),MAX($A$4:$A169)+1,"") ->  | E170: =IFERROR(INDEX(الرئيسيه!$C$4:$C$104,MATCH(D170,الرئيسيه!$B$4:$B$104,0),0),"") ->  | L170: =L$4 -> 2
A171: =IF(AND(C171>=التقرير!$D$3,C171<=التقرير!$E$3,D171=التقرير!$B$3),MAX($A$4:$A170)+1,"") ->  | E171: =IFERROR(INDEX(الرئيسيه!$C$4:$C$104,MATCH(D171,الرئيسيه!$B$4:$B$104,0),0),"") ->  | L171: =L$3 -> 1
A172: =IF(AND(C172>=التقرير!$D$3,C172<=التقرير!$E$3,D172=التقرير!$B$3),MAX($A$4:$A171)+1,"") ->  | E172: =IFERROR(INDEX(الرئيسيه!$C$4:$C$104,MATCH(D172,الرئيسيه!$B$4:$B$104,0),0),"") ->  | L172: =L$4 -> 2
A173: =IF(AND(C173>=التقرير!$D$3,C173<=التقرير!$E$3,D173=التقرير!$B$3),MAX($A$4:$A172)+1,"") ->  | E173: =IFERROR(INDEX(الرئيسيه!$C$4:$C$104,MATCH(D173,الرئيسيه!$B$4:$B$104,0),0),"") ->  | L173: =L$3 -> 1
A174: =IF(AND(C174>=التقرير!$D$3,C174<=التقرير!$E$3,D174=التقرير!$B$3),MAX($A$4:$A173)+1,"") ->  | E174: =IFERROR(INDEX(الرئيسيه!$C$4:$C$104,MATCH(D174,الرئيسيه!$B$4:$B$104,0),0),"") ->  | L174: =L$4 -> 2
A175: =IF(AND(C175>=التقرير!$D$3,C175<=التقرير!$E$3,D175=التقرير!$B$3),MAX($A$4:$A174)+1,"") ->  | E175: =IFERROR(INDEX(الرئيسيه!$C$4:$C$104,MATCH(D175,الرئيسيه!$B$4:$B$104,0),0),"") ->  | L175: =L$3 -> 1
A176: =IF(AND(C176>=التقرير!$D$3,C176<=التقرير!$E$3,D176=التقرير!$B$3),MAX($A$4:$A175)+1,"") ->  | E176: =IFERROR(INDEX(الرئيسيه!$C$4:$C$104,MATCH(D176,الرئيسيه!$B$4:$B$104,0),0),"") ->  | L176: =L$4 -> 2
A177: =IF(AND(C177>=التقرير!$D$3,C177<=التقرير!$E$3,D177=التقرير!$B$3),MAX($A$4:$A176)+1,"") ->  | E177: =IFERROR(INDEX(الرئيسيه!$C$4:$C$104,MATCH(D177,الرئيسيه!$B$4:$B$104,0),0),"") ->  | L177: =L$3 -> 1
A178: =IF(AND(C178>=التقرير!$D$3,C178<=التقرير!$E$3,D178=التقرير!$B$3),MAX($A$4:$A177)+1,"") ->  | E178: =IFERROR(INDEX(الرئيسيه!$C$4:$C$104,MATCH(D178,الرئيسيه!$B$4:$B$104,0),0),"") ->  | L178: =L$4 -> 2
A179: =IF(AND(C179>=التقرير!$D$3,C179<=التقرير!$E$3,D179=التقرير!$B$3),MAX($A$4:$A178)+1,"") ->  | E179: =IFERROR(INDEX(الرئيسيه!$C$4:$C$104,MATCH(D179,الرئيسيه!$B$4:$B$104,0),0),"") ->  | L179: =L$3 -> 1
A180: =IF(AND(C180>=التقرير!$D$3,C180<=التقرير!$E$3,D180=التقرير!$B$3),MAX($A$4:$A179)+1,"") ->  | E180: =IFERROR(INDEX(الرئيسيه!$C$4:$C$104,MATCH(D180,الرئيسيه!$B$4:$B$104,0),0),"") ->  | L180: =L$4 -> 2
A181: =IF(AND(C181>=التقرير!$D$3,C181<=التقرير!$E$3,D181=التقرير!$B$3),MAX($A$4:$A180)+1,"") ->  | E181: =IFERROR(INDEX(الرئيسيه!$C$4:$C$104,MATCH(D181,الرئيسيه!$B$4:$B$104,0),0),"") ->  | L181: =L$3 -> 1
A182: =IF(AND(C182>=التقرير!$D$3,C182<=التقرير!$E$3,D182=التقرير!$B$3),MAX($A$4:$A181)+1,"") ->  | E182: =IFERROR(INDEX(الرئيسيه!$C$4:$C$104,MATCH(D182,الرئيسيه!$B$4:$B$104,0),0),"") ->  | L182: =L$4 -> 2
A183: =IF(AND(C183>=التقرير!$D$3,C183<=التقرير!$E$3,D183=التقرير!$B$3),MAX($A$4:$A182)+1,"") ->  | E183: =IFERROR(INDEX(الرئيسيه!$C$4:$C$104,MATCH(D183,الرئيسيه!$B$4:$B$104,0),0),"") ->  | L183: =L$3 -> 1
A184: =IF(AND(C184>=التقرير!$D$3,C184<=التقرير!$E$3,D184=التقرير!$B$3),MAX($A$4:$A183)+1,"") ->  | E184: =IFERROR(INDEX(الرئيسيه!$C$4:$C$104,MATCH(D184,الرئيسيه!$B$4:$B$104,0),0),"") ->  | L184: =L$4 -> 2
A185: =IF(AND(C185>=التقرير!$D$3,C185<=التقرير!$E$3,D185=التقرير!$B$3),MAX($A$4:$A184)+1,"") ->  | E185: =IFERROR(INDEX(الرئيسيه!$C$4:$C$104,MATCH(D185,الرئيسيه!$B$4:$B$104,0),0),"") ->  | L185: =L$3 -> 1
A186: =IF(AND(C186>=التقرير!$D$3,C186<=التقرير!$E$3,D186=التقرير!$B$3),MAX($A$4:$A185)+1,"") ->  | E186: =IFERROR(INDEX(الرئيسيه!$C$4:$C$104,MATCH(D186,الرئيسيه!$B$4:$B$104,0),0),"") ->  | L186: =L$4 -> 2
A187: =IF(AND(C187>=التقرير!$D$3,C187<=التقرير!$E$3,D187=التقرير!$B$3),MAX($A$4:$A186)+1,"") ->  | E187: =IFERROR(INDEX(الرئيسيه!$C$4:$C$104,MATCH(D187,الرئيسيه!$B$4:$B$104,0),0),"") ->  | L187: =L$3 -> 1
A188: =IF(AND(C188>=التقرير!$D$3,C188<=التقرير!$E$3,D188=التقرير!$B$3),MAX($A$4:$A187)+1,"") ->  | E188: =IFERROR(INDEX(الرئيسيه!$C$4:$C$104,MATCH(D188,الرئيسيه!$B$4:$B$104,0),0),"") ->  | L188: =L$4 -> 2
A189: =IF(AND(C189>=التقرير!$D$3,C189<=التقرير!$E$3,D189=التقرير!$B$3),MAX($A$4:$A188)+1,"") ->  | E189: =IFERROR(INDEX(الرئيسيه!$C$4:$C$104,MATCH(D189,الرئيسيه!$B$4:$B$104,0),0),"") ->  | L189: =L$3 -> 1
A190: =IF(AND(C190>=التقرير!$D$3,C190<=التقرير!$E$3,D190=التقرير!$B$3),MAX($A$4:$A189)+1,"") ->  | E190: =IFERROR(INDEX(الرئيسيه!$C$4:$C$104,MATCH(D190,الرئيسيه!$B$4:$B$104,0),0),"") ->  | L190: =L$4 -> 2
A191: =IF(AND(C191>=التقرير!$D$3,C191<=التقرير!$E$3,D191=التقرير!$B$3),MAX($A$4:$A190)+1,"") ->  | E191: =IFERROR(INDEX(الرئيسيه!$C$4:$C$104,MATCH(D191,الرئيسيه!$B$4:$B$104,0),0),"") ->  | L191: =L$3 -> 1
A192: =IF(AND(C192>=التقرير!$D$3,C192<=التقرير!$E$3,D192=التقرير!$B$3),MAX($A$4:$A191)+1,"") ->  | E192: =IFERROR(INDEX(الرئيسيه!$C$4:$C$104,MATCH(D192,الرئيسيه!$B$4:$B$104,0),0),"") ->  | L192: =L$4 -> 2
A193: =IF(AND(C193>=التقرير!$D$3,C193<=التقرير!$E$3,D193=التقرير!$B$3),MAX($A$4:$A192)+1,"") ->  | E193: =IFERROR(INDEX(الرئيسيه!$C$4:$C$104,MATCH(D193,الرئيسيه!$B$4:$B$104,0),0),"") ->  | L193: =L$3 -> 1
A194: =IF(AND(C194>=التقرير!$D$3,C194<=التقرير!$E$3,D194=التقرير!$B$3),MAX($A$4:$A193)+1,"") ->  | E194: =IFERROR(INDEX(الرئيسيه!$C$4:$C$104,MATCH(D194,الرئيسيه!$B$4:$B$104,0),0),"") ->  | L194: =L$4 -> 2
A195: =IF(AND(C195>=التقرير!$D$3,C195<=التقرير!$E$3,D195=التقرير!$B$3),MAX($A$4:$A194)+1,"") ->  | E195: =IFERROR(INDEX(الرئيسيه!$C$4:$C$104,MATCH(D195,الرئيسيه!$B$4:$B$104,0),0),"") ->  | L195: =L$3 -> 1
A196: =IF(AND(C196>=التقرير!$D$3,C196<=التقرير!$E$3,D196=التقرير!$B$3),MAX($A$4:$A195)+1,"") ->  | E196: =IFERROR(INDEX(الرئيسيه!$C$4:$C$104,MATCH(D196,الرئيسيه!$B$4:$B$104,0),0),"") ->  | L196: =L$4 -> 2
A197: =IF(AND(C197>=التقرير!$D$3,C197<=التقرير!$E$3,D197=التقرير!$B$3),MAX($A$4:$A196)+1,"") ->  | E197: =IFERROR(INDEX(الرئيسيه!$C$4:$C$104,MATCH(D197,الرئيسيه!$B$4:$B$104,0),0),"") ->  | L197: =L$3 -> 1
A198: =IF(AND(C198>=التقرير!$D$3,C198<=التقرير!$E$3,D198=التقرير!$B$3),MAX($A$4:$A197)+1,"") ->  | B198: =IF(C198<>"",ROW(C194),"") ->  | E198: =IFERROR(INDEX(الرئيسيه!$C$4:$C$104,MATCH(D198,الرئيسيه!$B$4:$B$104,0),0),"") ->  | L198: =L$4 -> 2
A199: =IF(AND(C199>=التقرير!$D$3,C199<=التقرير!$E$3,D199=التقرير!$B$3),MAX($A$4:$A198)+1,"") ->  | E199: =IFERROR(INDEX(الرئيسيه!$C$4:$C$104,MATCH(D199,الرئيسيه!$B$4:$B$104,0),0),"") ->  | L199: =L$3 -> 1
A200: =IF(AND(C200>=التقرير!$D$3,C200<=التقرير!$E$3,D200=التقرير!$B$3),MAX($A$4:$A199)+1,"") ->  | E200: =IFERROR(INDEX(الرئيسيه!$C$4:$C$104,MATCH(D200,الرئيسيه!$B$4:$B$104,0),0),"") ->  | L200: =L$4 -> 2
... 805 more rows

Sheet Macro1

Sheet التقرير
B2: كود | C2: الاسم | D2: من | E2: الى | F2: رصيد | G2: اول المده | H2: {التقارير} | L2: الرئيسيه
B3: 1 | C3: =IFERROR(INDEX(الرئيسيه!$C:$C,MATCH(B3,الرئيسيه!$B:$B,0),0),"") -> موظف 1 | D3: 2022-01-01 | E3: 2022-05-21 | F3: =IFERROR(INDEX(الرئيسيه!$E:$E,MATCH(B3,الرئيسيه!$B:$B,0),0)+SUMPRODUCT(--(B$3=الادخال!$D$5:$D$1005),--(التقرير!D$3>الادخال!$C$5:$C$1005),--(الادخال!$G$5:$G$1005)-(الادخال!$H$5:$H$1005+الادخال!$I$5:$I$1005)),"") -> 0 | L3: الادخال
L4: التقرير
B5: الاجمـــــــــــــــــــــــــــــــالى | E5: =SUM(E7:E371) -> 3167 | F5: =SUM(F7:F371) -> 3162 | G5: =SUM(G7:G371) -> 5 | H5: =IFERROR(F3+E5-(F5+G5),"") -> 0 | I5: =IFERROR(IF(J5<>"",SUMIFS($F$7:$F$1001,$I$7:$I$1001,J5),SUM($F$7:$F$1001)),"") -> 0 | J5: 0 | K5: 1
B6: مسلسل | C6: التاريخ | D6: رقم الايصال | E6: صرف عهدة | F6: تسوية | G6: رد الباقى | H6: الرصيد | I6: مركز التكلفة | J6: الشرح | K6: 2
B7: =IF(ROW(A1)<=MAX(الادخال!$A:$A),ROW(A1),"") -> 1 | C7: =IF(B7="","",INDEX(الادخال!$C$5:$C$1005,MATCH(B7,الادخال!$A$5:$A$1005,0),0)) -> 2022-01-01 | D7: =IF(B7="","",INDEX(الادخال!$F$5:$F$1005,MATCH(B7,الادخال!$A$5:$A$1005,0),0)) -> 216400 | E7: =IF(B7="","",INDEX(الادخال!$G$5:G$1005,MATCH(B7,الادخال!$A$5:$A$1005,0),0)) -> 9 | F7: =IF(B7="","",INDEX(الادخال!$H$5:$H$1005,MATCH(B7,الادخال!$A$5:$A$1005,0),0)) -> 9 | G7: =IF(B7="","",INDEX(الادخال!$I$5:$I$1005,MATCH(B7,الادخال!$A$5:$A$1005,0),0)) -> 0 | H7: =IFERROR(($F$3+E7)-(F7+G7),$F$3) -> 0 | I7: =IF(B7="","",INDEX(الادخال!$J$5:$J$1005,MATCH(B7,الادخال!$A$5:$A$1005,0),0)) -> عمومية | J7: =IF(B7="","",INDEX(الادخال!$K$5:$K$1005,MATCH(B7,الادخال!$A$5:$A$1005,0),0)) -> بصل + ثوم | K7: =K$6 -> 2
B8: =IF(ROW(A2)<=MAX(الادخال!$A:$A),ROW(A2),"") -> 2 | C8: =IF(B8="","",INDEX(الادخال!$C$5:$C$1005,MATCH(B8,الادخال!$A$5:$A$1005,0),0)) -> 2022-01-01 | D8: =IF(B8="","",INDEX(الادخال!$F$5:$F$1005,MATCH(B8,الادخال!$A$5:$A$1005,0),0)) -> 688662 | E8: =IF(B8="","",INDEX(الادخال!$G$5:G$1005,MATCH(B8,الادخال!$A$5:$A$1005,0),0)) -> 14 | F8: =IF(B8="","",INDEX(الادخال!$H$5:$H$1005,MATCH(B8,الادخال!$A$5:$A$1005,0),0)) -> 14 | G8: =IF(B8="","",INDEX(الادخال!$I$5:$I$1005,MATCH(B8,الادخال!$A$5:$A$1005,0),0)) -> 0 | H8: =IFERROR((H7+E8)-(F8+G8),"") -> 0 | I8: =IF(B8="","",INDEX(الادخال!$J$5:$J$1005,MATCH(B8,الادخال!$A$5:$A$1005,0),0)) -> عمومية | J8: =IF(B8="","",INDEX(الادخال!$K$5:$K$1005,MATCH(B8,الادخال!$A$5:$A$1005,0),0)) -> طماطم + فلفل | K8: =K$5 -> 1
B9: =IF(ROW(A3)<=MAX(الادخال!$A:$A),ROW(A3),"") -> 3 | C9: =IF(B9="","",INDEX(الادخال!$C$5:$C$1005,MATCH(B9,الادخال!$A$5:$A$1005,0),0)) -> 2022-01-01 | D9: =IF(B9="","",INDEX(الادخال!$F$5:$F$1005,MATCH(B9,الادخال!$A$5:$A$1005,0),0)) -> 832193 | E9: =IF(B9="","",INDEX(الادخال!$G$5:G$1005,MATCH(B9,الادخال!$A$5:$A$1005,0),0)) -> 37 | F9: =IF(B9="","",INDEX(الادخال!$H$5:$H$1005,MATCH(B9,الادخال!$A$5:$A$1005,0),0)) -> 37 | G9: =IF(B9="","",INDEX(الادخال!$I$5:$I$1005,MATCH(B9,الادخال!$A$5:$A$1005,0),0)) -> 0 | H9: 0 | I9: =IF(B9="","",INDEX(الادخال!$J$5:$J$1005,MATCH(B9,الادخال!$A$5:$A$1005,0),0)) -> عمومية | J9: =IF(B9="","",INDEX(الادخال!$K$5:$K$1005,MATCH(B9,الادخال!$A$5:$A$1005,0),0)) -> غاز | K9: =K$6 -> 2
B10: =IF(ROW(A4)<=MAX(الادخال!$A:$A),ROW(A4),"") -> 4 | C10: =IF(B10="","",INDEX(الادخال!$C$5:$C$1005,MATCH(B10,الادخال!$A$5:$A$1005,0),0)) -> 2022-01-01 | D10: =IF(B10="","",INDEX(الادخال!$F$5:$F$1005,MATCH(B10,الادخال!$A$5:$A$1005,0),0)) -> 402629 | E10: =IF(B10="","",INDEX(الادخال!$G$5:G$1005,MATCH(B10,الادخال!$A$5:$A$1005,0),0)) -> 81 | F10: =IF(B10="","",INDEX(الادخال!$H$5:$H$1005,MATCH(B10,الادخال!$A$5:$A$1005,0),0)) -> 81 | G10: =IF(B10="","",INDEX(الادخال!$I$5:$I$1005,MATCH(B10,الادخال!$A$5:$A$1005,0),0)) -> 0 | H10: 0 | I10: =IF(B10="","",INDEX(الادخال!$J$5:$J$1005,MATCH(B10,الادخال!$A$5:$A$1005,0),0)) -> عمومية | J10: =IF(B10="","",INDEX(الادخال!$K$5:$K$1005,MATCH(B10,الادخال!$A$5:$A$1005,0),0)) -> ALSI كولا صغير 3ربطة | K10: =K$5 -> 1
B11: =IF(ROW(A5)<=MAX(الادخال!$A:$A),ROW(A5),"") -> 5 | C11: =IF(B11="","",INDEX(الادخال!$C$5:$C$1005,MATCH(B11,الادخال!$A$5:$A$1005,0),0)) -> 2022-01-02 | D11: =IF(B11="","",INDEX(الادخال!$F$5:$F$1005,MATCH(B11,الادخال!$A$5:$A$1005,0),0)) -> 605520 | E11: =IF(B11="","",INDEX(الادخال!$G$5:G$1005,MATCH(B11,الادخال!$A$5:$A$1005,0),0)) -> 22 | F11: =IF(B11="","",INDEX(الادخال!$H$5:$H$1005,MATCH(B11,الادخال!$A$5:$A$1005,0),0)) -> 22 | G11: =IF(B11="","",INDEX(الادخال!$I$5:$I$1005,MATCH(B11,الادخال!$A$5:$A$1005,0),0)) -> 0 | H11: 0 | I11: =IF(B11="","",INDEX(الادخال!$J$5:$J$1005,MATCH(B11,الادخال!$A$5:$A$1005,0),0)) -> عمومية | J11: =IF(B11="","",INDEX(الادخال!$K$5:$K$1005,MATCH(B11,الادخال!$A$5:$A$1005,0),0)) -> تميس | K11: =K$6 -> 2
B12: =IF(ROW(A6)<=MAX(الادخال!$A:$A),ROW(A6),"") -> 6 | C12: =IF(B12="","",INDEX(الادخال!$C$5:$C$1005,MATCH(B12,الادخال!$A$5:$A$1005,0),0)) -> 2022-01-02 | D12: =IF(B12="","",INDEX(الادخال!$F$5:$F$1005,MATCH(B12,الادخال!$A$5:$A$1005,0),0)) -> 789302 | E12: =IF(B12="","",INDEX(الادخال!$G$5:G$1005,MATCH(B12,الادخال!$A$5:$A$1005,0),0)) -> 50 | F12: =IF(B12="","",INDEX(الادخال!$H$5:$H$1005,MATCH(B12,الادخال!$A$5:$A$1005,0),0)) -> 50 | G12: =IF(B12="","",INDEX(الادخال!$I$5:$I$1005,MATCH(B12,الادخال!$A$5:$A$1005,0),0)) -> 0 | H12: 0 | I12: =IF(B12="","",INDEX(الادخال!$J$5:$J$1005,MATCH(B12,الادخال!$A$5:$A$1005,0),0)) -> عمومية | J12: =IF(B12="","",INDEX(الادخال!$K$5:$K$1005,MATCH(B12,الادخال!$A$5:$A$1005,0),0)) -> فول + تميس | K12: =K$5 -> 1
B13: =IF(ROW(A7)<=MAX(الادخال!$A:$A),ROW(A7),"") -> 7 | C13: =IF(B13="","",INDEX(الادخال!$C$5:$C$1005,MATCH(B13,الادخال!$A$5:$A$1005,0),0)) -> 2022-01-02 | D13: =IF(B13="","",INDEX(الادخال!$F$5:$F$1005,MATCH(B13,الادخال!$A$5:$A$1005,0),0)) -> 527028 | E13: =IF(B13="","",INDEX(الادخال!$G$5:G$1005,MATCH(B13,الادخال!$A$5:$A$1005,0),0)) -> 20 | F13: =IF(B13="","",INDEX(الادخال!$H$5:$H$1005,MATCH(B13,الادخال!$A$5:$A$1005,0),0)) -> 20 | G13: =IF(B13="","",INDEX(الادخال!$I$5:$I$1005,MATCH(B13,الادخال!$A$5:$A$1005,0),0)) -> 0 | H13: 0 | I13: =IF(B13="","",INDEX(الادخال!$J$5:$J$1005,MATCH(B13,الادخال!$A$5:$A$1005,0),0)) -> عمومية | J13: =IF(B13="","",INDEX(الادخال!$K$5:$K$1005,MATCH(B13,الادخال!$A$5:$A$1005,0),0)) -> ديزل | K13: =K$6 -> 2
B14: =IF(ROW(A8)<=MAX(الادخال!$A:$A),ROW(A8),"") -> 8 | C14: =IF(B14="","",INDEX(الادخال!$C$5:$C$1005,MATCH(B14,الادخال!$A$5:$A$1005,0),0)) -> 2022-01-01 | D14: =IF(B14="","",INDEX(الادخال!$F$5:$F$1005,MATCH(B14,الادخال!$A$5:$A$1005,0),0)) -> 672511 | E14: =IF(B14="","",INDEX(الادخال!$G$5:G$1005,MATCH(B14,الادخال!$A$5:$A$1005,0),0)) -> 398 | F14: =IF(B14="","",INDEX(الادخال!$H$5:$H$1005,MATCH(B14,الادخال!$A$5:$A$1005,0),0)) -> 398 | G14: =IF(B14="","",INDEX(الادخال!$I$5:$I$1005,MATCH(B14,الادخال!$A$5:$A$1005,0),0)) -> 0 | H14: 0 | I14: =IF(B14="","",INDEX(الادخال!$J$5:$J$1005,MATCH(B14,الادخال!$A$5:$A$1005,0),0)) -> عمومية | J14: =IF(B14="","",INDEX(الادخال!$K$5:$K$1005,MATCH(B14,الادخال!$A$5:$A$1005,0),0)) -> ارز + دجاج + المونيوم | K14: =K$5 -> 1
B15: =IF(ROW(A9)<=MAX(الادخال!$A:$A),ROW(A9),"") -> 9 | C15: =IF(B15="","",INDEX(الادخال!$C$5:$C$1005,MATCH(B15,الادخال!$A$5:$A$1005,0),0)) -> 2022-01-04 | D15: =IF(B15="","",INDEX(الادخال!$F$5:$F$1005,MATCH(B15,الادخال!$A$5:$A$1005,0),0)) -> * | E15: =IF(B15="","",INDEX(الادخال!$G$5:G$1005,MATCH(B15,الادخال!$A$5:$A$1005,0),0)) -> 100 | F15: =IF(B15="","",INDEX(الادخال!$H$5:$H$1005,MATCH(B15,الادخال!$A$5:$A$1005,0),0)) -> 0 | G15: =IF(B15="","",INDEX(الادخال!$I$5:$I$1005,MATCH(B15,الادخال!$A$5:$A$1005,0),0)) -> 0 | H15: 100 | I15: =IF(B15="","",INDEX(الادخال!$J$5:$J$1005,MATCH(B15,الادخال!$A$5:$A$1005,0),0)) -> جاري المالك | J15: =IF(B15="","",INDEX(الادخال!$K$5:$K$1005,MATCH(B15,الادخال!$A$5:$A$1005,0),0)) -> سحب من الصراف الآلي | K15: =K$6 -> 2
B16: =IF(ROW(A10)<=MAX(الادخال!$A:$A),ROW(A10),"") -> 10 | C16: =IF(B16="","",INDEX(الادخال!$C$5:$C$1005,MATCH(B16,الادخال!$A$5:$A$1005,0),0)) -> 2022-01-04 | D16: =IF(B16="","",INDEX(الادخال!$F$5:$F$1005,MATCH(B16,الادخال!$A$5:$A$1005,0),0)) -> * | E16: =IF(B16="","",INDEX(الادخال!$G$5:G$1005,MATCH(B16,الادخال!$A$5:$A$1005,0),0)) -> 0 | F16: =IF(B16="","",INDEX(الادخال!$H$5:$H$1005,MATCH(B16,الادخال!$A$5:$A$1005,0),0)) -> 47 | G16: =IF(B16="","",INDEX(الادخال!$I$5:$I$1005,MATCH(B16,الادخال!$A$5:$A$1005,0),0)) -> 0 | H16: 53 | I16: =IF(B16="","",INDEX(الادخال!$J$5:$J$1005,MATCH(B16,الادخال!$A$5:$A$1005,0),0)) -> المصنع | J16: =IF(B16="","",INDEX(الادخال!$K$5:$K$1005,MATCH(B16,الادخال!$A$5:$A$1005,0),0)) -> لمون وفلفل وكزبرة وطماطم | K16: =K$5 -> 1
B17: =IF(ROW(A11)<=MAX(الادخال!$A:$A),ROW(A11),"") -> 11 | C17: =IF(B17="","",INDEX(الادخال!$C$5:$C$1005,MATCH(B17,الادخال!$A$5:$A$1005,0),0)) -> 2022-01-04 | D17: =IF(B17="","",INDEX(الادخال!$F$5:$F$1005,MATCH(B17,الادخال!$A$5:$A$1005,0),0)) -> 609 | E17: =IF(B17="","",INDEX(الادخال!$G$5:G$1005,MATCH(B17,الادخال!$A$5:$A$1005,0),0)) -> 0 | F17: =IF(B17="","",INDEX(الادخال!$H$5:$H$1005,MATCH(B17,الادخال!$A$5:$A$1005,0),0)) -> 48 | G17: =IF(B17="","",INDEX(الادخال!$I$5:$I$1005,MATCH(B17,الادخال!$A$5:$A$1005,0),0)) -> 0 | H17: 5 | I17: =IF(B17="","",INDEX(الادخال!$J$5:$J$1005,MATCH(B17,الادخال!$A$5:$A$1005,0),0)) -> المصنع | J17: =IF(B17="","",INDEX(الادخال!$K$5:$K$1005,MATCH(B17,الادخال!$A$5:$A$1005,0),0)) -> خضروات | K17: =K$6 -> 2
B18: =IF(ROW(A12)<=MAX(الادخال!$A:$A),ROW(A12),"") -> 12 | C18: =IF(B18="","",INDEX(الادخال!$C$5:$C$1005,MATCH(B18,الادخال!$A$5:$A$1005,0),0)) -> 2022-01-04 | D18: =IF(B18="","",INDEX(الادخال!$F$5:$F$1005,MATCH(B18,الادخال!$A$5:$A$1005,0),0)) -> 549361 | E18: =IF(B18="","",INDEX(الادخال!$G$5:G$1005,MATCH(B18,الادخال!$A$5:$A$1005,0),0)) -> 2060 | F18: =IF(B18="","",INDEX(الادخال!$H$5:$H$1005,MATCH(B18,الادخال!$A$5:$A$1005,0),0)) -> 2060 | G18: =IF(B18="","",INDEX(الادخال!$I$5:$I$1005,MATCH(B18,الادخال!$A$5:$A$1005,0),0)) -> 0 | H18: 5 | I18: =IF(B18="","",INDEX(الادخال!$J$5:$J$1005,MATCH(B18,الادخال!$A$5:$A$1005,0),0)) -> عمومية | J18: =IF(B18="","",INDEX(الادخال!$K$5:$K$1005,MATCH(B18,الادخال!$A$5:$A$1005,0),0)) -> بهارات وتوابل | K18: =K$5 -> 1
B19: =IF(ROW(A13)<=MAX(الادخال!$A:$A),ROW(A13),"") -> 13 | C19: =IF(B19="","",INDEX(الادخال!$C$5:$C$1005,MATCH(B19,الادخال!$A$5:$A$1005,0),0)) -> 2022-01-04 | D19: =IF(B19="","",INDEX(الادخال!$F$5:$F$1005,MATCH(B19,الادخال!$A$5:$A$1005,0),0)) -> 25625 | E19: =IF(B19="","",INDEX(الادخال!$G$5:G$1005,MATCH(B19,الادخال!$A$5:$A$1005,0),0)) -> 243 | F19: =IF(B19="","",INDEX(الادخال!$H$5:$H$1005,MATCH(B19,الادخال!$A$5:$A$1005,0),0)) -> 243 | G19: =IF(B19="","",INDEX(الادخال!$I$5:$I$1005,MATCH(B19,الادخال!$A$5:$A$1005,0),0)) -> 0 | H19: 5 | I19: =IF(B19="","",INDEX(الادخال!$J$5:$J$1005,MATCH(B19,الادخال!$A$5:$A$1005,0),0)) -> عمومية | J19: =IF(B19="","",INDEX(الادخال!$K$5:$K$1005,MATCH(B19,الادخال!$A$5:$A$1005,0),0)) -> صحون و اكياس | K19: =K$6 -> 2
B20: =IF(ROW(A14)<=MAX(الادخال!$A:$A),ROW(A14),"") -> 14 | C20: =IF(B20="","",INDEX(الادخال!$C$5:$C$1005,MATCH(B20,الادخال!$A$5:$A$1005,0),0)) -> 2022-01-04 | D20: =IF(B20="","",INDEX(الادخال!$F$5:$F$1005,MATCH(B20,الادخال!$A$5:$A$1005,0),0)) -> 267055 | E20: =IF(B20="","",INDEX(الادخال!$G$5:G$1005,MATCH(B20,الادخال!$A$5:$A$1005,0),0)) -> 8 | F20: =IF(B20="","",INDEX(الادخال!$H$5:$H$1005,MATCH(B20,الادخال!$A$5:$A$1005,0),0)) -> 8 | G20: =IF(B20="","",INDEX(الادخال!$I$5:$I$1005,MATCH(B20,الادخال!$A$5:$A$1005,0),0)) -> 0 | H20: 5 | I20: =IF(B20="","",INDEX(الادخال!$J$5:$J$1005,MATCH(B20,الادخال!$A$5:$A$1005,0),0)) -> الهيبر | J20: =IF(B20="","",INDEX(الادخال!$K$5:$K$1005,MATCH(B20,الادخال!$A$5:$A$1005,0),0)) -> فطور | K20: =K$5 -> 1
B21: =IF(ROW(A15)<=MAX(الادخال!$A:$A),ROW(A15),"") -> 15 | C21: =IF(B21="","",INDEX(الادخال!$C$5:$C$1005,MATCH(B21,الادخال!$A$5:$A$1005,0),0)) -> 2022-01-04 | D21: =IF(B21="","",INDEX(الادخال!$F$5:$F$1005,MATCH(B21,الادخال!$A$5:$A$1005,0),0)) -> 771523 | E21: =IF(B21="","",INDEX(الادخال!$G$5:G$1005,MATCH(B21,الادخال!$A$5:$A$1005,0),0)) -> 50 | F21: =IF(B21="","",INDEX(الادخال!$H$5:$H$1005,MATCH(B21,الادخال!$A$5:$A$1005,0),0)) -> 50 | G21: =IF(B21="","",INDEX(الادخال!$I$5:$I$1005,MATCH(B21,الادخال!$A$5:$A$1005,0),0)) -> 0 | H21: 5 | I21: =IF(B21="","",INDEX(الادخال!$J$5:$J$1005,MATCH(B21,الادخال!$A$5:$A$1005,0),0)) -> عمومية | J21: =IF(B21="","",INDEX(الادخال!$K$5:$K$1005,MATCH(B21,الادخال!$A$5:$A$1005,0),0)) -> فطور | K21: =K$6 -> 2
B22: =IF(ROW(A16)<=MAX(الادخال!$A:$A),ROW(A16),"") -> 16 | C22: =IF(B22="","",INDEX(الادخال!$C$5:$C$1005,MATCH(B22,الادخال!$A$5:$A$1005,0),0)) -> 2022-01-04 | D22: =IF(B22="","",INDEX(الادخال!$F$5:$F$1005,MATCH(B22,الادخال!$A$5:$A$1005,0),0)) -> 982329 | E22: =IF(B22="","",INDEX(الادخال!$G$5:G$1005,MATCH(B22,الادخال!$A$5:$A$1005,0),0)) -> 18 | F22: =IF(B22="","",INDEX(الادخال!$H$5:$H$1005,MATCH(B22,الادخال!$A$5:$A$1005,0),0)) -> 18 | G22: =IF(B22="","",INDEX(الادخال!$I$5:$I$1005,MATCH(B22,الادخال!$A$5:$A$1005,0),0)) -> 0 | H22: 5 | I22: =IF(B22="","",INDEX(الادخال!$J$5:$J$1005,MATCH(B22,الادخال!$A$5:$A$1005,0),0)) -> عمومية | J22: =IF(B22="","",INDEX(الادخال!$K$5:$K$1005,MATCH(B22,الادخال!$A$5:$A$1005,0),0)) -> فطور | K22: =K$5 -> 1
B23: =IF(ROW(A17)<=MAX(الادخال!$A:$A),ROW(A17),"") -> 17 | C23: =IF(B23="","",INDEX(الادخال!$C$5:$C$1005,MATCH(B23,الادخال!$A$5:$A$1005,0),0)) -> 2022-01-04 | D23: =IF(B23="","",INDEX(الادخال!$F$5:$F$1005,MATCH(B23,الادخال!$A$5:$A$1005,0),0)) -> 991781 | E23: =IF(B23="","",INDEX(الادخال!$G$5:G$1005,MATCH(B23,الادخال!$A$5:$A$1005,0),0)) -> 20 | F23: =IF(B23="","",INDEX(الادخال!$H$5:$H$1005,MATCH(B23,الادخال!$A$5:$A$1005,0),0)) -> 20 | G23: =IF(B23="","",INDEX(الادخال!$I$5:$I$1005,MATCH(B23,الادخال!$A$5:$A$1005,0),0)) -> 0 | H23: 5 | I23: =IF(B23="","",INDEX(الادخال!$J$5:$J$1005,MATCH(B23,الادخال!$A$5:$A$1005,0),0)) -> عمومية | J23: =IF(B23="","",INDEX(الادخال!$K$5:$K$1005,MATCH(B23,الادخال!$A$5:$A$1005,0),0)) -> فطور | K23: =K$6 -> 2
B24: =IF(ROW(A18)<=MAX(الادخال!$A:$A),ROW(A18),"") -> 18 | C24: =IF(B24="","",INDEX(الادخال!$C$5:$C$1005,MATCH(B24,الادخال!$A$5:$A$1005,0),0)) -> 2022-01-04 | D24: =IF(B24="","",INDEX(الادخال!$F$5:$F$1005,MATCH(B24,الادخال!$A$5:$A$1005,0),0)) -> 788283 | E24: =IF(B24="","",INDEX(الادخال!$G$5:G$1005,MATCH(B24,الادخال!$A$5:$A$1005,0),0)) -> 37 | F24: =IF(B24="","",INDEX(الادخال!$H$5:$H$1005,MATCH(B24,الادخال!$A$5:$A$1005,0),0)) -> 37 | G24: =IF(B24="","",INDEX(الادخال!$I$5:$I$1005,MATCH(B24,الادخال!$A$5:$A$1005,0),0)) -> 0 | H24: 5 | I24: =IF(B24="","",INDEX(الادخال!$J$5:$J$1005,MATCH(B24,الادخال!$A$5:$A$1005,0),0)) -> عمومية | J24: =IF(B24="","",INDEX(الادخال!$K$5:$K$1005,MATCH(B24,الادخال!$A$5:$A$1005,0),0)) -> غاز | K24: =K$5 -> 1
B25: =IF(ROW(A19)<=MAX(الادخال!$A:$A),ROW(A19),"") -> 19 | C25: =IF(B25="","",INDEX(الادخال!$C$5:$C$1005,MATCH(B25,الادخال!$A$5:$A$1005,0),0)) -> 2022-01-04 | D25: =IF(B25="","",INDEX(الادخال!$F$5:$F$1005,MATCH(B25,الادخال!$A$5:$A$1005,0),0)) -> * | E25: =IF(B25="","",INDEX(الادخال!$G$5:G$1005,MATCH(B25,الادخال!$A$5:$A$1005,0),0)) -> 0 | F25: =IF(B25="","",INDEX(الادخال!$H$5:$H$1005,MATCH(B25,الادخال!$A$5:$A$1005,0),0)) -> 0 | G25: =IF(B25="","",INDEX(الادخال!$I$5:$I$1005,MATCH(B25,الادخال!$A$5:$A$1005,0),0)) -> 5 | H25: 0 | I25: =IF(B25="","",INDEX(الادخال!$J$5:$J$1005,MATCH(B25,الادخال!$A$5:$A$1005,0),0)) -> 0 | J25: =IF(B25="","",INDEX(الادخال!$K$5:$K$1005,MATCH(B25,الادخال!$A$5:$A$1005,0),0)) -> استرجاع باقي المبلغ لابو احمد | K25: =K$6 -> 2
B26: =IF(ROW(A20)<=MAX(الادخال!$A:$A),ROW(A20),"") ->  | C26: =IF(B26="","",INDEX(الادخال!$C$5:$C$1005,MATCH(B26,الادخال!$A$5:$A$1005,0),0)) ->  | D26: =IF(B26="","",INDEX(الادخال!$F$5:$F$1005,MATCH(B26,الادخال!$A$5:$A$1005,0),0)) ->  | E26: =IF(B26="","",INDEX(الادخال!$G$5:G$1005,MATCH(B26,الادخال!$A$5:$A$1005,0),0)) ->  | F26: =IF(B26="","",INDEX(الادخال!$H$5:$H$1005,MATCH(B26,الادخال!$A$5:$A$1005,0),0)) ->  | G26: =IF(B26="","",INDEX(الادخال!$I$5:$I$1005,MATCH(B26,الادخال!$A$5:$A$1005,0),0)) ->  | I26: =IF(B26="","",INDEX(الادخال!$J$5:$J$1005,MATCH(B26,الادخال!$A$5:$A$1005,0),0)) ->  | J26: =IF(B26="","",INDEX(الادخال!$K$5:$K$1005,MATCH(B26,الادخال!$A$5:$A$1005,0),0)) ->  | K26: =K$5 -> 1
B27: =IF(ROW(A21)<=MAX(الادخال!$A:$A),ROW(A21),"") ->  | C27: =IF(B27="","",INDEX(الادخال!$C$5:$C$1005,MATCH(B27,الادخال!$A$5:$A$1005,0),0)) ->  | D27: =IF(B27="","",INDEX(الادخال!$F$5:$F$1005,MATCH(B27,الادخال!$A$5:$A$1005,0),0)) ->  | E27: =IF(B27="","",INDEX(الادخال!$G$5:G$1005,MATCH(B27,الادخال!$A$5:$A$1005,0),0)) ->  | F27: =IF(B27="","",INDEX(الادخال!$H$5:$H$1005,MATCH(B27,الادخال!$A$5:$A$1005,0),0)) ->  | G27: =IF(B27="","",INDEX(الادخال!$I$5:$I$1005,MATCH(B27,الادخال!$A$5:$A$1005,0),0)) ->  | I27: =IF(B27="","",INDEX(الادخال!$J$5:$J$1005,MATCH(B27,الادخال!$A$5:$A$1005,0),0)) ->  | J27: =IF(B27="","",INDEX(الادخال!$K$5:$K$1005,MATCH(B27,الادخال!$A$5:$A$1005,0),0)) ->  | K27: =K$6 -> 2
B28: =IF(ROW(A22)<=MAX(الادخال!$A:$A),ROW(A22),"") ->  | C28: =IF(B28="","",INDEX(الادخال!$C$5:$C$1005,MATCH(B28,الادخال!$A$5:$A$1005,0),0)) ->  | D28: =IF(B28="","",INDEX(الادخال!$F$5:$F$1005,MATCH(B28,الادخال!$A$5:$A$1005,0),0)) ->  | E28: =IF(B28="","",INDEX(الادخال!$G$5:G$1005,MATCH(B28,الادخال!$A$5:$A$1005,0),0)) ->  | F28: =IF(B28="","",INDEX(الادخال!$H$5:$H$1005,MATCH(B28,الادخال!$A$5:$A$1005,0),0)) ->  | G28: =IF(B28="","",INDEX(الادخال!$I$5:$I$1005,MATCH(B28,الادخال!$A$5:$A$1005,0),0)) ->  | I28: =IF(B28="","",INDEX(الادخال!$J$5:$J$1005,MATCH(B28,الادخال!$A$5:$A$1005,0),0)) ->  | J28: =IF(B28="","",INDEX(الادخال!$K$5:$K$1005,MATCH(B28,الادخال!$A$5:$A$1005,0),0)) ->  | K28: =K$5 -> 1
B29: =IF(ROW(A23)<=MAX(الادخال!$A:$A),ROW(A23),"") ->  | C29: =IF(B29="","",INDEX(الادخال!$C$5:$C$1005,MATCH(B29,الادخال!$A$5:$A$1005,0),0)) ->  | D29: =IF(B29="","",INDEX(الادخال!$F$5:$F$1005,MATCH(B29,الادخال!$A$5:$A$1005,0),0)) ->  | E29: =IF(B29="","",INDEX(الادخال!$G$5:G$1005,MATCH(B29,الادخال!$A$5:$A$1005,0),0)) ->  | F29: =IF(B29="","",INDEX(الادخال!$H$5:$H$1005,MATCH(B29,الادخال!$A$5:$A$1005,0),0)) ->  | G29: =IF(B29="","",INDEX(الادخال!$I$5:$I$1005,MATCH(B29,الادخال!$A$5:$A$1005,0),0)) ->  | I29: =IF(B29="","",INDEX(الادخال!$J$5:$J$1005,MATCH(B29,الادخال!$A$5:$A$1005,0),0)) ->  | J29: =IF(B29="","",INDEX(الادخال!$K$5:$K$1005,MATCH(B29,الادخال!$A$5:$A$1005,0),0)) ->  | K29: =K$6 -> 2
B30: =IF(ROW(A24)<=MAX(الادخال!$A:$A),ROW(A24),"") ->  | C30: =IF(B30="","",INDEX(الادخال!$C$5:$C$1005,MATCH(B30,الادخال!$A$5:$A$1005,0),0)) ->  | D30: =IF(B30="","",INDEX(الادخال!$F$5:$F$1005,MATCH(B30,الادخال!$A$5:$A$1005,0),0)) ->  | E30: =IF(B30="","",INDEX(الادخال!$G$5:G$1005,MATCH(B30,الادخال!$A$5:$A$1005,0),0)) ->  | F30: =IF(B30="","",INDEX(الادخال!$H$5:$H$1005,MATCH(B30,الادخال!$A$5:$A$1005,0),0)) ->  | G30: =IF(B30="","",INDEX(الادخال!$I$5:$I$1005,MATCH(B30,الادخال!$A$5:$A$1005,0),0)) ->  | I30: =IF(B30="","",INDEX(الادخال!$J$5:$J$1005,MATCH(B30,الادخال!$A$5:$A$1005,0),0)) ->  | J30: =IF(B30="","",INDEX(الادخال!$K$5:$K$1005,MATCH(B30,الادخال!$A$5:$A$1005,0),0)) ->  | K30: =K$5 -> 1
B31: =IF(ROW(A25)<=MAX(الادخال!$A:$A),ROW(A25),"") ->  | C31: =IF(B31="","",INDEX(الادخال!$C$5:$C$1005,MATCH(B31,الادخال!$A$5:$A$1005,0),0)) ->  | D31: =IF(B31="","",INDEX(الادخال!$F$5:$F$1005,MATCH(B31,الادخال!$A$5:$A$1005,0),0)) ->  | E31: =IF(B31="","",INDEX(الادخال!$G$5:G$1005,MATCH(B31,الادخال!$A$5:$A$1005,0),0)) ->  | F31: =IF(B31="","",INDEX(الادخال!$H$5:$H$1005,MATCH(B31,الادخال!$A$5:$A$1005,0),0)) ->  | G31: =IF(B31="","",INDEX(الادخال!$I$5:$I$1005,MATCH(B31,الادخال!$A$5:$A$1005,0),0)) ->  | I31: =IF(B31="","",INDEX(الادخال!$J$5:$J$1005,MATCH(B31,الادخال!$A$5:$A$1005,0),0)) ->  | J31: =IF(B31="","",INDEX(الادخال!$K$5:$K$1005,MATCH(B31,الادخال!$A$5:$A$1005,0),0)) ->  | K31: =K$6 -> 2
B32: =IF(ROW(A26)<=MAX(الادخال!$A:$A),ROW(A26),"") ->  | C32: =IF(B32="","",INDEX(الادخال!$C$5:$C$1005,MATCH(B32,الادخال!$A$5:$A$1005,0),0)) ->  | D32: =IF(B32="","",INDEX(الادخال!$F$5:$F$1005,MATCH(B32,الادخال!$A$5:$A$1005,0),0)) ->  | E32: =IF(B32="","",INDEX(الادخال!$G$5:G$1005,MATCH(B32,الادخال!$A$5:$A$1005,0),0)) ->  | F32: =IF(B32="","",INDEX(الادخال!$H$5:$H$1005,MATCH(B32,الادخال!$A$5:$A$1005,0),0)) ->  | G32: =IF(B32="","",INDEX(الادخال!$I$5:$I$1005,MATCH(B32,الادخال!$A$5:$A$1005,0),0)) ->  | I32: =IF(B32="","",INDEX(الادخال!$J$5:$J$1005,MATCH(B32,الادخال!$A$5:$A$1005,0),0)) ->  | J32: =IF(B32="","",INDEX(الادخال!$K$5:$K$1005,MATCH(B32,الادخال!$A$5:$A$1005,0),0)) ->  | K32: =K$5 -> 1
B33: =IF(ROW(A27)<=MAX(الادخال!$A:$A),ROW(A27),"") ->  | C33: =IF(B33="","",INDEX(الادخال!$C$5:$C$1005,MATCH(B33,الادخال!$A$5:$A$1005,0),0)) ->  | D33: =IF(B33="","",INDEX(الادخال!$F$5:$F$1005,MATCH(B33,الادخال!$A$5:$A$1005,0),0)) ->  | E33: =IF(B33="","",INDEX(الادخال!$G$5:G$1005,MATCH(B33,الادخال!$A$5:$A$1005,0),0)) ->  | F33: =IF(B33="","",INDEX(الادخال!$H$5:$H$1005,MATCH(B33,الادخال!$A$5:$A$1005,0),0)) ->  | G33: =IF(B33="","",INDEX(الادخال!$I$5:$I$1005,MATCH(B33,الادخال!$A$5:$A$1005,0),0)) ->  | I33: =IF(B33="","",INDEX(الادخال!$J$5:$J$1005,MATCH(B33,الادخال!$A$5:$A$1005,0),0)) ->  | J33: =IF(B33="","",INDEX(الادخال!$K$5:$K$1005,MATCH(B33,الادخال!$A$5:$A$1005,0),0)) ->  | K33: =K$6 -> 2
B34: =IF(ROW(A28)<=MAX(الادخال!$A:$A),ROW(A28),"") ->  | C34: =IF(B34="","",INDEX(الادخال!$C$5:$C$1005,MATCH(B34,الادخال!$A$5:$A$1005,0),0)) ->  | D34: =IF(B34="","",INDEX(الادخال!$F$5:$F$1005,MATCH(B34,الادخال!$A$5:$A$1005,0),0)) ->  | E34: =IF(B34="","",INDEX(الادخال!$G$5:G$1005,MATCH(B34,الادخال!$A$5:$A$1005,0),0)) ->  | F34: =IF(B34="","",INDEX(الادخال!$H$5:$H$1005,MATCH(B34,الادخال!$A$5:$A$1005,0),0)) ->  | G34: =IF(B34="","",INDEX(الادخال!$I$5:$I$1005,MATCH(B34,الادخال!$A$5:$A$1005,0),0)) ->  | H34: =IFERROR((H33+E34)-(F34+G34),"") ->  | I34: =IF(B34="","",INDEX(الادخال!$J$5:$J$1005,MATCH(B34,الادخال!$A$5:$A$1005,0),0)) ->  | J34: =IF(B34="","",INDEX(الادخال!$K$5:$K$1005,MATCH(B34,الادخال!$A$5:$A$1005,0),0)) ->  | K34: =K$5 -> 1
B35: =IF(ROW(A29)<=MAX(الادخال!$A:$A),ROW(A29),"") ->  | C35: =IF(B35="","",INDEX(الادخال!$C$5:$C$1005,MATCH(B35,الادخال!$A$5:$A$1005,0),0)) ->  | D35: =IF(B35="","",INDEX(الادخال!$F$5:$F$1005,MATCH(B35,الادخال!$A$5:$A$1005,0),0)) ->  | E35: =IF(B35="","",INDEX(الادخال!$G$5:G$1005,MATCH(B35,الادخال!$A$5:$A$1005,0),0)) ->  | F35: =IF(B35="","",INDEX(الادخال!$H$5:$H$1005,MATCH(B35,الادخال!$A$5:$A$1005,0),0)) ->  | G35: =IF(B35="","",INDEX(الادخال!$I$5:$I$1005,MATCH(B35,الادخال!$A$5:$A$1005,0),0)) ->  | I35: =IF(B35="","",INDEX(الادخال!$J$5:$J$1005,MATCH(B35,الادخال!$A$5:$A$1005,0),0)) ->  | J35: =IF(B35="","",INDEX(الادخال!$K$5:$K$1005,MATCH(B35,الادخال!$A$5:$A$1005,0),0)) ->  | K35: =K$6 -> 2
B36: =IF(ROW(A30)<=MAX(الادخال!$A:$A),ROW(A30),"") ->  | C36: =IF(B36="","",INDEX(الادخال!$C$5:$C$1005,MATCH(B36,الادخال!$A$5:$A$1005,0),0)) ->  | D36: =IF(B36="","",INDEX(الادخال!$F$5:$F$1005,MATCH(B36,الادخال!$A$5:$A$1005,0),0)) ->  | E36: =IF(B36="","",INDEX(الادخال!$G$5:G$1005,MATCH(B36,الادخال!$A$5:$A$1005,0),0)) ->  | F36: =IF(B36="","",INDEX(الادخال!$H$5:$H$1005,MATCH(B36,الادخال!$A$5:$A$1005,0),0)) ->  | G36: =IF(B36="","",INDEX(الادخال!$I$5:$I$1005,MATCH(B36,الادخال!$A$5:$A$1005,0),0)) ->  | I36: =IF(B36="","",INDEX(الادخال!$J$5:$J$1005,MATCH(B36,الادخال!$A$5:$A$1005,0),0)) ->  | J36: =IF(B36="","",INDEX(الادخال!$K$5:$K$1005,MATCH(B36,الادخال!$A$5:$A$1005,0),0)) ->  | K36: =K$5 -> 1
B37: =IF(ROW(A31)<=MAX(الادخال!$A:$A),ROW(A31),"") ->  | C37: =IF(B37="","",INDEX(الادخال!$C$5:$C$1005,MATCH(B37,الادخال!$A$5:$A$1005,0),0)) ->  | D37: =IF(B37="","",INDEX(الادخال!$F$5:$F$1005,MATCH(B37,الادخال!$A$5:$A$1005,0),0)) ->  | E37: =IF(B37="","",INDEX(الادخال!$G$5:G$1005,MATCH(B37,الادخال!$A$5:$A$1005,0),0)) ->  | F37: =IF(B37="","",INDEX(الادخال!$H$5:$H$1005,MATCH(B37,الادخال!$A$5:$A$1005,0),0)) ->  | G37: =IF(B37="","",INDEX(الادخال!$I$5:$I$1005,MATCH(B37,الادخال!$A$5:$A$1005,0),0)) ->  | I37: =IF(B37="","",INDEX(الادخال!$J$5:$J$1005,MATCH(B37,الادخال!$A$5:$A$1005,0),0)) ->  | J37: =IF(B37="","",INDEX(الادخال!$K$5:$K$1005,MATCH(B37,الادخال!$A$5:$A$1005,0),0)) ->  | K37: =K$6 -> 2
B38: =IF(ROW(A32)<=MAX(الادخال!$A:$A),ROW(A32),"") ->  | C38: =IF(B38="","",INDEX(الادخال!$C$5:$C$1005,MATCH(B38,الادخال!$A$5:$A$1005,0),0)) ->  | D38: =IF(B38="","",INDEX(الادخال!$F$5:$F$1005,MATCH(B38,الادخال!$A$5:$A$1005,0),0)) ->  | E38: =IF(B38="","",INDEX(الادخال!$G$5:G$1005,MATCH(B38,الادخال!$A$5:$A$1005,0),0)) ->  | F38: =IF(B38="","",INDEX(الادخال!$H$5:$H$1005,MATCH(B38,الادخال!$A$5:$A$1005,0),0)) ->  | G38: =IF(B38="","",INDEX(الادخال!$I$5:$I$1005,MATCH(B38,الادخال!$A$5:$A$1005,0),0)) ->  | I38: =IF(B38="","",INDEX(الادخال!$J$5:$J$1005,MATCH(B38,الادخال!$A$5:$A$1005,0),0)) ->  | J38: =IF(B38="","",INDEX(الادخال!$K$5:$K$1005,MATCH(B38,الادخال!$A$5:$A$1005,0),0)) ->  | K38: =K$5 -> 1
B39: =IF(ROW(A33)<=MAX(الادخال!$A:$A),ROW(A33),"") ->  | C39: =IF(B39="","",INDEX(الادخال!$C$5:$C$1005,MATCH(B39,الادخال!$A$5:$A$1005,0),0)) ->  | D39: =IF(B39="","",INDEX(الادخال!$F$5:$F$1005,MATCH(B39,الادخال!$A$5:$A$1005,0),0)) ->  | E39: =IF(B39="","",INDEX(الادخال!$G$5:G$1005,MATCH(B39,الادخال!$A$5:$A$1005,0),0)) ->  | F39: =IF(B39="","",INDEX(الادخال!$H$5:$H$1005,MATCH(B39,الادخال!$A$5:$A$1005,0),0)) ->  | G39: =IF(B39="","",INDEX(الادخال!$I$5:$I$1005,MATCH(B39,الادخال!$A$5:$A$1005,0),0)) ->  | I39: =IF(B39="","",INDEX(الادخال!$J$5:$J$1005,MATCH(B39,الادخال!$A$5:$A$1005,0),0)) ->  | J39: =IF(B39="","",INDEX(الادخال!$K$5:$K$1005,MATCH(B39,الادخال!$A$5:$A$1005,0),0)) ->  | K39: =K$6 -> 2
B40: =IF(ROW(A34)<=MAX(الادخال!$A:$A),ROW(A34),"") ->  | C40: =IF(B40="","",INDEX(الادخال!$C$5:$C$1005,MATCH(B40,الادخال!$A$5:$A$1005,0),0)) ->  | D40: =IF(B40="","",INDEX(الادخال!$F$5:$F$1005,MATCH(B40,الادخال!$A$5:$A$1005,0),0)) ->  | E40: =IF(B40="","",INDEX(الادخال!$G$5:G$1005,MATCH(B40,الادخال!$A$5:$A$1005,0),0)) ->  | F40: =IF(B40="","",INDEX(الادخال!$H$5:$H$1005,MATCH(B40,الادخال!$A$5:$A$1005,0),0)) ->  | G40: =IF(B40="","",INDEX(الادخال!$I$5:$I$1005,MATCH(B40,الادخال!$A$5:$A$1005,0),0)) ->  | I40: =IF(B40="","",INDEX(الادخال!$J$5:$J$1005,MATCH(B40,الادخال!$A$5:$A$1005,0),0)) ->  | J40: =IF(B40="","",INDEX(الادخال!$K$5:$K$1005,MATCH(B40,الادخال!$A$5:$A$1005,0),0)) ->  | K40: =K$5 -> 1
B41: =IF(ROW(A35)<=MAX(الادخال!$A:$A),ROW(A35),"") ->  | C41: =IF(B41="","",INDEX(الادخال!$C$5:$C$1005,MATCH(B41,الادخال!$A$5:$A$1005,0),0)) ->  | D41: =IF(B41="","",INDEX(الادخال!$F$5:$F$1005,MATCH(B41,الادخال!$A$5:$A$1005,0),0)) ->  | E41: =IF(B41="","",INDEX(الادخال!$G$5:G$1005,MATCH(B41,الادخال!$A$5:$A$1005,0),0)) ->  | F41: =IF(B41="","",INDEX(الادخال!$H$5:$H$1005,MATCH(B41,الادخال!$A$5:$A$1005,0),0)) ->  | G41: =IF(B41="","",INDEX(الادخال!$I$5:$I$1005,MATCH(B41,الادخال!$A$5:$A$1005,0),0)) ->  | I41: =IF(B41="","",INDEX(الادخال!$J$5:$J$1005,MATCH(B41,الادخال!$A$5:$A$1005,0),0)) ->  | J41: =IF(B41="","",INDEX(الادخال!$K$5:$K$1005,MATCH(B41,الادخال!$A$5:$A$1005,0),0)) ->  | K41: =K$6 -> 2
B42: =IF(ROW(A36)<=MAX(الادخال!$A:$A),ROW(A36),"") ->  | C42: =IF(B42="","",INDEX(الادخال!$C$5:$C$1005,MATCH(B42,الادخال!$A$5:$A$1005,0),0)) ->  | D42: =IF(B42="","",INDEX(الادخال!$F$5:$F$1005,MATCH(B42,الادخال!$A$5:$A$1005,0),0)) ->  | E42: =IF(B42="","",INDEX(الادخال!$G$5:G$1005,MATCH(B42,الادخال!$A$5:$A$1005,0),0)) ->  | F42: =IF(B42="","",INDEX(الادخال!$H$5:$H$1005,MATCH(B42,الادخال!$A$5:$A$1005,0),0)) ->  | G42: =IF(B42="","",INDEX(الادخال!$I$5:$I$1005,MATCH(B42,الادخال!$A$5:$A$1005,0),0)) ->  | I42: =IF(B42="","",INDEX(الادخال!$J$5:$J$1005,MATCH(B42,الادخال!$A$5:$A$1005,0),0)) ->  | J42: =IF(B42="","",INDEX(الادخال!$K$5:$K$1005,MATCH(B42,الادخال!$A$5:$A$1005,0),0)) ->  | K42: =K$5 -> 1
B43: =IF(ROW(A37)<=MAX(الادخال!$A:$A),ROW(A37),"") ->  | C43: =IF(B43="","",INDEX(الادخال!$C$5:$C$1005,MATCH(B43,الادخال!$A$5:$A$1005,0),0)) ->  | D43: =IF(B43="","",INDEX(الادخال!$F$5:$F$1005,MATCH(B43,الادخال!$A$5:$A$1005,0),0)) ->  | E43: =IF(B43="","",INDEX(الادخال!$G$5:G$1005,MATCH(B43,الادخال!$A$5:$A$1005,0),0)) ->  | F43: =IF(B43="","",INDEX(الادخال!$H$5:$H$1005,MATCH(B43,الادخال!$A$5:$A$1005,0),0)) ->  | G43: =IF(B43="","",INDEX(الادخال!$I$5:$I$1005,MATCH(B43,الادخال!$A$5:$A$1005,0),0)) ->  | I43: =IF(B43="","",INDEX(الادخال!$J$5:$J$1005,MATCH(B43,الادخال!$A$5:$A$1005,0),0)) ->  | J43: =IF(B43="","",INDEX(الادخال!$K$5:$K$1005,MATCH(B43,الادخال!$A$5:$A$1005,0),0)) ->  | K43: =K$6 -> 2
B44: =IF(ROW(A38)<=MAX(الادخال!$A:$A),ROW(A38),"") ->  | C44: =IF(B44="","",INDEX(الادخال!$C$5:$C$1005,MATCH(B44,الادخال!$A$5:$A$1005,0),0)) ->  | D44: =IF(B44="","",INDEX(الادخال!$F$5:$F$1005,MATCH(B44,الادخال!$A$5:$A$1005,0),0)) ->  | E44: =IF(B44="","",INDEX(الادخال!$G$5:G$1005,MATCH(B44,الادخال!$A$5:$A$1005,0),0)) ->  | F44: =IF(B44="","",INDEX(الادخال!$H$5:$H$1005,MATCH(B44,الادخال!$A$5:$A$1005,0),0)) ->  | G44: =IF(B44="","",INDEX(الادخال!$I$5:$I$1005,MATCH(B44,الادخال!$A$5:$A$1005,0),0)) ->  | I44: =IF(B44="","",INDEX(الادخال!$J$5:$J$1005,MATCH(B44,الادخال!$A$5:$A$1005,0),0)) ->  | J44: =IF(B44="","",INDEX(الادخال!$K$5:$K$1005,MATCH(B44,الادخال!$A$5:$A$1005,0),0)) ->  | K44: =K$5 -> 1
B45: =IF(ROW(A39)<=MAX(الادخال!$A:$A),ROW(A39),"") ->  | C45: =IF(B45="","",INDEX(الادخال!$C$5:$C$1005,MATCH(B45,الادخال!$A$5:$A$1005,0),0)) ->  | D45: =IF(B45="","",INDEX(الادخال!$F$5:$F$1005,MATCH(B45,الادخال!$A$5:$A$1005,0),0)) ->  | E45: =IF(B45="","",INDEX(الادخال!$G$5:G$1005,MATCH(B45,الادخال!$A$5:$A$1005,0),0)) ->  | F45: =IF(B45="","",INDEX(الادخال!$H$5:$H$1005,MATCH(B45,الادخال!$A$5:$A$1005,0),0)) ->  | G45: =IF(B45="","",INDEX(الادخال!$I$5:$I$1005,MATCH(B45,الادخال!$A$5:$A$1005,0),0)) ->  | I45: =IF(B45="","",INDEX(الادخال!$J$5:$J$1005,MATCH(B45,الادخال!$A$5:$A$1005,0),0)) ->  | J45: =IF(B45="","",INDEX(الادخال!$K$5:$K$1005,MATCH(B45,الادخال!$A$5:$A$1005,0),0)) ->  | K45: =K$6 -> 2
B46: =IF(ROW(A40)<=MAX(الادخال!$A:$A),ROW(A40),"") ->  | C46: =IF(B46="","",INDEX(الادخال!$C$5:$C$1005,MATCH(B46,الادخال!$A$5:$A$1005,0),0)) ->  | D46: =IF(B46="","",INDEX(الادخال!$F$5:$F$1005,MATCH(B46,الادخال!$A$5:$A$1005,0),0)) ->  | E46: =IF(B46="","",INDEX(الادخال!$G$5:G$1005,MATCH(B46,الادخال!$A$5:$A$1005,0),0)) ->  | F46: =IF(B46="","",INDEX(الادخال!$H$5:$H$1005,MATCH(B46,الادخال!$A$5:$A$1005,0),0)) ->  | G46: =IF(B46="","",INDEX(الادخال!$I$5:$I$1005,MATCH(B46,الادخال!$A$5:$A$1005,0),0)) ->  | I46: =IF(B46="","",INDEX(الادخال!$J$5:$J$1005,MATCH(B46,الادخال!$A$5:$A$1005,0),0)) ->  | J46: =IF(B46="","",INDEX(الادخال!$K$5:$K$1005,MATCH(B46,الادخال!$A$5:$A$1005,0),0)) ->  | K46: =K$5 -> 1
B47: =IF(ROW(A41)<=MAX(الادخال!$A:$A),ROW(A41),"") ->  | C47: =IF(B47="","",INDEX(الادخال!$C$5:$C$1005,MATCH(B47,الادخال!$A$5:$A$1005,0),0)) ->  | D47: =IF(B47="","",INDEX(الادخال!$F$5:$F$1005,MATCH(B47,الادخال!$A$5:$A$1005,0),0)) ->  | E47: =IF(B47="","",INDEX(الادخال!$G$5:G$1005,MATCH(B47,الادخال!$A$5:$A$1005,0),0)) ->  | F47: =IF(B47="","",INDEX(الادخال!$H$5:$H$1005,MATCH(B47,الادخال!$A$5:$A$1005,0),0)) ->  | G47: =IF(B47="","",INDEX(الادخال!$I$5:$I$1005,MATCH(B47,الادخال!$A$5:$A$1005,0),0)) ->  | I47: =IF(B47="","",INDEX(الادخال!$J$5:$J$1005,MATCH(B47,الادخال!$A$5:$A$1005,0),0)) ->  | J47: =IF(B47="","",INDEX(الادخال!$K$5:$K$1005,MATCH(B47,الادخال!$A$5:$A$1005,0),0)) ->  | K47: =K$6 -> 2
B48: =IF(ROW(A42)<=MAX(الادخال!$A:$A),ROW(A42),"") ->  | C48: =IF(B48="","",INDEX(الادخال!$C$5:$C$1005,MATCH(B48,الادخال!$A$5:$A$1005,0),0)) ->  | D48: =IF(B48="","",INDEX(الادخال!$F$5:$F$1005,MATCH(B48,الادخال!$A$5:$A$1005,0),0)) ->  | E48: =IF(B48="","",INDEX(الادخال!$G$5:G$1005,MATCH(B48,الادخال!$A$5:$A$1005,0),0)) ->  | F48: =IF(B48="","",INDEX(الادخال!$H$5:$H$1005,MATCH(B48,الادخال!$A$5:$A$1005,0),0)) ->  | G48: =IF(B48="","",INDEX(الادخال!$I$5:$I$1005,MATCH(B48,الادخال!$A$5:$A$1005,0),0)) ->  | I48: =IF(B48="","",INDEX(الادخال!$J$5:$J$1005,MATCH(B48,الادخال!$A$5:$A$1005,0),0)) ->  | J48: =IF(B48="","",INDEX(الادخال!$K$5:$K$1005,MATCH(B48,الادخال!$A$5:$A$1005,0),0)) ->  | K48: =K$5 -> 1
B49: =IF(ROW(A43)<=MAX(الادخال!$A:$A),ROW(A43),"") ->  | C49: =IF(B49="","",INDEX(الادخال!$C$5:$C$1005,MATCH(B49,الادخال!$A$5:$A$1005,0),0)) ->  | D49: =IF(B49="","",INDEX(الادخال!$F$5:$F$1005,MATCH(B49,الادخال!$A$5:$A$1005,0),0)) ->  | E49: =IF(B49="","",INDEX(الادخال!$G$5:G$1005,MATCH(B49,الادخال!$A$5:$A$1005,0),0)) ->  | F49: =IF(B49="","",INDEX(الادخال!$H$5:$H$1005,MATCH(B49,الادخال!$A$5:$A$1005,0),0)) ->  | G49: =IF(B49="","",INDEX(الادخال!$I$5:$I$1005,MATCH(B49,الادخال!$A$5:$A$1005,0),0)) ->  | I49: =IF(B49="","",INDEX(الادخال!$J$5:$J$1005,MATCH(B49,الادخال!$A$5:$A$1005,0),0)) ->  | J49: =IF(B49="","",INDEX(الادخال!$K$5:$K$1005,MATCH(B49,الادخال!$A$5:$A$1005,0),0)) ->  | K49: =K$6 -> 2
B50: =IF(ROW(A44)<=MAX(الادخال!$A:$A),ROW(A44),"") ->  | C50: =IF(B50="","",INDEX(الادخال!$C$5:$C$1005,MATCH(B50,الادخال!$A$5:$A$1005,0),0)) ->  | D50: =IF(B50="","",INDEX(الادخال!$F$5:$F$1005,MATCH(B50,الادخال!$A$5:$A$1005,0),0)) ->  | E50: =IF(B50="","",INDEX(الادخال!$G$5:G$1005,MATCH(B50,الادخال!$A$5:$A$1005,0),0)) ->  | F50: =IF(B50="","",INDEX(الادخال!$H$5:$H$1005,MATCH(B50,الادخال!$A$5:$A$1005,0),0)) ->  | G50: =IF(B50="","",INDEX(الادخال!$I$5:$I$1005,MATCH(B50,الادخال!$A$5:$A$1005,0),0)) ->  | I50: =IF(B50="","",INDEX(الادخال!$J$5:$J$1005,MATCH(B50,الادخال!$A$5:$A$1005,0),0)) ->  | J50: =IF(B50="","",INDEX(الادخال!$K$5:$K$1005,MATCH(B50,الادخال!$A$5:$A$1005,0),0)) ->  | K50: =K$5 -> 1
B51: =IF(ROW(A45)<=MAX(الادخال!$A:$A),ROW(A45),"") ->  | C51: =IF(B51="","",INDEX(الادخال!$C$5:$C$1005,MATCH(B51,الادخال!$A$5:$A$1005,0),0)) ->  | D51: =IF(B51="","",INDEX(الادخال!$F$5:$F$1005,MATCH(B51,الادخال!$A$5:$A$1005,0),0)) ->  | E51: =IF(B51="","",INDEX(الادخال!$G$5:G$1005,MATCH(B51,الادخال!$A$5:$A$1005,0),0)) ->  | F51: =IF(B51="","",INDEX(الادخال!$H$5:$H$1005,MATCH(B51,الادخال!$A$5:$A$1005,0),0)) ->  | G51: =IF(B51="","",INDEX(الادخال!$I$5:$I$1005,MATCH(B51,الادخال!$A$5:$A$1005,0),0)) ->  | I51: =IF(B51="","",INDEX(الادخال!$J$5:$J$1005,MATCH(B51,الادخال!$A$5:$A$1005,0),0)) ->  | J51: =IF(B51="","",INDEX(الادخال!$K$5:$K$1005,MATCH(B51,الادخال!$A$5:$A$1005,0),0)) ->  | K51: =K$6 -> 2
B52: =IF(ROW(A46)<=MAX(الادخال!$A:$A),ROW(A46),"") ->  | C52: =IF(B52="","",INDEX(الادخال!$C$5:$C$1005,MATCH(B52,الادخال!$A$5:$A$1005,0),0)) ->  | D52: =IF(B52="","",INDEX(الادخال!$F$5:$F$1005,MATCH(B52,الادخال!$A$5:$A$1005,0),0)) ->  | E52: =IF(B52="","",INDEX(الادخال!$G$5:G$1005,MATCH(B52,الادخال!$A$5:$A$1005,0),0)) ->  | F52: =IF(B52="","",INDEX(الادخال!$H$5:$H$1005,MATCH(B52,الادخال!$A$5:$A$1005,0),0)) ->  | G52: =IF(B52="","",INDEX(الادخال!$I$5:$I$1005,MATCH(B52,الادخال!$A$5:$A$1005,0),0)) ->  | I52: =IF(B52="","",INDEX(الادخال!$J$5:$J$1005,MATCH(B52,الادخال!$A$5:$A$1005,0),0)) ->  | J52: =IF(B52="","",INDEX(الادخال!$K$5:$K$1005,MATCH(B52,الادخال!$A$5:$A$1005,0),0)) ->  | K52: =K$5 -> 1
B53: =IF(ROW(A47)<=MAX(الادخال!$A:$A),ROW(A47),"") ->  | C53: =IF(B53="","",INDEX(الادخال!$C$5:$C$1005,MATCH(B53,الادخال!$A$5:$A$1005,0),0)) ->  | D53: =IF(B53="","",INDEX(الادخال!$F$5:$F$1005,MATCH(B53,الادخال!$A$5:$A$1005,0),0)) ->  | E53: =IF(B53="","",INDEX(الادخال!$G$5:G$1005,MATCH(B53,الادخال!$A$5:$A$1005,0),0)) ->  | F53: =IF(B53="","",INDEX(الادخال!$H$5:$H$1005,MATCH(B53,الادخال!$A$5:$A$1005,0),0)) ->  | G53: =IF(B53="","",INDEX(الادخال!$I$5:$I$1005,MATCH(B53,الادخال!$A$5:$A$1005,0),0)) ->  | I53: =IF(B53="","",INDEX(الادخال!$J$5:$J$1005,MATCH(B53,الادخال!$A$5:$A$1005,0),0)) ->  | J53: =IF(B53="","",INDEX(الادخال!$K$5:$K$1005,MATCH(B53,الادخال!$A$5:$A$1005,0),0)) ->  | K53: =K$6 -> 2
B54: =IF(ROW(A48)<=MAX(الادخال!$A:$A),ROW(A48),"") ->  | C54: =IF(B54="","",INDEX(الادخال!$C$5:$C$1005,MATCH(B54,الادخال!$A$5:$A$1005,0),0)) ->  | D54: =IF(B54="","",INDEX(الادخال!$F$5:$F$1005,MATCH(B54,الادخال!$A$5:$A$1005,0),0)) ->  | E54: =IF(B54="","",INDEX(الادخال!$G$5:G$1005,MATCH(B54,الادخال!$A$5:$A$1005,0),0)) ->  | F54: =IF(B54="","",INDEX(الادخال!$H$5:$H$1005,MATCH(B54,الادخال!$A$5:$A$1005,0),0)) ->  | G54: =IF(B54="","",INDEX(الادخال!$I$5:$I$1005,MATCH(B54,الادخال!$A$5:$A$1005,0),0)) ->  | I54: =IF(B54="","",INDEX(الادخال!$J$5:$J$1005,MATCH(B54,الادخال!$A$5:$A$1005,0),0)) ->  | J54: =IF(B54="","",INDEX(الادخال!$K$5:$K$1005,MATCH(B54,الادخال!$A$5:$A$1005,0),0)) ->  | K54: =K$5 -> 1
B55: =IF(ROW(A49)<=MAX(الادخال!$A:$A),ROW(A49),"") ->  | C55: =IF(B55="","",INDEX(الادخال!$C$5:$C$1005,MATCH(B55,الادخال!$A$5:$A$1005,0),0)) ->  | D55: =IF(B55="","",INDEX(الادخال!$F$5:$F$1005,MATCH(B55,الادخال!$A$5:$A$1005,0),0)) ->  | E55: =IF(B55="","",INDEX(الادخال!$G$5:G$1005,MATCH(B55,الادخال!$A$5:$A$1005,0),0)) ->  | F55: =IF(B55="","",INDEX(الادخال!$H$5:$H$1005,MATCH(B55,الادخال!$A$5:$A$1005,0),0)) ->  | G55: =IF(B55="","",INDEX(الادخال!$I$5:$I$1005,MATCH(B55,الادخال!$A$5:$A$1005,0),0)) ->  | I55: =IF(B55="","",INDEX(الادخال!$J$5:$J$1005,MATCH(B55,الادخال!$A$5:$A$1005,0),0)) ->  | J55: =IF(B55="","",INDEX(الادخال!$K$5:$K$1005,MATCH(B55,الادخال!$A$5:$A$1005,0),0)) ->  | K55: =K$6 -> 2
B56: =IF(ROW(A50)<=MAX(الادخال!$A:$A),ROW(A50),"") ->  | C56: =IF(B56="","",INDEX(الادخال!$C$5:$C$1005,MATCH(B56,الادخال!$A$5:$A$1005,0),0)) ->  | D56: =IF(B56="","",INDEX(الادخال!$F$5:$F$1005,MATCH(B56,الادخال!$A$5:$A$1005,0),0)) ->  | E56: =IF(B56="","",INDEX(الادخال!$G$5:G$1005,MATCH(B56,الادخال!$A$5:$A$1005,0),0)) ->  | F56: =IF(B56="","",INDEX(الادخال!$H$5:$H$1005,MATCH(B56,الادخال!$A$5:$A$1005,0),0)) ->  | G56: =IF(B56="","",INDEX(الادخال!$I$5:$I$1005,MATCH(B56,الادخال!$A$5:$A$1005,0),0)) ->  | I56: =IF(B56="","",INDEX(الادخال!$J$5:$J$1005,MATCH(B56,الادخال!$A$5:$A$1005,0),0)) ->  | J56: =IF(B56="","",INDEX(الادخال!$K$5:$K$1005,MATCH(B56,الادخال!$A$5:$A$1005,0),0)) ->  | K56: =K$5 -> 1
B57: =IF(ROW(A51)<=MAX(الادخال!$A:$A),ROW(A51),"") ->  | C57: =IF(B57="","",INDEX(الادخال!$C$5:$C$1005,MATCH(B57,الادخال!$A$5:$A$1005,0),0)) ->  | D57: =IF(B57="","",INDEX(الادخال!$F$5:$F$1005,MATCH(B57,الادخال!$A$5:$A$1005,0),0)) ->  | E57: =IF(B57="","",INDEX(الادخال!$G$5:G$1005,MATCH(B57,الادخال!$A$5:$A$1005,0),0)) ->  | F57: =IF(B57="","",INDEX(الادخال!$H$5:$H$1005,MATCH(B57,الادخال!$A$5:$A$1005,0),0)) ->  | G57: =IF(B57="","",INDEX(الادخال!$I$5:$I$1005,MATCH(B57,الادخال!$A$5:$A$1005,0),0)) ->  | I57: =IF(B57="","",INDEX(الادخال!$J$5:$J$1005,MATCH(B57,الادخال!$A$5:$A$1005,0),0)) ->  | J57: =IF(B57="","",INDEX(الادخال!$K$5:$K$1005,MATCH(B57,الادخال!$A$5:$A$1005,0),0)) ->  | K57: =K$6 -> 2
B58: =IF(ROW(A52)<=MAX(الادخال!$A:$A),ROW(A52),"") ->  | C58: =IF(B58="","",INDEX(الادخال!$C$5:$C$1005,MATCH(B58,الادخال!$A$5:$A$1005,0),0)) ->  | D58: =IF(B58="","",INDEX(الادخال!$F$5:$F$1005,MATCH(B58,الادخال!$A$5:$A$1005,0),0)) ->  | E58: =IF(B58="","",INDEX(الادخال!$G$5:G$1005,MATCH(B58,الادخال!$A$5:$A$1005,0),0)) ->  | F58: =IF(B58="","",INDEX(الادخال!$H$5:$H$1005,MATCH(B58,الادخال!$A$5:$A$1005,0),0)) ->  | G58: =IF(B58="","",INDEX(الادخال!$I$5:$I$1005,MATCH(B58,الادخال!$A$5:$A$1005,0),0)) ->  | I58: =IF(B58="","",INDEX(الادخال!$J$5:$J$1005,MATCH(B58,الادخال!$A$5:$A$1005,0),0)) ->  | J58: =IF(B58="","",INDEX(الادخال!$K$5:$K$1005,MATCH(B58,الادخال!$A$5:$A$1005,0),0)) ->  | K58: =K$5 -> 1
B59: =IF(ROW(A53)<=MAX(الادخال!$A:$A),ROW(A53),"") ->  | C59: =IF(B59="","",INDEX(الادخال!$C$5:$C$1005,MATCH(B59,الادخال!$A$5:$A$1005,0),0)) ->  | D59: =IF(B59="","",INDEX(الادخال!$F$5:$F$1005,MATCH(B59,الادخال!$A$5:$A$1005,0),0)) ->  | E59: =IF(B59="","",INDEX(الادخال!$G$5:G$1005,MATCH(B59,الادخال!$A$5:$A$1005,0),0)) ->  | F59: =IF(B59="","",INDEX(الادخال!$H$5:$H$1005,MATCH(B59,الادخال!$A$5:$A$1005,0),0)) ->  | G59: =IF(B59="","",INDEX(الادخال!$I$5:$I$1005,MATCH(B59,الادخال!$A$5:$A$1005,0),0)) ->  | I59: =IF(B59="","",INDEX(الادخال!$J$5:$J$1005,MATCH(B59,الادخال!$A$5:$A$1005,0),0)) ->  | J59: =IF(B59="","",INDEX(الادخال!$K$5:$K$1005,MATCH(B59,الادخال!$A$5:$A$1005,0),0)) ->  | K59: =K$6 -> 2
B60: =IF(ROW(A54)<=MAX(الادخال!$A:$A),ROW(A54),"") ->  | C60: =IF(B60="","",INDEX(الادخال!$C$5:$C$1005,MATCH(B60,الادخال!$A$5:$A$1005,0),0)) ->  | D60: =IF(B60="","",INDEX(الادخال!$F$5:$F$1005,MATCH(B60,الادخال!$A$5:$A$1005,0),0)) ->  | E60: =IF(B60="","",INDEX(الادخال!$G$5:G$1005,MATCH(B60,الادخال!$A$5:$A$1005,0),0)) ->  | F60: =IF(B60="","",INDEX(الادخال!$H$5:$H$1005,MATCH(B60,الادخال!$A$5:$A$1005,0),0)) ->  | G60: =IF(B60="","",INDEX(الادخال!$I$5:$I$1005,MATCH(B60,الادخال!$A$5:$A$1005,0),0)) ->  | I60: =IF(B60="","",INDEX(الادخال!$J$5:$J$1005,MATCH(B60,الادخال!$A$5:$A$1005,0),0)) ->  | J60: =IF(B60="","",INDEX(الادخال!$K$5:$K$1005,MATCH(B60,الادخال!$A$5:$A$1005,0),0)) ->  | K60: =K$5 -> 1
B61: =IF(ROW(A55)<=MAX(الادخال!$A:$A),ROW(A55),"") ->  | C61: =IF(B61="","",INDEX(الادخال!$C$5:$C$1005,MATCH(B61,الادخال!$A$5:$A$1005,0),0)) ->  | D61: =IF(B61="","",INDEX(الادخال!$F$5:$F$1005,MATCH(B61,الادخال!$A$5:$A$1005,0),0)) ->  | E61: =IF(B61="","",INDEX(الادخال!$G$5:G$1005,MATCH(B61,الادخال!$A$5:$A$1005,0),0)) ->  | F61: =IF(B61="","",INDEX(الادخال!$H$5:$H$1005,MATCH(B61,الادخال!$A$5:$A$1005,0),0)) ->  | G61: =IF(B61="","",INDEX(الادخال!$I$5:$I$1005,MATCH(B61,الادخال!$A$5:$A$1005,0),0)) ->  | I61: =IF(B61="","",INDEX(الادخال!$J$5:$J$1005,MATCH(B61,الادخال!$A$5:$A$1005,0),0)) ->  | J61: =IF(B61="","",INDEX(الادخال!$K$5:$K$1005,MATCH(B61,الادخال!$A$5:$A$1005,0),0)) ->  | K61: =K$6 -> 2
B62: =IF(ROW(A56)<=MAX(الادخال!$A:$A),ROW(A56),"") ->  | C62: =IF(B62="","",INDEX(الادخال!$C$5:$C$1005,MATCH(B62,الادخال!$A$5:$A$1005,0),0)) ->  | D62: =IF(B62="","",INDEX(الادخال!$F$5:$F$1005,MATCH(B62,الادخال!$A$5:$A$1005,0),0)) ->  | E62: =IF(B62="","",INDEX(الادخال!$G$5:G$1005,MATCH(B62,الادخال!$A$5:$A$1005,0),0)) ->  | F62: =IF(B62="","",INDEX(الادخال!$H$5:$H$1005,MATCH(B62,الادخال!$A$5:$A$1005,0),0)) ->  | G62: =IF(B62="","",INDEX(الادخال!$I$5:$I$1005,MATCH(B62,الادخال!$A$5:$A$1005,0),0)) ->  | I62: =IF(B62="","",INDEX(الادخال!$J$5:$J$1005,MATCH(B62,الادخال!$A$5:$A$1005,0),0)) ->  | J62: =IF(B62="","",INDEX(الادخال!$K$5:$K$1005,MATCH(B62,الادخال!$A$5:$A$1005,0),0)) ->  | K62: =K$5 -> 1
B63: =IF(ROW(A57)<=MAX(الادخال!$A:$A),ROW(A57),"") ->  | C63: =IF(B63="","",INDEX(الادخال!$C$5:$C$1005,MATCH(B63,الادخال!$A$5:$A$1005,0),0)) ->  | D63: =IF(B63="","",INDEX(الادخال!$F$5:$F$1005,MATCH(B63,الادخال!$A$5:$A$1005,0),0)) ->  | E63: =IF(B63="","",INDEX(الادخال!$G$5:G$1005,MATCH(B63,الادخال!$A$5:$A$1005,0),0)) ->  | F63: =IF(B63="","",INDEX(الادخال!$H$5:$H$1005,MATCH(B63,الادخال!$A$5:$A$1005,0),0)) ->  | G63: =IF(B63="","",INDEX(الادخال!$I$5:$I$1005,MATCH(B63,الادخال!$A$5:$A$1005,0),0)) ->  | I63: =IF(B63="","",INDEX(الادخال!$J$5:$J$1005,MATCH(B63,الادخال!$A$5:$A$1005,0),0)) ->  | J63: =IF(B63="","",INDEX(الادخال!$K$5:$K$1005,MATCH(B63,الادخال!$A$5:$A$1005,0),0)) ->  | K63: =K$6 -> 2
B64: =IF(ROW(A58)<=MAX(الادخال!$A:$A),ROW(A58),"") ->  | C64: =IF(B64="","",INDEX(الادخال!$C$5:$C$1005,MATCH(B64,الادخال!$A$5:$A$1005,0),0)) ->  | D64: =IF(B64="","",INDEX(الادخال!$F$5:$F$1005,MATCH(B64,الادخال!$A$5:$A$1005,0),0)) ->  | E64: =IF(B64="","",INDEX(الادخال!$G$5:G$1005,MATCH(B64,الادخال!$A$5:$A$1005,0),0)) ->  | F64: =IF(B64="","",INDEX(الادخال!$H$5:$H$1005,MATCH(B64,الادخال!$A$5:$A$1005,0),0)) ->  | G64: =IF(B64="","",INDEX(الادخال!$I$5:$I$1005,MATCH(B64,الادخال!$A$5:$A$1005,0),0)) ->  | I64: =IF(B64="","",INDEX(الادخال!$J$5:$J$1005,MATCH(B64,الادخال!$A$5:$A$1005,0),0)) ->  | J64: =IF(B64="","",INDEX(الادخال!$K$5:$K$1005,MATCH(B64,الادخال!$A$5:$A$1005,0),0)) ->  | K64: =K$5 -> 1
B65: =IF(ROW(A59)<=MAX(الادخال!$A:$A),ROW(A59),"") ->  | C65: =IF(B65="","",INDEX(الادخال!$C$5:$C$1005,MATCH(B65,الادخال!$A$5:$A$1005,0),0)) ->  | D65: =IF(B65="","",INDEX(الادخال!$F$5:$F$1005,MATCH(B65,الادخال!$A$5:$A$1005,0),0)) ->  | E65: =IF(B65="","",INDEX(الادخال!$G$5:G$1005,MATCH(B65,الادخال!$A$5:$A$1005,0),0)) ->  | F65: =IF(B65="","",INDEX(الادخال!$H$5:$H$1005,MATCH(B65,الادخال!$A$5:$A$1005,0),0)) ->  | G65: =IF(B65="","",INDEX(الادخال!$I$5:$I$1005,MATCH(B65,الادخال!$A$5:$A$1005,0),0)) ->  | I65: =IF(B65="","",INDEX(الادخال!$J$5:$J$1005,MATCH(B65,الادخال!$A$5:$A$1005,0),0)) ->  | J65: =IF(B65="","",INDEX(الادخال!$K$5:$K$1005,MATCH(B65,الادخال!$A$5:$A$1005,0),0)) ->  | K65: =K$6 -> 2
B66: =IF(ROW(A60)<=MAX(الادخال!$A:$A),ROW(A60),"") ->  | C66: =IF(B66="","",INDEX(الادخال!$C$5:$C$1005,MATCH(B66,الادخال!$A$5:$A$1005,0),0)) ->  | D66: =IF(B66="","",INDEX(الادخال!$F$5:$F$1005,MATCH(B66,الادخال!$A$5:$A$1005,0),0)) ->  | E66: =IF(B66="","",INDEX(الادخال!$G$5:G$1005,MATCH(B66,الادخال!$A$5:$A$1005,0),0)) ->  | F66: =IF(B66="","",INDEX(الادخال!$H$5:$H$1005,MATCH(B66,الادخال!$A$5:$A$1005,0),0)) ->  | G66: =IF(B66="","",INDEX(الادخال!$I$5:$I$1005,MATCH(B66,الادخال!$A$5:$A$1005,0),0)) ->  | I66: =IF(B66="","",INDEX(الادخال!$J$5:$J$1005,MATCH(B66,الادخال!$A$5:$A$1005,0),0)) ->  | J66: =IF(B66="","",INDEX(الادخال!$K$5:$K$1005,MATCH(B66,الادخال!$A$5:$A$1005,0),0)) ->  | K66: =K$5 -> 1
B67: =IF(ROW(A61)<=MAX(الادخال!$A:$A),ROW(A61),"") ->  | C67: =IF(B67="","",INDEX(الادخال!$C$5:$C$1005,MATCH(B67,الادخال!$A$5:$A$1005,0),0)) ->  | D67: =IF(B67="","",INDEX(الادخال!$F$5:$F$1005,MATCH(B67,الادخال!$A$5:$A$1005,0),0)) ->  | E67: =IF(B67="","",INDEX(الادخال!$G$5:G$1005,MATCH(B67,الادخال!$A$5:$A$1005,0),0)) ->  | F67: =IF(B67="","",INDEX(الادخال!$H$5:$H$1005,MATCH(B67,الادخال!$A$5:$A$1005,0),0)) ->  | G67: =IF(B67="","",INDEX(الادخال!$I$5:$I$1005,MATCH(B67,الادخال!$A$5:$A$1005,0),0)) ->  | I67: =IF(B67="","",INDEX(الادخال!$J$5:$J$1005,MATCH(B67,الادخال!$A$5:$A$1005,0),0)) ->  | J67: =IF(B67="","",INDEX(الادخال!$K$5:$K$1005,MATCH(B67,الادخال!$A$5:$A$1005,0),0)) ->  | K67: =K$6 -> 2
B68: =IF(ROW(A62)<=MAX(الادخال!$A:$A),ROW(A62),"") ->  | C68: =IF(B68="","",INDEX(الادخال!$C$5:$C$1005,MATCH(B68,الادخال!$A$5:$A$1005,0),0)) ->  | D68: =IF(B68="","",INDEX(الادخال!$F$5:$F$1005,MATCH(B68,الادخال!$A$5:$A$1005,0),0)) ->  | E68: =IF(B68="","",INDEX(الادخال!$G$5:G$1005,MATCH(B68,الادخال!$A$5:$A$1005,0),0)) ->  | F68: =IF(B68="","",INDEX(الادخال!$H$5:$H$1005,MATCH(B68,الادخال!$A$5:$A$1005,0),0)) ->  | G68: =IF(B68="","",INDEX(الادخال!$I$5:$I$1005,MATCH(B68,الادخال!$A$5:$A$1005,0),0)) ->  | I68: =IF(B68="","",INDEX(الادخال!$J$5:$J$1005,MATCH(B68,الادخال!$A$5:$A$1005,0),0)) ->  | J68: =IF(B68="","",INDEX(الادخال!$K$5:$K$1005,MATCH(B68,الادخال!$A$5:$A$1005,0),0)) ->  | K68: =K$5 -> 1
B69: =IF(ROW(A63)<=MAX(الادخال!$A:$A),ROW(A63),"") ->  | C69: =IF(B69="","",INDEX(الادخال!$C$5:$C$1005,MATCH(B69,الادخال!$A$5:$A$1005,0),0)) ->  | D69: =IF(B69="","",INDEX(الادخال!$F$5:$F$1005,MATCH(B69,الادخال!$A$5:$A$1005,0),0)) ->  | E69: =IF(B69="","",INDEX(الادخال!$G$5:G$1005,MATCH(B69,الادخال!$A$5:$A$1005,0),0)) ->  | F69: =IF(B69="","",INDEX(الادخال!$H$5:$H$1005,MATCH(B69,الادخال!$A$5:$A$1005,0),0)) ->  | G69: =IF(B69="","",INDEX(الادخال!$I$5:$I$1005,MATCH(B69,الادخال!$A$5:$A$1005,0),0)) ->  | I69: =IF(B69="","",INDEX(الادخال!$J$5:$J$1005,MATCH(B69,الادخال!$A$5:$A$1005,0),0)) ->  | J69: =IF(B69="","",INDEX(الادخال!$K$5:$K$1005,MATCH(B69,الادخال!$A$5:$A$1005,0),0)) ->  | K69: =K$6 -> 2
B70: =IF(ROW(A64)<=MAX(الادخال!$A:$A),ROW(A64),"") ->  | C70: =IF(B70="","",INDEX(الادخال!$C$5:$C$1005,MATCH(B70,الادخال!$A$5:$A$1005,0),0)) ->  | D70: =IF(B70="","",INDEX(الادخال!$F$5:$F$1005,MATCH(B70,الادخال!$A$5:$A$1005,0),0)) ->  | E70: =IF(B70="","",INDEX(الادخال!$G$5:G$1005,MATCH(B70,الادخال!$A$5:$A$1005,0),0)) ->  | F70: =IF(B70="","",INDEX(الادخال!$H$5:$H$1005,MATCH(B70,الادخال!$A$5:$A$1005,0),0)) ->  | G70: =IF(B70="","",INDEX(الادخال!$I$5:$I$1005,MATCH(B70,الادخال!$A$5:$A$1005,0),0)) ->  | I70: =IF(B70="","",INDEX(الادخال!$J$5:$J$1005,MATCH(B70,الادخال!$A$5:$A$1005,0),0)) ->  | J70: =IF(B70="","",INDEX(الادخال!$K$5:$K$1005,MATCH(B70,الادخال!$A$5:$A$1005,0),0)) ->  | K70: =K$5 -> 1
B71: =IF(ROW(A65)<=MAX(الادخال!$A:$A),ROW(A65),"") ->  | C71: =IF(B71="","",INDEX(الادخال!$C$5:$C$1005,MATCH(B71,الادخال!$A$5:$A$1005,0),0)) ->  | D71: =IF(B71="","",INDEX(الادخال!$F$5:$F$1005,MATCH(B71,الادخال!$A$5:$A$1005,0),0)) ->  | E71: =IF(B71="","",INDEX(الادخال!$G$5:G$1005,MATCH(B71,الادخال!$A$5:$A$1005,0),0)) ->  | F71: =IF(B71="","",INDEX(الادخال!$H$5:$H$1005,MATCH(B71,الادخال!$A$5:$A$1005,0),0)) ->  | G71: =IF(B71="","",INDEX(الادخال!$I$5:$I$1005,MATCH(B71,الادخال!$A$5:$A$1005,0),0)) ->  | I71: =IF(B71="","",INDEX(الادخال!$J$5:$J$1005,MATCH(B71,الادخال!$A$5:$A$1005,0),0)) ->  | J71: =IF(B71="","",INDEX(الادخال!$K$5:$K$1005,MATCH(B71,الادخال!$A$5:$A$1005,0),0)) ->  | K71: =K$6 -> 2
B72: =IF(ROW(A66)<=MAX(الادخال!$A:$A),ROW(A66),"") ->  | C72: =IF(B72="","",INDEX(الادخال!$C$5:$C$1005,MATCH(B72,الادخال!$A$5:$A$1005,0),0)) ->  | D72: =IF(B72="","",INDEX(الادخال!$F$5:$F$1005,MATCH(B72,الادخال!$A$5:$A$1005,0),0)) ->  | E72: =IF(B72="","",INDEX(الادخال!$G$5:G$1005,MATCH(B72,الادخال!$A$5:$A$1005,0),0)) ->  | F72: =IF(B72="","",INDEX(الادخال!$H$5:$H$1005,MATCH(B72,الادخال!$A$5:$A$1005,0),0)) ->  | G72: =IF(B72="","",INDEX(الادخال!$I$5:$I$1005,MATCH(B72,الادخال!$A$5:$A$1005,0),0)) ->  | H72: =IFERROR((H71+E72)-(F72+G72),"") ->  | I72: =IF(B72="","",INDEX(الادخال!$J$5:$J$1005,MATCH(B72,الادخال!$A$5:$A$1005,0),0)) ->  | J72: =IF(B72="","",INDEX(الادخال!$K$5:$K$1005,MATCH(B72,الادخال!$A$5:$A$1005,0),0)) ->  | K72: =K$5 -> 1
B73: =IF(ROW(A67)<=MAX(الادخال!$A:$A),ROW(A67),"") ->  | C73: =IF(B73="","",INDEX(الادخال!$C$5:$C$1005,MATCH(B73,الادخال!$A$5:$A$1005,0),0)) ->  | D73: =IF(B73="","",INDEX(الادخال!$F$5:$F$1005,MATCH(B73,الادخال!$A$5:$A$1005,0),0)) ->  | E73: =IF(B73="","",INDEX(الادخال!$G$5:G$1005,MATCH(B73,الادخال!$A$5:$A$1005,0),0)) ->  | F73: =IF(B73="","",INDEX(الادخال!$H$5:$H$1005,MATCH(B73,الادخال!$A$5:$A$1005,0),0)) ->  | G73: =IF(B73="","",INDEX(الادخال!$I$5:$I$1005,MATCH(B73,الادخال!$A$5:$A$1005,0),0)) ->  | I73: =IF(B73="","",INDEX(الادخال!$J$5:$J$1005,MATCH(B73,الادخال!$A$5:$A$1005,0),0)) ->  | J73: =IF(B73="","",INDEX(الادخال!$K$5:$K$1005,MATCH(B73,الادخال!$A$5:$A$1005,0),0)) ->  | K73: =K$6 -> 2
B74: =IF(ROW(A68)<=MAX(الادخال!$A:$A),ROW(A68),"") ->  | C74: =IF(B74="","",INDEX(الادخال!$C$5:$C$1005,MATCH(B74,الادخال!$A$5:$A$1005,0),0)) ->  | D74: =IF(B74="","",INDEX(الادخال!$F$5:$F$1005,MATCH(B74,الادخال!$A$5:$A$1005,0),0)) ->  | E74: =IF(B74="","",INDEX(الادخال!$G$5:G$1005,MATCH(B74,الادخال!$A$5:$A$1005,0),0)) ->  | F74: =IF(B74="","",INDEX(الادخال!$H$5:$H$1005,MATCH(B74,الادخال!$A$5:$A$1005,0),0)) ->  | G74: =IF(B74="","",INDEX(الادخال!$I$5:$I$1005,MATCH(B74,الادخال!$A$5:$A$1005,0),0)) ->  | I74: =IF(B74="","",INDEX(الادخال!$J$5:$J$1005,MATCH(B74,الادخال!$A$5:$A$1005,0),0)) ->  | J74: =IF(B74="","",INDEX(الادخال!$K$5:$K$1005,MATCH(B74,الادخال!$A$5:$A$1005,0),0)) ->  | K74: =K$5 -> 1
B75: =IF(ROW(A69)<=MAX(الادخال!$A:$A),ROW(A69),"") ->  | C75: =IF(B75="","",INDEX(الادخال!$C$5:$C$1005,MATCH(B75,الادخال!$A$5:$A$1005,0),0)) ->  | D75: =IF(B75="","",INDEX(الادخال!$F$5:$F$1005,MATCH(B75,الادخال!$A$5:$A$1005,0),0)) ->  | E75: =IF(B75="","",INDEX(الادخال!$G$5:G$1005,MATCH(B75,الادخال!$A$5:$A$1005,0),0)) ->  | F75: =IF(B75="","",INDEX(الادخال!$H$5:$H$1005,MATCH(B75,الادخال!$A$5:$A$1005,0),0)) ->  | G75: =IF(B75="","",INDEX(الادخال!$I$5:$I$1005,MATCH(B75,الادخال!$A$5:$A$1005,0),0)) ->  | I75: =IF(B75="","",INDEX(الادخال!$J$5:$J$1005,MATCH(B75,الادخال!$A$5:$A$1005,0),0)) ->  | J75: =IF(B75="","",INDEX(الادخال!$K$5:$K$1005,MATCH(B75,الادخال!$A$5:$A$1005,0),0)) ->  | K75: =K$6 -> 2
B76: =IF(ROW(A70)<=MAX(الادخال!$A:$A),ROW(A70),"") ->  | C76: =IF(B76="","",INDEX(الادخال!$C$5:$C$1005,MATCH(B76,الادخال!$A$5:$A$1005,0),0)) ->  | D76: =IF(B76="","",INDEX(الادخال!$F$5:$F$1005,MATCH(B76,الادخال!$A$5:$A$1005,0),0)) ->  | E76: =IF(B76="","",INDEX(الادخال!$G$5:G$1005,MATCH(B76,الادخال!$A$5:$A$1005,0),0)) ->  | F76: =IF(B76="","",INDEX(الادخال!$H$5:$H$1005,MATCH(B76,الادخال!$A$5:$A$1005,0),0)) ->  | G76: =IF(B76="","",INDEX(الادخال!$I$5:$I$1005,MATCH(B76,الادخال!$A$5:$A$1005,0),0)) ->  | I76: =IF(B76="","",INDEX(الادخال!$J$5:$J$1005,MATCH(B76,الادخال!$A$5:$A$1005,0),0)) ->  | J76: =IF(B76="","",INDEX(الادخال!$K$5:$K$1005,MATCH(B76,الادخال!$A$5:$A$1005,0),0)) ->  | K76: =K$5 -> 1
B77: =IF(ROW(A71)<=MAX(الادخال!$A:$A),ROW(A71),"") ->  | C77: =IF(B77="","",INDEX(الادخال!$C$5:$C$1005,MATCH(B77,الادخال!$A$5:$A$1005,0),0)) ->  | D77: =IF(B77="","",INDEX(الادخال!$F$5:$F$1005,MATCH(B77,الادخال!$A$5:$A$1005,0),0)) ->  | E77: =IF(B77="","",INDEX(الادخال!$G$5:G$1005,MATCH(B77,الادخال!$A$5:$A$1005,0),0)) ->  | F77: =IF(B77="","",INDEX(الادخال!$H$5:$H$1005,MATCH(B77,الادخال!$A$5:$A$1005,0),0)) ->  | G77: =IF(B77="","",INDEX(الادخال!$I$5:$I$1005,MATCH(B77,الادخال!$A$5:$A$1005,0),0)) ->  | I77: =IF(B77="","",INDEX(الادخال!$J$5:$J$1005,MATCH(B77,الادخال!$A$5:$A$1005,0),0)) ->  | J77: =IF(B77="","",INDEX(الادخال!$K$5:$K$1005,MATCH(B77,الادخال!$A$5:$A$1005,0),0)) ->  | K77: =K$6 -> 2
B78: =IF(ROW(A72)<=MAX(الادخال!$A:$A),ROW(A72),"") ->  | C78: =IF(B78="","",INDEX(الادخال!$C$5:$C$1005,MATCH(B78,الادخال!$A$5:$A$1005,0),0)) ->  | D78: =IF(B78="","",INDEX(الادخال!$F$5:$F$1005,MATCH(B78,الادخال!$A$5:$A$1005,0),0)) ->  | E78: =IF(B78="","",INDEX(الادخال!$G$5:G$1005,MATCH(B78,الادخال!$A$5:$A$1005,0),0)) ->  | F78: =IF(B78="","",INDEX(الادخال!$H$5:$H$1005,MATCH(B78,الادخال!$A$5:$A$1005,0),0)) ->  | G78: =IF(B78="","",INDEX(الادخال!$I$5:$I$1005,MATCH(B78,الادخال!$A$5:$A$1005,0),0)) ->  | I78: =IF(B78="","",INDEX(الادخال!$J$5:$J$1005,MATCH(B78,الادخال!$A$5:$A$1005,0),0)) ->  | J78: =IF(B78="","",INDEX(الادخال!$K$5:$K$1005,MATCH(B78,الادخال!$A$5:$A$1005,0),0)) ->  | K78: =K$5 -> 1
B79: =IF(ROW(A73)<=MAX(الادخال!$A:$A),ROW(A73),"") ->  | C79: =IF(B79="","",INDEX(الادخال!$C$5:$C$1005,MATCH(B79,الادخال!$A$5:$A$1005,0),0)) ->  | D79: =IF(B79="","",INDEX(الادخال!$F$5:$F$1005,MATCH(B79,الادخال!$A$5:$A$1005,0),0)) ->  | E79: =IF(B79="","",INDEX(الادخال!$G$5:G$1005,MATCH(B79,الادخال!$A$5:$A$1005,0),0)) ->  | F79: =IF(B79="","",INDEX(الادخال!$H$5:$H$1005,MATCH(B79,الادخال!$A$5:$A$1005,0),0)) ->  | G79: =IF(B79="","",INDEX(الادخال!$I$5:$I$1005,MATCH(B79,الادخال!$A$5:$A$1005,0),0)) ->  | I79: =IF(B79="","",INDEX(الادخال!$J$5:$J$1005,MATCH(B79,الادخال!$A$5:$A$1005,0),0)) ->  | J79: =IF(B79="","",INDEX(الادخال!$K$5:$K$1005,MATCH(B79,الادخال!$A$5:$A$1005,0),0)) ->  | K79: =K$6 -> 2
B80: =IF(ROW(A74)<=MAX(الادخال!$A:$A),ROW(A74),"") ->  | C80: =IF(B80="","",INDEX(الادخال!$C$5:$C$1005,MATCH(B80,الادخال!$A$5:$A$1005,0),0)) ->  | D80: =IF(B80="","",INDEX(الادخال!$F$5:$F$1005,MATCH(B80,الادخال!$A$5:$A$1005,0),0)) ->  | E80: =IF(B80="","",INDEX(الادخال!$G$5:G$1005,MATCH(B80,الادخال!$A$5:$A$1005,0),0)) ->  | F80: =IF(B80="","",INDEX(الادخال!$H$5:$H$1005,MATCH(B80,الادخال!$A$5:$A$1005,0),0)) ->  | G80: =IF(B80="","",INDEX(الادخال!$I$5:$I$1005,MATCH(B80,الادخال!$A$5:$A$1005,0),0)) ->  | I80: =IF(B80="","",INDEX(الادخال!$J$5:$J$1005,MATCH(B80,الادخال!$A$5:$A$1005,0),0)) ->  | J80: =IF(B80="","",INDEX(الادخال!$K$5:$K$1005,MATCH(B80,الادخال!$A$5:$A$1005,0),0)) ->  | K80: =K$5 -> 1
B81: =IF(ROW(A75)<=MAX(الادخال!$A:$A),ROW(A75),"") ->  | C81: =IF(B81="","",INDEX(الادخال!$C$5:$C$1005,MATCH(B81,الادخال!$A$5:$A$1005,0),0)) ->  | D81: =IF(B81="","",INDEX(الادخال!$F$5:$F$1005,MATCH(B81,الادخال!$A$5:$A$1005,0),0)) ->  | E81: =IF(B81="","",INDEX(الادخال!$G$5:G$1005,MATCH(B81,الادخال!$A$5:$A$1005,0),0)) ->  | F81: =IF(B81="","",INDEX(الادخال!$H$5:$H$1005,MATCH(B81,الادخال!$A$5:$A$1005,0),0)) ->  | G81: =IF(B81="","",INDEX(الادخال!$I$5:$I$1005,MATCH(B81,الادخال!$A$5:$A$1005,0),0)) ->  | I81: =IF(B81="","",INDEX(الادخال!$J$5:$J$1005,MATCH(B81,الادخال!$A$5:$A$1005,0),0)) ->  | J81: =IF(B81="","",INDEX(الادخال!$K$5:$K$1005,MATCH(B81,الادخال!$A$5:$A$1005,0),0)) ->  | K81: =K$6 -> 2
B82: =IF(ROW(A76)<=MAX(الادخال!$A:$A),ROW(A76),"") ->  | C82: =IF(B82="","",INDEX(الادخال!$C$5:$C$1005,MATCH(B82,الادخال!$A$5:$A$1005,0),0)) ->  | D82: =IF(B82="","",INDEX(الادخال!$F$5:$F$1005,MATCH(B82,الادخال!$A$5:$A$1005,0),0)) ->  | E82: =IF(B82="","",INDEX(الادخال!$G$5:G$1005,MATCH(B82,الادخال!$A$5:$A$1005,0),0)) ->  | F82: =IF(B82="","",INDEX(الادخال!$H$5:$H$1005,MATCH(B82,الادخال!$A$5:$A$1005,0),0)) ->  | G82: =IF(B82="","",INDEX(الادخال!$I$5:$I$1005,MATCH(B82,الادخال!$A$5:$A$1005,0),0)) ->  | I82: =IF(B82="","",INDEX(الادخال!$J$5:$J$1005,MATCH(B82,الادخال!$A$5:$A$1005,0),0)) ->  | J82: =IF(B82="","",INDEX(الادخال!$K$5:$K$1005,MATCH(B82,الادخال!$A$5:$A$1005,0),0)) ->  | K82: =K$5 -> 1
B83: =IF(ROW(A77)<=MAX(الادخال!$A:$A),ROW(A77),"") ->  | C83: =IF(B83="","",INDEX(الادخال!$C$5:$C$1005,MATCH(B83,الادخال!$A$5:$A$1005,0),0)) ->  | D83: =IF(B83="","",INDEX(الادخال!$F$5:$F$1005,MATCH(B83,الادخال!$A$5:$A$1005,0),0)) ->  | E83: =IF(B83="","",INDEX(الادخال!$G$5:G$1005,MATCH(B83,الادخال!$A$5:$A$1005,0),0)) ->  | F83: =IF(B83="","",INDEX(الادخال!$H$5:$H$1005,MATCH(B83,الادخال!$A$5:$A$1005,0),0)) ->  | G83: =IF(B83="","",INDEX(الادخال!$I$5:$I$1005,MATCH(B83,الادخال!$A$5:$A$1005,0),0)) ->  | I83: =IF(B83="","",INDEX(الادخال!$J$5:$J$1005,MATCH(B83,الادخال!$A$5:$A$1005,0),0)) ->  | J83: =IF(B83="","",INDEX(الادخال!$K$5:$K$1005,MATCH(B83,الادخال!$A$5:$A$1005,0),0)) ->  | K83: =K$6 -> 2
B84: =IF(ROW(A78)<=MAX(الادخال!$A:$A),ROW(A78),"") ->  | C84: =IF(B84="","",INDEX(الادخال!$C$5:$C$1005,MATCH(B84,الادخال!$A$5:$A$1005,0),0)) ->  | D84: =IF(B84="","",INDEX(الادخال!$F$5:$F$1005,MATCH(B84,الادخال!$A$5:$A$1005,0),0)) ->  | E84: =IF(B84="","",INDEX(الادخال!$G$5:G$1005,MATCH(B84,الادخال!$A$5:$A$1005,0),0)) ->  | F84: =IF(B84="","",INDEX(الادخال!$H$5:$H$1005,MATCH(B84,الادخال!$A$5:$A$1005,0),0)) ->  | G84: =IF(B84="","",INDEX(الادخال!$I$5:$I$1005,MATCH(B84,الادخال!$A$5:$A$1005,0),0)) ->  | I84: =IF(B84="","",INDEX(الادخال!$J$5:$J$1005,MATCH(B84,الادخال!$A$5:$A$1005,0),0)) ->  | J84: =IF(B84="","",INDEX(الادخال!$K$5:$K$1005,MATCH(B84,الادخال!$A$5:$A$1005,0),0)) ->  | K84: =K$5 -> 1
B85: =IF(ROW(A79)<=MAX(الادخال!$A:$A),ROW(A79),"") ->  | C85: =IF(B85="","",INDEX(الادخال!$C$5:$C$1005,MATCH(B85,الادخال!$A$5:$A$1005,0),0)) ->  | D85: =IF(B85="","",INDEX(الادخال!$F$5:$F$1005,MATCH(B85,الادخال!$A$5:$A$1005,0),0)) ->  | E85: =IF(B85="","",INDEX(الادخال!$G$5:G$1005,MATCH(B85,الادخال!$A$5:$A$1005,0),0)) ->  | F85: =IF(B85="","",INDEX(الادخال!$H$5:$H$1005,MATCH(B85,الادخال!$A$5:$A$1005,0),0)) ->  | G85: =IF(B85="","",INDEX(الادخال!$I$5:$I$1005,MATCH(B85,الادخال!$A$5:$A$1005,0),0)) ->  | I85: =IF(B85="","",INDEX(الادخال!$J$5:$J$1005,MATCH(B85,الادخال!$A$5:$A$1005,0),0)) ->  | J85: =IF(B85="","",INDEX(الادخال!$K$5:$K$1005,MATCH(B85,الادخال!$A$5:$A$1005,0),0)) ->  | K85: =K$6 -> 2
B86: =IF(ROW(A80)<=MAX(الادخال!$A:$A),ROW(A80),"") ->  | C86: =IF(B86="","",INDEX(الادخال!$C$5:$C$1005,MATCH(B86,الادخال!$A$5:$A$1005,0),0)) ->  | D86: =IF(B86="","",INDEX(الادخال!$F$5:$F$1005,MATCH(B86,الادخال!$A$5:$A$1005,0),0)) ->  | E86: =IF(B86="","",INDEX(الادخال!$G$5:G$1005,MATCH(B86,الادخال!$A$5:$A$1005,0),0)) ->  | F86: =IF(B86="","",INDEX(الادخال!$H$5:$H$1005,MATCH(B86,الادخال!$A$5:$A$1005,0),0)) ->  | G86: =IF(B86="","",INDEX(الادخال!$I$5:$I$1005,MATCH(B86,الادخال!$A$5:$A$1005,0),0)) ->  | I86: =IF(B86="","",INDEX(الادخال!$J$5:$J$1005,MATCH(B86,الادخال!$A$5:$A$1005,0),0)) ->  | J86: =IF(B86="","",INDEX(الادخال!$K$5:$K$1005,MATCH(B86,الادخال!$A$5:$A$1005,0),0)) ->  | K86: =K$5 -> 1
B87: =IF(ROW(A81)<=MAX(الادخال!$A:$A),ROW(A81),"") ->  | C87: =IF(B87="","",INDEX(الادخال!$C$5:$C$1005,MATCH(B87,الادخال!$A$5:$A$1005,0),0)) ->  | D87: =IF(B87="","",INDEX(الادخال!$F$5:$F$1005,MATCH(B87,الادخال!$A$5:$A$1005,0),0)) ->  | E87: =IF(B87="","",INDEX(الادخال!$G$5:G$1005,MATCH(B87,الادخال!$A$5:$A$1005,0),0)) ->  | F87: =IF(B87="","",INDEX(الادخال!$H$5:$H$1005,MATCH(B87,الادخال!$A$5:$A$1005,0),0)) ->  | G87: =IF(B87="","",INDEX(الادخال!$I$5:$I$1005,MATCH(B87,الادخال!$A$5:$A$1005,0),0)) ->  | I87: =IF(B87="","",INDEX(الادخال!$J$5:$J$1005,MATCH(B87,الادخال!$A$5:$A$1005,0),0)) ->  | J87: =IF(B87="","",INDEX(الادخال!$K$5:$K$1005,MATCH(B87,الادخال!$A$5:$A$1005,0),0)) ->  | K87: =K$6 -> 2
B88: =IF(ROW(A82)<=MAX(الادخال!$A:$A),ROW(A82),"") ->  | C88: =IF(B88="","",INDEX(الادخال!$C$5:$C$1005,MATCH(B88,الادخال!$A$5:$A$1005,0),0)) ->  | D88: =IF(B88="","",INDEX(الادخال!$F$5:$F$1005,MATCH(B88,الادخال!$A$5:$A$1005,0),0)) ->  | E88: =IF(B88="","",INDEX(الادخال!$G$5:G$1005,MATCH(B88,الادخال!$A$5:$A$1005,0),0)) ->  | F88: =IF(B88="","",INDEX(الادخال!$H$5:$H$1005,MATCH(B88,الادخال!$A$5:$A$1005,0),0)) ->  | G88: =IF(B88="","",INDEX(الادخال!$I$5:$I$1005,MATCH(B88,الادخال!$A$5:$A$1005,0),0)) ->  | I88: =IF(B88="","",INDEX(الادخال!$J$5:$J$1005,MATCH(B88,الادخال!$A$5:$A$1005,0),0)) ->  | J88: =IF(B88="","",INDEX(الادخال!$K$5:$K$1005,MATCH(B88,الادخال!$A$5:$A$1005,0),0)) ->  | K88: =K$5 -> 1
B89: =IF(ROW(A83)<=MAX(الادخال!$A:$A),ROW(A83),"") ->  | C89: =IF(B89="","",INDEX(الادخال!$C$5:$C$1005,MATCH(B89,الادخال!$A$5:$A$1005,0),0)) ->  | D89: =IF(B89="","",INDEX(الادخال!$F$5:$F$1005,MATCH(B89,الادخال!$A$5:$A$1005,0),0)) ->  | E89: =IF(B89="","",INDEX(الادخال!$G$5:G$1005,MATCH(B89,الادخال!$A$5:$A$1005,0),0)) ->  | F89: =IF(B89="","",INDEX(الادخال!$H$5:$H$1005,MATCH(B89,الادخال!$A$5:$A$1005,0),0)) ->  | G89: =IF(B89="","",INDEX(الادخال!$I$5:$I$1005,MATCH(B89,الادخال!$A$5:$A$1005,0),0)) ->  | I89: =IF(B89="","",INDEX(الادخال!$J$5:$J$1005,MATCH(B89,الادخال!$A$5:$A$1005,0),0)) ->  | J89: =IF(B89="","",INDEX(الادخال!$K$5:$K$1005,MATCH(B89,الادخال!$A$5:$A$1005,0),0)) ->  | K89: =K$6 -> 2
B90: =IF(ROW(A84)<=MAX(الادخال!$A:$A),ROW(A84),"") ->  | C90: =IF(B90="","",INDEX(الادخال!$C$5:$C$1005,MATCH(B90,الادخال!$A$5:$A$1005,0),0)) ->  | D90: =IF(B90="","",INDEX(الادخال!$F$5:$F$1005,MATCH(B90,الادخال!$A$5:$A$1005,0),0)) ->  | E90: =IF(B90="","",INDEX(الادخال!$G$5:G$1005,MATCH(B90,الادخال!$A$5:$A$1005,0),0)) ->  | F90: =IF(B90="","",INDEX(الادخال!$H$5:$H$1005,MATCH(B90,الادخال!$A$5:$A$1005,0),0)) ->  | G90: =IF(B90="","",INDEX(الادخال!$I$5:$I$1005,MATCH(B90,الادخال!$A$5:$A$1005,0),0)) ->  | I90: =IF(B90="","",INDEX(الادخال!$J$5:$J$1005,MATCH(B90,الادخال!$A$5:$A$1005,0),0)) ->  | J90: =IF(B90="","",INDEX(الادخال!$K$5:$K$1005,MATCH(B90,الادخال!$A$5:$A$1005,0),0)) ->  | K90: =K$5 -> 1
B91: =IF(ROW(A85)<=MAX(الادخال!$A:$A),ROW(A85),"") ->  | C91: =IF(B91="","",INDEX(الادخال!$C$5:$C$1005,MATCH(B91,الادخال!$A$5:$A$1005,0),0)) ->  | D91: =IF(B91="","",INDEX(الادخال!$F$5:$F$1005,MATCH(B91,الادخال!$A$5:$A$1005,0),0)) ->  | E91: =IF(B91="","",INDEX(الادخال!$G$5:G$1005,MATCH(B91,الادخال!$A$5:$A$1005,0),0)) ->  | F91: =IF(B91="","",INDEX(الادخال!$H$5:$H$1005,MATCH(B91,الادخال!$A$5:$A$1005,0),0)) ->  | G91: =IF(B91="","",INDEX(الادخال!$I$5:$I$1005,MATCH(B91,الادخال!$A$5:$A$1005,0),0)) ->  | I91: =IF(B91="","",INDEX(الادخال!$J$5:$J$1005,MATCH(B91,الادخال!$A$5:$A$1005,0),0)) ->  | J91: =IF(B91="","",INDEX(الادخال!$K$5:$K$1005,MATCH(B91,الادخال!$A$5:$A$1005,0),0)) ->  | K91: =K$6 -> 2
B92: =IF(ROW(A86)<=MAX(الادخال!$A:$A),ROW(A86),"") ->  | C92: =IF(B92="","",INDEX(الادخال!$C$5:$C$1005,MATCH(B92,الادخال!$A$5:$A$1005,0),0)) ->  | D92: =IF(B92="","",INDEX(الادخال!$F$5:$F$1005,MATCH(B92,الادخال!$A$5:$A$1005,0),0)) ->  | E92: =IF(B92="","",INDEX(الادخال!$G$5:G$1005,MATCH(B92,الادخال!$A$5:$A$1005,0),0)) ->  | F92: =IF(B92="","",INDEX(الادخال!$H$5:$H$1005,MATCH(B92,الادخال!$A$5:$A$1005,0),0)) ->  | G92: =IF(B92="","",INDEX(الادخال!$I$5:$I$1005,MATCH(B92,الادخال!$A$5:$A$1005,0),0)) ->  | I92: =IF(B92="","",INDEX(الادخال!$J$5:$J$1005,MATCH(B92,الادخال!$A$5:$A$1005,0),0)) ->  | J92: =IF(B92="","",INDEX(الادخال!$K$5:$K$1005,MATCH(B92,الادخال!$A$5:$A$1005,0),0)) ->  | K92: =K$5 -> 1
B93: =IF(ROW(A87)<=MAX(الادخال!$A:$A),ROW(A87),"") ->  | C93: =IF(B93="","",INDEX(الادخال!$C$5:$C$1005,MATCH(B93,الادخال!$A$5:$A$1005,0),0)) ->  | D93: =IF(B93="","",INDEX(الادخال!$F$5:$F$1005,MATCH(B93,الادخال!$A$5:$A$1005,0),0)) ->  | E93: =IF(B93="","",INDEX(الادخال!$G$5:G$1005,MATCH(B93,الادخال!$A$5:$A$1005,0),0)) ->  | F93: =IF(B93="","",INDEX(الادخال!$H$5:$H$1005,MATCH(B93,الادخال!$A$5:$A$1005,0),0)) ->  | G93: =IF(B93="","",INDEX(الادخال!$I$5:$I$1005,MATCH(B93,الادخال!$A$5:$A$1005,0),0)) ->  | I93: =IF(B93="","",INDEX(الادخال!$J$5:$J$1005,MATCH(B93,الادخال!$A$5:$A$1005,0),0)) ->  | J93: =IF(B93="","",INDEX(الادخال!$K$5:$K$1005,MATCH(B93,الادخال!$A$5:$A$1005,0),0)) ->  | K93: =K$6 -> 2
B94: =IF(ROW(A88)<=MAX(الادخال!$A:$A),ROW(A88),"") ->  | C94: =IF(B94="","",INDEX(الادخال!$C$5:$C$1005,MATCH(B94,الادخال!$A$5:$A$1005,0),0)) ->  | D94: =IF(B94="","",INDEX(الادخال!$F$5:$F$1005,MATCH(B94,الادخال!$A$5:$A$1005,0),0)) ->  | E94: =IF(B94="","",INDEX(الادخال!$G$5:G$1005,MATCH(B94,الادخال!$A$5:$A$1005,0),0)) ->  | F94: =IF(B94="","",INDEX(الادخال!$H$5:$H$1005,MATCH(B94,الادخال!$A$5:$A$1005,0),0)) ->  | G94: =IF(B94="","",INDEX(الادخال!$I$5:$I$1005,MATCH(B94,الادخال!$A$5:$A$1005,0),0)) ->  | I94: =IF(B94="","",INDEX(الادخال!$J$5:$J$1005,MATCH(B94,الادخال!$A$5:$A$1005,0),0)) ->  | J94: =IF(B94="","",INDEX(الادخال!$K$5:$K$1005,MATCH(B94,الادخال!$A$5:$A$1005,0),0)) ->  | K94: =K$5 -> 1
B95: =IF(ROW(A89)<=MAX(الادخال!$A:$A),ROW(A89),"") ->  | C95: =IF(B95="","",INDEX(الادخال!$C$5:$C$1005,MATCH(B95,الادخال!$A$5:$A$1005,0),0)) ->  | D95: =IF(B95="","",INDEX(الادخال!$F$5:$F$1005,MATCH(B95,الادخال!$A$5:$A$1005,0),0)) ->  | E95: =IF(B95="","",INDEX(الادخال!$G$5:G$1005,MATCH(B95,الادخال!$A$5:$A$1005,0),0)) ->  | F95: =IF(B95="","",INDEX(الادخال!$H$5:$H$1005,MATCH(B95,الادخال!$A$5:$A$1005,0),0)) ->  | G95: =IF(B95="","",INDEX(الادخال!$I$5:$I$1005,MATCH(B95,الادخال!$A$5:$A$1005,0),0)) ->  | I95: =IF(B95="","",INDEX(الادخال!$J$5:$J$1005,MATCH(B95,الادخال!$A$5:$A$1005,0),0)) ->  | J95: =IF(B95="","",INDEX(الادخال!$K$5:$K$1005,MATCH(B95,الادخال!$A$5:$A$1005,0),0)) ->  | K95: =K$6 -> 2
B96: =IF(ROW(A90)<=MAX(الادخال!$A:$A),ROW(A90),"") ->  | C96: =IF(B96="","",INDEX(الادخال!$C$5:$C$1005,MATCH(B96,الادخال!$A$5:$A$1005,0),0)) ->  | D96: =IF(B96="","",INDEX(الادخال!$F$5:$F$1005,MATCH(B96,الادخال!$A$5:$A$1005,0),0)) ->  | E96: =IF(B96="","",INDEX(الادخال!$G$5:G$1005,MATCH(B96,الادخال!$A$5:$A$1005,0),0)) ->  | F96: =IF(B96="","",INDEX(الادخال!$H$5:$H$1005,MATCH(B96,الادخال!$A$5:$A$1005,0),0)) ->  | G96: =IF(B96="","",INDEX(الادخال!$I$5:$I$1005,MATCH(B96,الادخال!$A$5:$A$1005,0),0)) ->  | I96: =IF(B96="","",INDEX(الادخال!$J$5:$J$1005,MATCH(B96,الادخال!$A$5:$A$1005,0),0)) ->  | J96: =IF(B96="","",INDEX(الادخال!$K$5:$K$1005,MATCH(B96,الادخال!$A$5:$A$1005,0),0)) ->  | K96: =K$5 -> 1
B97: =IF(ROW(A91)<=MAX(الادخال!$A:$A),ROW(A91),"") ->  | C97: =IF(B97="","",INDEX(الادخال!$C$5:$C$1005,MATCH(B97,الادخال!$A$5:$A$1005,0),0)) ->  | D97: =IF(B97="","",INDEX(الادخال!$F$5:$F$1005,MATCH(B97,الادخال!$A$5:$A$1005,0),0)) ->  | E97: =IF(B97="","",INDEX(الادخال!$G$5:G$1005,MATCH(B97,الادخال!$A$5:$A$1005,0),0)) ->  | F97: =IF(B97="","",INDEX(الادخال!$H$5:$H$1005,MATCH(B97,الادخال!$A$5:$A$1005,0),0)) ->  | G97: =IF(B97="","",INDEX(الادخال!$I$5:$I$1005,MATCH(B97,الادخال!$A$5:$A$1005,0),0)) ->  | I97: =IF(B97="","",INDEX(الادخال!$J$5:$J$1005,MATCH(B97,الادخال!$A$5:$A$1005,0),0)) ->  | J97: =IF(B97="","",INDEX(الادخال!$K$5:$K$1005,MATCH(B97,الادخال!$A$5:$A$1005,0),0)) ->  | K97: =K$6 -> 2
B98: =IF(ROW(A92)<=MAX(الادخال!$A:$A),ROW(A92),"") ->  | C98: =IF(B98="","",INDEX(الادخال!$C$5:$C$1005,MATCH(B98,الادخال!$A$5:$A$1005,0),0)) ->  | D98: =IF(B98="","",INDEX(الادخال!$F$5:$F$1005,MATCH(B98,الادخال!$A$5:$A$1005,0),0)) ->  | E98: =IF(B98="","",INDEX(الادخال!$G$5:G$1005,MATCH(B98,الادخال!$A$5:$A$1005,0),0)) ->  | F98: =IF(B98="","",INDEX(الادخال!$H$5:$H$1005,MATCH(B98,الادخال!$A$5:$A$1005,0),0)) ->  | G98: =IF(B98="","",INDEX(الادخال!$I$5:$I$1005,MATCH(B98,الادخال!$A$5:$A$1005,0),0)) ->  | I98: =IF(B98="","",INDEX(الادخال!$J$5:$J$1005,MATCH(B98,الادخال!$A$5:$A$1005,0),0)) ->  | J98: =IF(B98="","",INDEX(الادخال!$K$5:$K$1005,MATCH(B98,الادخال!$A$5:$A$1005,0),0)) ->  | K98: =K$5 -> 1
B99: =IF(ROW(A93)<=MAX(الادخال!$A:$A),ROW(A93),"") ->  | C99: =IF(B99="","",INDEX(الادخال!$C$5:$C$1005,MATCH(B99,الادخال!$A$5:$A$1005,0),0)) ->  | D99: =IF(B99="","",INDEX(الادخال!$F$5:$F$1005,MATCH(B99,الادخال!$A$5:$A$1005,0),0)) ->  | E99: =IF(B99="","",INDEX(الادخال!$G$5:G$1005,MATCH(B99,الادخال!$A$5:$A$1005,0),0)) ->  | F99: =IF(B99="","",INDEX(الادخال!$H$5:$H$1005,MATCH(B99,الادخال!$A$5:$A$1005,0),0)) ->  | G99: =IF(B99="","",INDEX(الادخال!$I$5:$I$1005,MATCH(B99,الادخال!$A$5:$A$1005,0),0)) ->  | I99: =IF(B99="","",INDEX(الادخال!$J$5:$J$1005,MATCH(B99,الادخال!$A$5:$A$1005,0),0)) ->  | J99: =IF(B99="","",INDEX(الادخال!$K$5:$K$1005,MATCH(B99,الادخال!$A$5:$A$1005,0),0)) ->  | K99: =K$6 -> 2
B100: =IF(ROW(A94)<=MAX(الادخال!$A:$A),ROW(A94),"") ->  | C100: =IF(B100="","",INDEX(الادخال!$C$5:$C$1005,MATCH(B100,الادخال!$A$5:$A$1005,0),0)) ->  | D100: =IF(B100="","",INDEX(الادخال!$F$5:$F$1005,MATCH(B100,الادخال!$A$5:$A$1005,0),0)) ->  | E100: =IF(B100="","",INDEX(الادخال!$G$5:G$1005,MATCH(B100,الادخال!$A$5:$A$1005,0),0)) ->  | F100: =IF(B100="","",INDEX(الادخال!$H$5:$H$1005,MATCH(B100,الادخال!$A$5:$A$1005,0),0)) ->  | G100: =IF(B100="","",INDEX(الادخال!$I$5:$I$1005,MATCH(B100,الادخال!$A$5:$A$1005,0),0)) ->  | I100: =IF(B100="","",INDEX(الادخال!$J$5:$J$1005,MATCH(B100,الادخال!$A$5:$A$1005,0),0)) ->  | J100: =IF(B100="","",INDEX(الادخال!$K$5:$K$1005,MATCH(B100,الادخال!$A$5:$A$1005,0),0)) ->  | K100: =K$5 -> 1
B101: =IF(ROW(A95)<=MAX(الادخال!$A:$A),ROW(A95),"") ->  | C101: =IF(B101="","",INDEX(الادخال!$C$5:$C$1005,MATCH(B101,الادخال!$A$5:$A$1005,0),0)) ->  | D101: =IF(B101="","",INDEX(الادخال!$F$5:$F$1005,MATCH(B101,الادخال!$A$5:$A$1005,0),0)) ->  | E101: =IF(B101="","",INDEX(الادخال!$G$5:G$1005,MATCH(B101,الادخال!$A$5:$A$1005,0),0)) ->  | F101: =IF(B101="","",INDEX(الادخال!$H$5:$H$1005,MATCH(B101,الادخال!$A$5:$A$1005,0),0)) ->  | G101: =IF(B101="","",INDEX(الادخال!$I$5:$I$1005,MATCH(B101,الادخال!$A$5:$A$1005,0),0)) ->  | I101: =IF(B101="","",INDEX(الادخال!$J$5:$J$1005,MATCH(B101,الادخال!$A$5:$A$1005,0),0)) ->  | J101: =IF(B101="","",INDEX(الادخال!$K$5:$K$1005,MATCH(B101,الادخال!$A$5:$A$1005,0),0)) ->  | K101: =K$6 -> 2
B102: =IF(ROW(A96)<=MAX(الادخال!$A:$A),ROW(A96),"") ->  | C102: =IF(B102="","",INDEX(الادخال!$C$5:$C$1005,MATCH(B102,الادخال!$A$5:$A$1005,0),0)) ->  | D102: =IF(B102="","",INDEX(الادخال!$F$5:$F$1005,MATCH(B102,الادخال!$A$5:$A$1005,0),0)) ->  | E102: =IF(B102="","",INDEX(الادخال!$G$5:G$1005,MATCH(B102,الادخال!$A$5:$A$1005,0),0)) ->  | F102: =IF(B102="","",INDEX(الادخال!$H$5:$H$1005,MATCH(B102,الادخال!$A$5:$A$1005,0),0)) ->  | G102: =IF(B102="","",INDEX(الادخال!$I$5:$I$1005,MATCH(B102,الادخال!$A$5:$A$1005,0),0)) ->  | I102: =IF(B102="","",INDEX(الادخال!$J$5:$J$1005,MATCH(B102,الادخال!$A$5:$A$1005,0),0)) ->  | J102: =IF(B102="","",INDEX(الادخال!$K$5:$K$1005,MATCH(B102,الادخال!$A$5:$A$1005,0),0)) ->  | K102: =K$5 -> 1
B103: =IF(ROW(A97)<=MAX(الادخال!$A:$A),ROW(A97),"") ->  | C103: =IF(B103="","",INDEX(الادخال!$C$5:$C$1005,MATCH(B103,الادخال!$A$5:$A$1005,0),0)) ->  | D103: =IF(B103="","",INDEX(الادخال!$F$5:$F$1005,MATCH(B103,الادخال!$A$5:$A$1005,0),0)) ->  | E103: =IF(B103="","",INDEX(الادخال!$G$5:G$1005,MATCH(B103,الادخال!$A$5:$A$1005,0),0)) ->  | F103: =IF(B103="","",INDEX(الادخال!$H$5:$H$1005,MATCH(B103,الادخال!$A$5:$A$1005,0),0)) ->  | G103: =IF(B103="","",INDEX(الادخال!$I$5:$I$1005,MATCH(B103,الادخال!$A$5:$A$1005,0),0)) ->  | I103: =IF(B103="","",INDEX(الادخال!$J$5:$J$1005,MATCH(B103,الادخال!$A$5:$A$1005,0),0)) ->  | J103: =IF(B103="","",INDEX(الادخال!$K$5:$K$1005,MATCH(B103,الادخال!$A$5:$A$1005,0),0)) ->  | K103: =K$6 -> 2
B104: =IF(ROW(A98)<=MAX(الادخال!$A:$A),ROW(A98),"") ->  | C104: =IF(B104="","",INDEX(الادخال!$C$5:$C$1005,MATCH(B104,الادخال!$A$5:$A$1005,0),0)) ->  | D104: =IF(B104="","",INDEX(الادخال!$F$5:$F$1005,MATCH(B104,الادخال!$A$5:$A$1005,0),0)) ->  | E104: =IF(B104="","",INDEX(الادخال!$G$5:G$1005,MATCH(B104,الادخال!$A$5:$A$1005,0),0)) ->  | F104: =IF(B104="","",INDEX(الادخال!$H$5:$H$1005,MATCH(B104,الادخال!$A$5:$A$1005,0),0)) ->  | G104: =IF(B104="","",INDEX(الادخال!$I$5:$I$1005,MATCH(B104,الادخال!$A$5:$A$1005,0),0)) ->  | I104: =IF(B104="","",INDEX(الادخال!$J$5:$J$1005,MATCH(B104,الادخال!$A$5:$A$1005,0),0)) ->  | J104: =IF(B104="","",INDEX(الادخال!$K$5:$K$1005,MATCH(B104,الادخال!$A$5:$A$1005,0),0)) ->  | K104: =K$5 -> 1
B105: =IF(ROW(A99)<=MAX(الادخال!$A:$A),ROW(A99),"") ->  | C105: =IF(B105="","",INDEX(الادخال!$C$5:$C$1005,MATCH(B105,الادخال!$A$5:$A$1005,0),0)) ->  | D105: =IF(B105="","",INDEX(الادخال!$F$5:$F$1005,MATCH(B105,الادخال!$A$5:$A$1005,0),0)) ->  | E105: =IF(B105="","",INDEX(الادخال!$G$5:G$1005,MATCH(B105,الادخال!$A$5:$A$1005,0),0)) ->  | F105: =IF(B105="","",INDEX(الادخال!$H$5:$H$1005,MATCH(B105,الادخال!$A$5:$A$1005,0),0)) ->  | G105: =IF(B105="","",INDEX(الادخال!$I$5:$I$1005,MATCH(B105,الادخال!$A$5:$A$1005,0),0)) ->  | I105: =IF(B105="","",INDEX(الادخال!$J$5:$J$1005,MATCH(B105,الادخال!$A$5:$A$1005,0),0)) ->  | J105: =IF(B105="","",INDEX(الادخال!$K$5:$K$1005,MATCH(B105,الادخال!$A$5:$A$1005,0),0)) ->  | K105: =K$6 -> 2
B106: =IF(ROW(A100)<=MAX(الادخال!$A:$A),ROW(A100),"") ->  | C106: =IF(B106="","",INDEX(الادخال!$C$5:$C$1005,MATCH(B106,الادخال!$A$5:$A$1005,0),0)) ->  | D106: =IF(B106="","",INDEX(الادخال!$F$5:$F$1005,MATCH(B106,الادخال!$A$5:$A$1005,0),0)) ->  | E106: =IF(B106="","",INDEX(الادخال!$G$5:G$1005,MATCH(B106,الادخال!$A$5:$A$1005,0),0)) ->  | F106: =IF(B106="","",INDEX(الادخال!$H$5:$H$1005,MATCH(B106,الادخال!$A$5:$A$1005,0),0)) ->  | G106: =IF(B106="","",INDEX(الادخال!$I$5:$I$1005,MATCH(B106,الادخال!$A$5:$A$1005,0),0)) ->  | I106: =IF(B106="","",INDEX(الادخال!$J$5:$J$1005,MATCH(B106,الادخال!$A$5:$A$1005,0),0)) ->  | J106: =IF(B106="","",INDEX(الادخال!$K$5:$K$1005,MATCH(B106,الادخال!$A$5:$A$1005,0),0)) ->  | K106: =K$5 -> 1
B107: =IF(ROW(A101)<=MAX(الادخال!$A:$A),ROW(A101),"") ->  | C107: =IF(B107="","",INDEX(الادخال!$C$5:$C$1005,MATCH(B107,الادخال!$A$5:$A$1005,0),0)) ->  | D107: =IF(B107="","",INDEX(الادخال!$F$5:$F$1005,MATCH(B107,الادخال!$A$5:$A$1005,0),0)) ->  | E107: =IF(B107="","",INDEX(الادخال!$G$5:G$1005,MATCH(B107,الادخال!$A$5:$A$1005,0),0)) ->  | F107: =IF(B107="","",INDEX(الادخال!$H$5:$H$1005,MATCH(B107,الادخال!$A$5:$A$1005,0),0)) ->  | G107: =IF(B107="","",INDEX(الادخال!$I$5:$I$1005,MATCH(B107,الادخال!$A$5:$A$1005,0),0)) ->  | I107: =IF(B107="","",INDEX(الادخال!$J$5:$J$1005,MATCH(B107,الادخال!$A$5:$A$1005,0),0)) ->  | J107: =IF(B107="","",INDEX(الادخال!$K$5:$K$1005,MATCH(B107,الادخال!$A$5:$A$1005,0),0)) ->  | K107: =K$6 -> 2
B108: =IF(ROW(A102)<=MAX(الادخال!$A:$A),ROW(A102),"") ->  | C108: =IF(B108="","",INDEX(الادخال!$C$5:$C$1005,MATCH(B108,الادخال!$A$5:$A$1005,0),0)) ->  | D108: =IF(B108="","",INDEX(الادخال!$F$5:$F$1005,MATCH(B108,الادخال!$A$5:$A$1005,0),0)) ->  | E108: =IF(B108="","",INDEX(الادخال!$G$5:G$1005,MATCH(B108,الادخال!$A$5:$A$1005,0),0)) ->  | F108: =IF(B108="","",INDEX(الادخال!$H$5:$H$1005,MATCH(B108,الادخال!$A$5:$A$1005,0),0)) ->  | G108: =IF(B108="","",INDEX(الادخال!$I$5:$I$1005,MATCH(B108,الادخال!$A$5:$A$1005,0),0)) ->  | I108: =IF(B108="","",INDEX(الادخال!$J$5:$J$1005,MATCH(B108,الادخال!$A$5:$A$1005,0),0)) ->  | J108: =IF(B108="","",INDEX(الادخال!$K$5:$K$1005,MATCH(B108,الادخال!$A$5:$A$1005,0),0)) ->  | K108: =K$5 -> 1
B109: =IF(ROW(A103)<=MAX(الادخال!$A:$A),ROW(A103),"") ->  | C109: =IF(B109="","",INDEX(الادخال!$C$5:$C$1005,MATCH(B109,الادخال!$A$5:$A$1005,0),0)) ->  | D109: =IF(B109="","",INDEX(الادخال!$F$5:$F$1005,MATCH(B109,الادخال!$A$5:$A$1005,0),0)) ->  | E109: =IF(B109="","",INDEX(الادخال!$G$5:G$1005,MATCH(B109,الادخال!$A$5:$A$1005,0),0)) ->  | F109: =IF(B109="","",INDEX(الادخال!$H$5:$H$1005,MATCH(B109,الادخال!$A$5:$A$1005,0),0)) ->  | G109: =IF(B109="","",INDEX(الادخال!$I$5:$I$1005,MATCH(B109,الادخال!$A$5:$A$1005,0),0)) ->  | I109: =IF(B109="","",INDEX(الادخال!$J$5:$J$1005,MATCH(B109,الادخال!$A$5:$A$1005,0),0)) ->  | J109: =IF(B109="","",INDEX(الادخال!$K$5:$K$1005,MATCH(B109,الادخال!$A$5:$A$1005,0),0)) ->  | K109: =K$6 -> 2
B110: =IF(ROW(A104)<=MAX(الادخال!$A:$A),ROW(A104),"") ->  | C110: =IF(B110="","",INDEX(الادخال!$C$5:$C$1005,MATCH(B110,الادخال!$A$5:$A$1005,0),0)) ->  | D110: =IF(B110="","",INDEX(الادخال!$F$5:$F$1005,MATCH(B110,الادخال!$A$5:$A$1005,0),0)) ->  | E110: =IF(B110="","",INDEX(الادخال!$G$5:G$1005,MATCH(B110,الادخال!$A$5:$A$1005,0),0)) ->  | F110: =IF(B110="","",INDEX(الادخال!$H$5:$H$1005,MATCH(B110,الادخال!$A$5:$A$1005,0),0)) ->  | G110: =IF(B110="","",INDEX(الادخال!$I$5:$I$1005,MATCH(B110,الادخال!$A$5:$A$1005,0),0)) ->  | I110: =IF(B110="","",INDEX(الادخال!$J$5:$J$1005,MATCH(B110,الادخال!$A$5:$A$1005,0),0)) ->  | J110: =IF(B110="","",INDEX(الادخال!$K$5:$K$1005,MATCH(B110,الادخال!$A$5:$A$1005,0),0)) ->  | K110: =K$5 -> 1
B111: =IF(ROW(A105)<=MAX(الادخال!$A:$A),ROW(A105),"") ->  | C111: =IF(B111="","",INDEX(الادخال!$C$5:$C$1005,MATCH(B111,الادخال!$A$5:$A$1005,0),0)) ->  | D111: =IF(B111="","",INDEX(الادخال!$F$5:$F$1005,MATCH(B111,الادخال!$A$5:$A$1005,0),0)) ->  | E111: =IF(B111="","",INDEX(الادخال!$G$5:G$1005,MATCH(B111,الادخال!$A$5:$A$1005,0),0)) ->  | F111: =IF(B111="","",INDEX(الادخال!$H$5:$H$1005,MATCH(B111,الادخال!$A$5:$A$1005,0),0)) ->  | G111: =IF(B111="","",INDEX(الادخال!$I$5:$I$1005,MATCH(B111,الادخال!$A$5:$A$1005,0),0)) ->  | I111: =IF(B111="","",INDEX(الادخال!$J$5:$J$1005,MATCH(B111,الادخال!$A$5:$A$1005,0),0)) ->  | J111: =IF(B111="","",INDEX(الادخال!$K$5:$K$1005,MATCH(B111,الادخال!$A$5:$A$1005,0),0)) ->  | K111: =K$6 -> 2
B112: =IF(ROW(A106)<=MAX(الادخال!$A:$A),ROW(A106),"") ->  | C112: =IF(B112="","",INDEX(الادخال!$C$5:$C$1005,MATCH(B112,الادخال!$A$5:$A$1005,0),0)) ->  | D112: =IF(B112="","",INDEX(الادخال!$F$5:$F$1005,MATCH(B112,الادخال!$A$5:$A$1005,0),0)) ->  | E112: =IF(B112="","",INDEX(الادخال!$G$5:G$1005,MATCH(B112,الادخال!$A$5:$A$1005,0),0)) ->  | F112: =IF(B112="","",INDEX(الادخال!$H$5:$H$1005,MATCH(B112,الادخال!$A$5:$A$1005,0),0)) ->  | G112: =IF(B112="","",INDEX(الادخال!$I$5:$I$1005,MATCH(B112,الادخال!$A$5:$A$1005,0),0)) ->  | I112: =IF(B112="","",INDEX(الادخال!$J$5:$J$1005,MATCH(B112,الادخال!$A$5:$A$1005,0),0)) ->  | J112: =IF(B112="","",INDEX(الادخال!$K$5:$K$1005,MATCH(B112,الادخال!$A$5:$A$1005,0),0)) ->  | K112: =K$5 -> 1
B113: =IF(ROW(A107)<=MAX(الادخال!$A:$A),ROW(A107),"") ->  | C113: =IF(B113="","",INDEX(الادخال!$C$5:$C$1005,MATCH(B113,الادخال!$A$5:$A$1005,0),0)) ->  | D113: =IF(B113="","",INDEX(الادخال!$F$5:$F$1005,MATCH(B113,الادخال!$A$5:$A$1005,0),0)) ->  | E113: =IF(B113="","",INDEX(الادخال!$G$5:G$1005,MATCH(B113,الادخال!$A$5:$A$1005,0),0)) ->  | F113: =IF(B113="","",INDEX(الادخال!$H$5:$H$1005,MATCH(B113,الادخال!$A$5:$A$1005,0),0)) ->  | G113: =IF(B113="","",INDEX(الادخال!$I$5:$I$1005,MATCH(B113,الادخال!$A$5:$A$1005,0),0)) ->  | I113: =IF(B113="","",INDEX(الادخال!$J$5:$J$1005,MATCH(B113,الادخال!$A$5:$A$1005,0),0)) ->  | J113: =IF(B113="","",INDEX(الادخال!$K$5:$K$1005,MATCH(B113,الادخال!$A$5:$A$1005,0),0)) ->  | K113: =K$6 -> 2
B114: =IF(ROW(A108)<=MAX(الادخال!$A:$A),ROW(A108),"") ->  | C114: =IF(B114="","",INDEX(الادخال!$C$5:$C$1005,MATCH(B114,الادخال!$A$5:$A$1005,0),0)) ->  | D114: =IF(B114="","",INDEX(الادخال!$F$5:$F$1005,MATCH(B114,الادخال!$A$5:$A$1005,0),0)) ->  | E114: =IF(B114="","",INDEX(الادخال!$G$5:G$1005,MATCH(B114,الادخال!$A$5:$A$1005,0),0)) ->  | F114: =IF(B114="","",INDEX(الادخال!$H$5:$H$1005,MATCH(B114,الادخال!$A$5:$A$1005,0),0)) ->  | G114: =IF(B114="","",INDEX(الادخال!$I$5:$I$1005,MATCH(B114,الادخال!$A$5:$A$1005,0),0)) ->  | I114: =IF(B114="","",INDEX(الادخال!$J$5:$J$1005,MATCH(B114,الادخال!$A$5:$A$1005,0),0)) ->  | J114: =IF(B114="","",INDEX(الادخال!$K$5:$K$1005,MATCH(B114,الادخال!$A$5:$A$1005,0),0)) ->  | K114: =K$5 -> 1
B115: =IF(ROW(A109)<=MAX(الادخال!$A:$A),ROW(A109),"") ->  | C115: =IF(B115="","",INDEX(الادخال!$C$5:$C$1005,MATCH(B115,الادخال!$A$5:$A$1005,0),0)) ->  | D115: =IF(B115="","",INDEX(الادخال!$F$5:$F$1005,MATCH(B115,الادخال!$A$5:$A$1005,0),0)) ->  | E115: =IF(B115="","",INDEX(الادخال!$G$5:G$1005,MATCH(B115,الادخال!$A$5:$A$1005,0),0)) ->  | F115: =IF(B115="","",INDEX(الادخال!$H$5:$H$1005,MATCH(B115,الادخال!$A$5:$A$1005,0),0)) ->  | G115: =IF(B115="","",INDEX(الادخال!$I$5:$I$1005,MATCH(B115,الادخال!$A$5:$A$1005,0),0)) ->  | I115: =IF(B115="","",INDEX(الادخال!$J$5:$J$1005,MATCH(B115,الادخال!$A$5:$A$1005,0),0)) ->  | J115: =IF(B115="","",INDEX(الادخال!$K$5:$K$1005,MATCH(B115,الادخال!$A$5:$A$1005,0),0)) ->  | K115: =K$6 -> 2
B116: =IF(ROW(A110)<=MAX(الادخال!$A:$A),ROW(A110),"") ->  | C116: =IF(B116="","",INDEX(الادخال!$C$5:$C$1005,MATCH(B116,الادخال!$A$5:$A$1005,0),0)) ->  | D116: =IF(B116="","",INDEX(الادخال!$F$5:$F$1005,MATCH(B116,الادخال!$A$5:$A$1005,0),0)) ->  | E116: =IF(B116="","",INDEX(الادخال!$G$5:G$1005,MATCH(B116,الادخال!$A$5:$A$1005,0),0)) ->  | F116: =IF(B116="","",INDEX(الادخال!$H$5:$H$1005,MATCH(B116,الادخال!$A$5:$A$1005,0),0)) ->  | G116: =IF(B116="","",INDEX(الادخال!$I$5:$I$1005,MATCH(B116,الادخال!$A$5:$A$1005,0),0)) ->  | I116: =IF(B116="","",INDEX(الادخال!$J$5:$J$1005,MATCH(B116,الادخال!$A$5:$A$1005,0),0)) ->  | J116: =IF(B116="","",INDEX(الادخال!$K$5:$K$1005,MATCH(B116,الادخال!$A$5:$A$1005,0),0)) ->  | K116: =K$5 -> 1
B117: =IF(ROW(A111)<=MAX(الادخال!$A:$A),ROW(A111),"") ->  | C117: =IF(B117="","",INDEX(الادخال!$C$5:$C$1005,MATCH(B117,الادخال!$A$5:$A$1005,0),0)) ->  | D117: =IF(B117="","",INDEX(الادخال!$F$5:$F$1005,MATCH(B117,الادخال!$A$5:$A$1005,0),0)) ->  | E117: =IF(B117="","",INDEX(الادخال!$G$5:G$1005,MATCH(B117,الادخال!$A$5:$A$1005,0),0)) ->  | F117: =IF(B117="","",INDEX(الادخال!$H$5:$H$1005,MATCH(B117,الادخال!$A$5:$A$1005,0),0)) ->  | G117: =IF(B117="","",INDEX(الادخال!$I$5:$I$1005,MATCH(B117,الادخال!$A$5:$A$1005,0),0)) ->  | I117: =IF(B117="","",INDEX(الادخال!$J$5:$J$1005,MATCH(B117,الادخال!$A$5:$A$1005,0),0)) ->  | J117: =IF(B117="","",INDEX(الادخال!$K$5:$K$1005,MATCH(B117,الادخال!$A$5:$A$1005,0),0)) ->  | K117: =K$6 -> 2
B118: =IF(ROW(A112)<=MAX(الادخال!$A:$A),ROW(A112),"") ->  | C118: =IF(B118="","",INDEX(الادخال!$C$5:$C$1005,MATCH(B118,الادخال!$A$5:$A$1005,0),0)) ->  | D118: =IF(B118="","",INDEX(الادخال!$F$5:$F$1005,MATCH(B118,الادخال!$A$5:$A$1005,0),0)) ->  | E118: =IF(B118="","",INDEX(الادخال!$G$5:G$1005,MATCH(B118,الادخال!$A$5:$A$1005,0),0)) ->  | F118: =IF(B118="","",INDEX(الادخال!$H$5:$H$1005,MATCH(B118,الادخال!$A$5:$A$1005,0),0)) ->  | G118: =IF(B118="","",INDEX(الادخال!$I$5:$I$1005,MATCH(B118,الادخال!$A$5:$A$1005,0),0)) ->  | I118: =IF(B118="","",INDEX(الادخال!$J$5:$J$1005,MATCH(B118,الادخال!$A$5:$A$1005,0),0)) ->  | J118: =IF(B118="","",INDEX(الادخال!$K$5:$K$1005,MATCH(B118,الادخال!$A$5:$A$1005,0),0)) ->  | K118: =K$5 -> 1
B119: =IF(ROW(A113)<=MAX(الادخال!$A:$A),ROW(A113),"") ->  | C119: =IF(B119="","",INDEX(الادخال!$C$5:$C$1005,MATCH(B119,الادخال!$A$5:$A$1005,0),0)) ->  | D119: =IF(B119="","",INDEX(الادخال!$F$5:$F$1005,MATCH(B119,الادخال!$A$5:$A$1005,0),0)) ->  | E119: =IF(B119="","",INDEX(الادخال!$G$5:G$1005,MATCH(B119,الادخال!$A$5:$A$1005,0),0)) ->  | F119: =IF(B119="","",INDEX(الادخال!$H$5:$H$1005,MATCH(B119,الادخال!$A$5:$A$1005,0),0)) ->  | G119: =IF(B119="","",INDEX(الادخال!$I$5:$I$1005,MATCH(B119,الادخال!$A$5:$A$1005,0),0)) ->  | I119: =IF(B119="","",INDEX(الادخال!$J$5:$J$1005,MATCH(B119,الادخال!$A$5:$A$1005,0),0)) ->  | J119: =IF(B119="","",INDEX(الادخال!$K$5:$K$1005,MATCH(B119,الادخال!$A$5:$A$1005,0),0)) ->  | K119: =K$6 -> 2
B120: =IF(ROW(A114)<=MAX(الادخال!$A:$A),ROW(A114),"") ->  | C120: =IF(B120="","",INDEX(الادخال!$C$5:$C$1005,MATCH(B120,الادخال!$A$5:$A$1005,0),0)) ->  | D120: =IF(B120="","",INDEX(الادخال!$F$5:$F$1005,MATCH(B120,الادخال!$A$5:$A$1005,0),0)) ->  | E120: =IF(B120="","",INDEX(الادخال!$G$5:G$1005,MATCH(B120,الادخال!$A$5:$A$1005,0),0)) ->  | F120: =IF(B120="","",INDEX(الادخال!$H$5:$H$1005,MATCH(B120,الادخال!$A$5:$A$1005,0),0)) ->  | G120: =IF(B120="","",INDEX(الادخال!$I$5:$I$1005,MATCH(B120,الادخال!$A$5:$A$1005,0),0)) ->  | I120: =IF(B120="","",INDEX(الادخال!$J$5:$J$1005,MATCH(B120,الادخال!$A$5:$A$1005,0),0)) ->  | J120: =IF(B120="","",INDEX(الادخال!$K$5:$K$1005,MATCH(B120,الادخال!$A$5:$A$1005,0),0)) ->  | K120: =K$5 -> 1
B121: =IF(ROW(A115)<=MAX(الادخال!$A:$A),ROW(A115),"") ->  | C121: =IF(B121="","",INDEX(الادخال!$C$5:$C$1005,MATCH(B121,الادخال!$A$5:$A$1005,0),0)) ->  | D121: =IF(B121="","",INDEX(الادخال!$F$5:$F$1005,MATCH(B121,الادخال!$A$5:$A$1005,0),0)) ->  | E121: =IF(B121="","",INDEX(الادخال!$G$5:G$1005,MATCH(B121,الادخال!$A$5:$A$1005,0),0)) ->  | F121: =IF(B121="","",INDEX(الادخال!$H$5:$H$1005,MATCH(B121,الادخال!$A$5:$A$1005,0),0)) ->  | G121: =IF(B121="","",INDEX(الادخال!$I$5:$I$1005,MATCH(B121,الادخال!$A$5:$A$1005,0),0)) ->  | I121: =IF(B121="","",INDEX(الادخال!$J$5:$J$1005,MATCH(B121,الادخال!$A$5:$A$1005,0),0)) ->  | J121: =IF(B121="","",INDEX(الادخال!$K$5:$K$1005,MATCH(B121,الادخال!$A$5:$A$1005,0),0)) ->  | K121: =K$6 -> 2
B122: =IF(ROW(A116)<=MAX(الادخال!$A:$A),ROW(A116),"") ->  | C122: =IF(B122="","",INDEX(الادخال!$C$5:$C$1005,MATCH(B122,الادخال!$A$5:$A$1005,0),0)) ->  | D122: =IF(B122="","",INDEX(الادخال!$F$5:$F$1005,MATCH(B122,الادخال!$A$5:$A$1005,0),0)) ->  | E122: =IF(B122="","",INDEX(الادخال!$G$5:G$1005,MATCH(B122,الادخال!$A$5:$A$1005,0),0)) ->  | F122: =IF(B122="","",INDEX(الادخال!$H$5:$H$1005,MATCH(B122,الادخال!$A$5:$A$1005,0),0)) ->  | G122: =IF(B122="","",INDEX(الادخال!$I$5:$I$1005,MATCH(B122,الادخال!$A$5:$A$1005,0),0)) ->  | I122: =IF(B122="","",INDEX(الادخال!$J$5:$J$1005,MATCH(B122,الادخال!$A$5:$A$1005,0),0)) ->  | J122: =IF(B122="","",INDEX(الادخال!$K$5:$K$1005,MATCH(B122,الادخال!$A$5:$A$1005,0),0)) ->  | K122: =K$5 -> 1
B123: =IF(ROW(A117)<=MAX(الادخال!$A:$A),ROW(A117),"") ->  | C123: =IF(B123="","",INDEX(الادخال!$C$5:$C$1005,MATCH(B123,الادخال!$A$5:$A$1005,0),0)) ->  | D123: =IF(B123="","",INDEX(الادخال!$F$5:$F$1005,MATCH(B123,الادخال!$A$5:$A$1005,0),0)) ->  | E123: =IF(B123="","",INDEX(الادخال!$G$5:G$1005,MATCH(B123,الادخال!$A$5:$A$1005,0),0)) ->  | F123: =IF(B123="","",INDEX(الادخال!$H$5:$H$1005,MATCH(B123,الادخال!$A$5:$A$1005,0),0)) ->  | G123: =IF(B123="","",INDEX(الادخال!$I$5:$I$1005,MATCH(B123,الادخال!$A$5:$A$1005,0),0)) ->  | I123: =IF(B123="","",INDEX(الادخال!$J$5:$J$1005,MATCH(B123,الادخال!$A$5:$A$1005,0),0)) ->  | J123: =IF(B123="","",INDEX(الادخال!$K$5:$K$1005,MATCH(B123,الادخال!$A$5:$A$1005,0),0)) ->  | K123: =K$6 -> 2
B124: =IF(ROW(A118)<=MAX(الادخال!$A:$A),ROW(A118),"") ->  | C124: =IF(B124="","",INDEX(الادخال!$C$5:$C$1005,MATCH(B124,الادخال!$A$5:$A$1005,0),0)) ->  | D124: =IF(B124="","",INDEX(الادخال!$F$5:$F$1005,MATCH(B124,الادخال!$A$5:$A$1005,0),0)) ->  | E124: =IF(B124="","",INDEX(الادخال!$G$5:G$1005,MATCH(B124,الادخال!$A$5:$A$1005,0),0)) ->  | F124: =IF(B124="","",INDEX(الادخال!$H$5:$H$1005,MATCH(B124,الادخال!$A$5:$A$1005,0),0)) ->  | G124: =IF(B124="","",INDEX(الادخال!$I$5:$I$1005,MATCH(B124,الادخال!$A$5:$A$1005,0),0)) ->  | I124: =IF(B124="","",INDEX(الادخال!$J$5:$J$1005,MATCH(B124,الادخال!$A$5:$A$1005,0),0)) ->  | J124: =IF(B124="","",INDEX(الادخال!$K$5:$K$1005,MATCH(B124,الادخال!$A$5:$A$1005,0),0)) ->  | K124: =K$5 -> 1
B125: =IF(ROW(A119)<=MAX(الادخال!$A:$A),ROW(A119),"") ->  | C125: =IF(B125="","",INDEX(الادخال!$C$5:$C$1005,MATCH(B125,الادخال!$A$5:$A$1005,0),0)) ->  | D125: =IF(B125="","",INDEX(الادخال!$F$5:$F$1005,MATCH(B125,الادخال!$A$5:$A$1005,0),0)) ->  | E125: =IF(B125="","",INDEX(الادخال!$G$5:G$1005,MATCH(B125,الادخال!$A$5:$A$1005,0),0)) ->  | F125: =IF(B125="","",INDEX(الادخال!$H$5:$H$1005,MATCH(B125,الادخال!$A$5:$A$1005,0),0)) ->  | G125: =IF(B125="","",INDEX(الادخال!$I$5:$I$1005,MATCH(B125,الادخال!$A$5:$A$1005,0),0)) ->  | I125: =IF(B125="","",INDEX(الادخال!$J$5:$J$1005,MATCH(B125,الادخال!$A$5:$A$1005,0),0)) ->  | J125: =IF(B125="","",INDEX(الادخال!$K$5:$K$1005,MATCH(B125,الادخال!$A$5:$A$1005,0),0)) ->  | K125: =K$6 -> 2
B126: =IF(ROW(A120)<=MAX(الادخال!$A:$A),ROW(A120),"") ->  | C126: =IF(B126="","",INDEX(الادخال!$C$5:$C$1005,MATCH(B126,الادخال!$A$5:$A$1005,0),0)) ->  | D126: =IF(B126="","",INDEX(الادخال!$F$5:$F$1005,MATCH(B126,الادخال!$A$5:$A$1005,0),0)) ->  | E126: =IF(B126="","",INDEX(الادخال!$G$5:G$1005,MATCH(B126,الادخال!$A$5:$A$1005,0),0)) ->  | F126: =IF(B126="","",INDEX(الادخال!$H$5:$H$1005,MATCH(B126,الادخال!$A$5:$A$1005,0),0)) ->  | G126: =IF(B126="","",INDEX(الادخال!$I$5:$I$1005,MATCH(B126,الادخال!$A$5:$A$1005,0),0)) ->  | I126: =IF(B126="","",INDEX(الادخال!$J$5:$J$1005,MATCH(B126,الادخال!$A$5:$A$1005,0),0)) ->  | J126: =IF(B126="","",INDEX(الادخال!$K$5:$K$1005,MATCH(B126,الادخال!$A$5:$A$1005,0),0)) ->  | K126: =K$5 -> 1
B127: =IF(ROW(A121)<=MAX(الادخال!$A:$A),ROW(A121),"") ->  | C127: =IF(B127="","",INDEX(الادخال!$C$5:$C$1005,MATCH(B127,الادخال!$A$5:$A$1005,0),0)) ->  | D127: =IF(B127="","",INDEX(الادخال!$F$5:$F$1005,MATCH(B127,الادخال!$A$5:$A$1005,0),0)) ->  | E127: =IF(B127="","",INDEX(الادخال!$G$5:G$1005,MATCH(B127,الادخال!$A$5:$A$1005,0),0)) ->  | F127: =IF(B127="","",INDEX(الادخال!$H$5:$H$1005,MATCH(B127,الادخال!$A$5:$A$1005,0),0)) ->  | G127: =IF(B127="","",INDEX(الادخال!$I$5:$I$1005,MATCH(B127,الادخال!$A$5:$A$1005,0),0)) ->  | I127: =IF(B127="","",INDEX(الادخال!$J$5:$J$1005,MATCH(B127,الادخال!$A$5:$A$1005,0),0)) ->  | J127: =IF(B127="","",INDEX(الادخال!$K$5:$K$1005,MATCH(B127,الادخال!$A$5:$A$1005,0),0)) ->  | K127: =K$6 -> 2
B128: =IF(ROW(A122)<=MAX(الادخال!$A:$A),ROW(A122),"") ->  | C128: =IF(B128="","",INDEX(الادخال!$C$5:$C$1005,MATCH(B128,الادخال!$A$5:$A$1005,0),0)) ->  | D128: =IF(B128="","",INDEX(الادخال!$F$5:$F$1005,MATCH(B128,الادخال!$A$5:$A$1005,0),0)) ->  | E128: =IF(B128="","",INDEX(الادخال!$G$5:G$1005,MATCH(B128,الادخال!$A$5:$A$1005,0),0)) ->  | F128: =IF(B128="","",INDEX(الادخال!$H$5:$H$1005,MATCH(B128,الادخال!$A$5:$A$1005,0),0)) ->  | G128: =IF(B128="","",INDEX(الادخال!$I$5:$I$1005,MATCH(B128,الادخال!$A$5:$A$1005,0),0)) ->  | I128: =IF(B128="","",INDEX(الادخال!$J$5:$J$1005,MATCH(B128,الادخال!$A$5:$A$1005,0),0)) ->  | J128: =IF(B128="","",INDEX(الادخال!$K$5:$K$1005,MATCH(B128,الادخال!$A$5:$A$1005,0),0)) ->  | K128: =K$5 -> 1
B129: =IF(ROW(A123)<=MAX(الادخال!$A:$A),ROW(A123),"") ->  | C129: =IF(B129="","",INDEX(الادخال!$C$5:$C$1005,MATCH(B129,الادخال!$A$5:$A$1005,0),0)) ->  | D129: =IF(B129="","",INDEX(الادخال!$F$5:$F$1005,MATCH(B129,الادخال!$A$5:$A$1005,0),0)) ->  | E129: =IF(B129="","",INDEX(الادخال!$G$5:G$1005,MATCH(B129,الادخال!$A$5:$A$1005,0),0)) ->  | F129: =IF(B129="","",INDEX(الادخال!$H$5:$H$1005,MATCH(B129,الادخال!$A$5:$A$1005,0),0)) ->  | G129: =IF(B129="","",INDEX(الادخال!$I$5:$I$1005,MATCH(B129,الادخال!$A$5:$A$1005,0),0)) ->  | I129: =IF(B129="","",INDEX(الادخال!$J$5:$J$1005,MATCH(B129,الادخال!$A$5:$A$1005,0),0)) ->  | J129: =IF(B129="","",INDEX(الادخال!$K$5:$K$1005,MATCH(B129,الادخال!$A$5:$A$1005,0),0)) ->  | K129: =K$6 -> 2
B130: =IF(ROW(A124)<=MAX(الادخال!$A:$A),ROW(A124),"") ->  | C130: =IF(B130="","",INDEX(الادخال!$C$5:$C$1005,MATCH(B130,الادخال!$A$5:$A$1005,0),0)) ->  | D130: =IF(B130="","",INDEX(الادخال!$F$5:$F$1005,MATCH(B130,الادخال!$A$5:$A$1005,0),0)) ->  | E130: =IF(B130="","",INDEX(الادخال!$G$5:G$1005,MATCH(B130,الادخال!$A$5:$A$1005,0),0)) ->  | F130: =IF(B130="","",INDEX(الادخال!$H$5:$H$1005,MATCH(B130,الادخال!$A$5:$A$1005,0),0)) ->  | G130: =IF(B130="","",INDEX(الادخال!$I$5:$I$1005,MATCH(B130,الادخال!$A$5:$A$1005,0),0)) ->  | I130: =IF(B130="","",INDEX(الادخال!$J$5:$J$1005,MATCH(B130,الادخال!$A$5:$A$1005,0),0)) ->  | J130: =IF(B130="","",INDEX(الادخال!$K$5:$K$1005,MATCH(B130,الادخال!$A$5:$A$1005,0),0)) ->  | K130: =K$5 -> 1
B131: =IF(ROW(A125)<=MAX(الادخال!$A:$A),ROW(A125),"") ->  | C131: =IF(B131="","",INDEX(الادخال!$C$5:$C$1005,MATCH(B131,الادخال!$A$5:$A$1005,0),0)) ->  | D131: =IF(B131="","",INDEX(الادخال!$F$5:$F$1005,MATCH(B131,الادخال!$A$5:$A$1005,0),0)) ->  | E131: =IF(B131="","",INDEX(الادخال!$G$5:G$1005,MATCH(B131,الادخال!$A$5:$A$1005,0),0)) ->  | F131: =IF(B131="","",INDEX(الادخال!$H$5:$H$1005,MATCH(B131,الادخال!$A$5:$A$1005,0),0)) ->  | G131: =IF(B131="","",INDEX(الادخال!$I$5:$I$1005,MATCH(B131,الادخال!$A$5:$A$1005,0),0)) ->  | I131: =IF(B131="","",INDEX(الادخال!$J$5:$J$1005,MATCH(B131,الادخال!$A$5:$A$1005,0),0)) ->  | J131: =IF(B131="","",INDEX(الادخال!$K$5:$K$1005,MATCH(B131,الادخال!$A$5:$A$1005,0),0)) ->  | K131: =K$6 -> 2
B132: =IF(ROW(A126)<=MAX(الادخال!$A:$A),ROW(A126),"") ->  | C132: =IF(B132="","",INDEX(الادخال!$C$5:$C$1005,MATCH(B132,الادخال!$A$5:$A$1005,0),0)) ->  | D132: =IF(B132="","",INDEX(الادخال!$F$5:$F$1005,MATCH(B132,الادخال!$A$5:$A$1005,0),0)) ->  | E132: =IF(B132="","",INDEX(الادخال!$G$5:G$1005,MATCH(B132,الادخال!$A$5:$A$1005,0),0)) ->  | F132: =IF(B132="","",INDEX(الادخال!$H$5:$H$1005,MATCH(B132,الادخال!$A$5:$A$1005,0),0)) ->  | G132: =IF(B132="","",INDEX(الادخال!$I$5:$I$1005,MATCH(B132,الادخال!$A$5:$A$1005,0),0)) ->  | I132: =IF(B132="","",INDEX(الادخال!$J$5:$J$1005,MATCH(B132,الادخال!$A$5:$A$1005,0),0)) ->  | J132: =IF(B132="","",INDEX(الادخال!$K$5:$K$1005,MATCH(B132,الادخال!$A$5:$A$1005,0),0)) ->  | K132: =K$5 -> 1
B133: =IF(ROW(A127)<=MAX(الادخال!$A:$A),ROW(A127),"") ->  | C133: =IF(B133="","",INDEX(الادخال!$C$5:$C$1005,MATCH(B133,الادخال!$A$5:$A$1005,0),0)) ->  | D133: =IF(B133="","",INDEX(الادخال!$F$5:$F$1005,MATCH(B133,الادخال!$A$5:$A$1005,0),0)) ->  | E133: =IF(B133="","",INDEX(الادخال!$G$5:G$1005,MATCH(B133,الادخال!$A$5:$A$1005,0),0)) ->  | F133: =IF(B133="","",INDEX(الادخال!$H$5:$H$1005,MATCH(B133,الادخال!$A$5:$A$1005,0),0)) ->  | G133: =IF(B133="","",INDEX(الادخال!$I$5:$I$1005,MATCH(B133,الادخال!$A$5:$A$1005,0),0)) ->  | I133: =IF(B133="","",INDEX(الادخال!$J$5:$J$1005,MATCH(B133,الادخال!$A$5:$A$1005,0),0)) ->  | J133: =IF(B133="","",INDEX(الادخال!$K$5:$K$1005,MATCH(B133,الادخال!$A$5:$A$1005,0),0)) ->  | K133: =K$6 -> 2
B134: =IF(ROW(A128)<=MAX(الادخال!$A:$A),ROW(A128),"") ->  | C134: =IF(B134="","",INDEX(الادخال!$C$5:$C$1005,MATCH(B134,الادخال!$A$5:$A$1005,0),0)) ->  | D134: =IF(B134="","",INDEX(الادخال!$F$5:$F$1005,MATCH(B134,الادخال!$A$5:$A$1005,0),0)) ->  | E134: =IF(B134="","",INDEX(الادخال!$G$5:G$1005,MATCH(B134,الادخال!$A$5:$A$1005,0),0)) ->  | F134: =IF(B134="","",INDEX(الادخال!$H$5:$H$1005,MATCH(B134,الادخال!$A$5:$A$1005,0),0)) ->  | G134: =IF(B134="","",INDEX(الادخال!$I$5:$I$1005,MATCH(B134,الادخال!$A$5:$A$1005,0),0)) ->  | I134: =IF(B134="","",INDEX(الادخال!$J$5:$J$1005,MATCH(B134,الادخال!$A$5:$A$1005,0),0)) ->  | J134: =IF(B134="","",INDEX(الادخال!$K$5:$K$1005,MATCH(B134,الادخال!$A$5:$A$1005,0),0)) ->  | K134: =K$5 -> 1
B135: =IF(ROW(A129)<=MAX(الادخال!$A:$A),ROW(A129),"") ->  | C135: =IF(B135="","",INDEX(الادخال!$C$5:$C$1005,MATCH(B135,الادخال!$A$5:$A$1005,0),0)) ->  | D135: =IF(B135="","",INDEX(الادخال!$F$5:$F$1005,MATCH(B135,الادخال!$A$5:$A$1005,0),0)) ->  | E135: =IF(B135="","",INDEX(الادخال!$G$5:G$1005,MATCH(B135,الادخال!$A$5:$A$1005,0),0)) ->  | F135: =IF(B135="","",INDEX(الادخال!$H$5:$H$1005,MATCH(B135,الادخال!$A$5:$A$1005,0),0)) ->  | G135: =IF(B135="","",INDEX(الادخال!$I$5:$I$1005,MATCH(B135,الادخال!$A$5:$A$1005,0),0)) ->  | I135: =IF(B135="","",INDEX(الادخال!$J$5:$J$1005,MATCH(B135,الادخال!$A$5:$A$1005,0),0)) ->  | J135: =IF(B135="","",INDEX(الادخال!$K$5:$K$1005,MATCH(B135,الادخال!$A$5:$A$1005,0),0)) ->  | K135: =K$6 -> 2
B136: =IF(ROW(A130)<=MAX(الادخال!$A:$A),ROW(A130),"") ->  | C136: =IF(B136="","",INDEX(الادخال!$C$5:$C$1005,MATCH(B136,الادخال!$A$5:$A$1005,0),0)) ->  | D136: =IF(B136="","",INDEX(الادخال!$F$5:$F$1005,MATCH(B136,الادخال!$A$5:$A$1005,0),0)) ->  | E136: =IF(B136="","",INDEX(الادخال!$G$5:G$1005,MATCH(B136,الادخال!$A$5:$A$1005,0),0)) ->  | F136: =IF(B136="","",INDEX(الادخال!$H$5:$H$1005,MATCH(B136,الادخال!$A$5:$A$1005,0),0)) ->  | G136: =IF(B136="","",INDEX(الادخال!$I$5:$I$1005,MATCH(B136,الادخال!$A$5:$A$1005,0),0)) ->  | H136: =IFERROR((H135+E136)-(F136+G136),"") ->  | I136: =IF(B136="","",INDEX(الادخال!$J$5:$J$1005,MATCH(B136,الادخال!$A$5:$A$1005,0),0)) ->  | J136: =IF(B136="","",INDEX(الادخال!$K$5:$K$1005,MATCH(B136,الادخال!$A$5:$A$1005,0),0)) ->  | K136: =K$5 -> 1
B137: =IF(ROW(A131)<=MAX(الادخال!$A:$A),ROW(A131),"") ->  | C137: =IF(B137="","",INDEX(الادخال!$C$5:$C$1005,MATCH(B137,الادخال!$A$5:$A$1005,0),0)) ->  | D137: =IF(B137="","",INDEX(الادخال!$F$5:$F$1005,MATCH(B137,الادخال!$A$5:$A$1005,0),0)) ->  | E137: =IF(B137="","",INDEX(الادخال!$G$5:G$1005,MATCH(B137,الادخال!$A$5:$A$1005,0),0)) ->  | F137: =IF(B137="","",INDEX(الادخال!$H$5:$H$1005,MATCH(B137,الادخال!$A$5:$A$1005,0),0)) ->  | G137: =IF(B137="","",INDEX(الادخال!$I$5:$I$1005,MATCH(B137,الادخال!$A$5:$A$1005,0),0)) ->  | I137: =IF(B137="","",INDEX(الادخال!$J$5:$J$1005,MATCH(B137,الادخال!$A$5:$A$1005,0),0)) ->  | J137: =IF(B137="","",INDEX(الادخال!$K$5:$K$1005,MATCH(B137,الادخال!$A$5:$A$1005,0),0)) ->  | K137: =K$6 -> 2
B138: =IF(ROW(A132)<=MAX(الادخال!$A:$A),ROW(A132),"") ->  | C138: =IF(B138="","",INDEX(الادخال!$C$5:$C$1005,MATCH(B138,الادخال!$A$5:$A$1005,0),0)) ->  | D138: =IF(B138="","",INDEX(الادخال!$F$5:$F$1005,MATCH(B138,الادخال!$A$5:$A$1005,0),0)) ->  | E138: =IF(B138="","",INDEX(الادخال!$G$5:G$1005,MATCH(B138,الادخال!$A$5:$A$1005,0),0)) ->  | F138: =IF(B138="","",INDEX(الادخال!$H$5:$H$1005,MATCH(B138,الادخال!$A$5:$A$1005,0),0)) ->  | G138: =IF(B138="","",INDEX(الادخال!$I$5:$I$1005,MATCH(B138,الادخال!$A$5:$A$1005,0),0)) ->  | I138: =IF(B138="","",INDEX(الادخال!$J$5:$J$1005,MATCH(B138,الادخال!$A$5:$A$1005,0),0)) ->  | J138: =IF(B138="","",INDEX(الادخال!$K$5:$K$1005,MATCH(B138,الادخال!$A$5:$A$1005,0),0)) ->  | K138: =K$5 -> 1
B139: =IF(ROW(A133)<=MAX(الادخال!$A:$A),ROW(A133),"") ->  | C139: =IF(B139="","",INDEX(الادخال!$C$5:$C$1005,MATCH(B139,الادخال!$A$5:$A$1005,0),0)) ->  | D139: =IF(B139="","",INDEX(الادخال!$F$5:$F$1005,MATCH(B139,الادخال!$A$5:$A$1005,0),0)) ->  | E139: =IF(B139="","",INDEX(الادخال!$G$5:G$1005,MATCH(B139,الادخال!$A$5:$A$1005,0),0)) ->  | F139: =IF(B139="","",INDEX(الادخال!$H$5:$H$1005,MATCH(B139,الادخال!$A$5:$A$1005,0),0)) ->  | G139: =IF(B139="","",INDEX(الادخال!$I$5:$I$1005,MATCH(B139,الادخال!$A$5:$A$1005,0),0)) ->  | I139: =IF(B139="","",INDEX(الادخال!$J$5:$J$1005,MATCH(B139,الادخال!$A$5:$A$1005,0),0)) ->  | J139: =IF(B139="","",INDEX(الادخال!$K$5:$K$1005,MATCH(B139,الادخال!$A$5:$A$1005,0),0)) ->  | K139: =K$6 -> 2
B140: =IF(ROW(A134)<=MAX(الادخال!$A:$A),ROW(A134),"") ->  | C140: =IF(B140="","",INDEX(الادخال!$C$5:$C$1005,MATCH(B140,الادخال!$A$5:$A$1005,0),0)) ->  | D140: =IF(B140="","",INDEX(الادخال!$F$5:$F$1005,MATCH(B140,الادخال!$A$5:$A$1005,0),0)) ->  | E140: =IF(B140="","",INDEX(الادخال!$G$5:G$1005,MATCH(B140,الادخال!$A$5:$A$1005,0),0)) ->  | F140: =IF(B140="","",INDEX(الادخال!$H$5:$H$1005,MATCH(B140,الادخال!$A$5:$A$1005,0),0)) ->  | G140: =IF(B140="","",INDEX(الادخال!$I$5:$I$1005,MATCH(B140,الادخال!$A$5:$A$1005,0),0)) ->  | I140: =IF(B140="","",INDEX(الادخال!$J$5:$J$1005,MATCH(B140,الادخال!$A$5:$A$1005,0),0)) ->  | J140: =IF(B140="","",INDEX(الادخال!$K$5:$K$1005,MATCH(B140,الادخال!$A$5:$A$1005,0),0)) ->  | K140: =K$5 -> 1
B141: =IF(ROW(A135)<=MAX(الادخال!$A:$A),ROW(A135),"") ->  | C141: =IF(B141="","",INDEX(الادخال!$C$5:$C$1005,MATCH(B141,الادخال!$A$5:$A$1005,0),0)) ->  | D141: =IF(B141="","",INDEX(الادخال!$F$5:$F$1005,MATCH(B141,الادخال!$A$5:$A$1005,0),0)) ->  | E141: =IF(B141="","",INDEX(الادخال!$G$5:G$1005,MATCH(B141,الادخال!$A$5:$A$1005,0),0)) ->  | F141: =IF(B141="","",INDEX(الادخال!$H$5:$H$1005,MATCH(B141,الادخال!$A$5:$A$1005,0),0)) ->  | G141: =IF(B141="","",INDEX(الادخال!$I$5:$I$1005,MATCH(B141,الادخال!$A$5:$A$1005,0),0)) ->  | I141: =IF(B141="","",INDEX(الادخال!$J$5:$J$1005,MATCH(B141,الادخال!$A$5:$A$1005,0),0)) ->  | J141: =IF(B141="","",INDEX(الادخال!$K$5:$K$1005,MATCH(B141,الادخال!$A$5:$A$1005,0),0)) ->  | K141: =K$6 -> 2
B142: =IF(ROW(A136)<=MAX(الادخال!$A:$A),ROW(A136),"") ->  | C142: =IF(B142="","",INDEX(الادخال!$C$5:$C$1005,MATCH(B142,الادخال!$A$5:$A$1005,0),0)) ->  | D142: =IF(B142="","",INDEX(الادخال!$F$5:$F$1005,MATCH(B142,الادخال!$A$5:$A$1005,0),0)) ->  | E142: =IF(B142="","",INDEX(الادخال!$G$5:G$1005,MATCH(B142,الادخال!$A$5:$A$1005,0),0)) ->  | F142: =IF(B142="","",INDEX(الادخال!$H$5:$H$1005,MATCH(B142,الادخال!$A$5:$A$1005,0),0)) ->  | G142: =IF(B142="","",INDEX(الادخال!$I$5:$I$1005,MATCH(B142,الادخال!$A$5:$A$1005,0),0)) ->  | I142: =IF(B142="","",INDEX(الادخال!$J$5:$J$1005,MATCH(B142,الادخال!$A$5:$A$1005,0),0)) ->  | J142: =IF(B142="","",INDEX(الادخال!$K$5:$K$1005,MATCH(B142,الادخال!$A$5:$A$1005,0),0)) ->  | K142: =K$5 -> 1
B143: =IF(ROW(A137)<=MAX(الادخال!$A:$A),ROW(A137),"") ->  | C143: =IF(B143="","",INDEX(الادخال!$C$5:$C$1005,MATCH(B143,الادخال!$A$5:$A$1005,0),0)) ->  | D143: =IF(B143="","",INDEX(الادخال!$F$5:$F$1005,MATCH(B143,الادخال!$A$5:$A$1005,0),0)) ->  | E143: =IF(B143="","",INDEX(الادخال!$G$5:G$1005,MATCH(B143,الادخال!$A$5:$A$1005,0),0)) ->  | F143: =IF(B143="","",INDEX(الادخال!$H$5:$H$1005,MATCH(B143,الادخال!$A$5:$A$1005,0),0)) ->  | G143: =IF(B143="","",INDEX(الادخال!$I$5:$I$1005,MATCH(B143,الادخال!$A$5:$A$1005,0),0)) ->  | I143: =IF(B143="","",INDEX(الادخال!$J$5:$J$1005,MATCH(B143,الادخال!$A$5:$A$1005,0),0)) ->  | J143: =IF(B143="","",INDEX(الادخال!$K$5:$K$1005,MATCH(B143,الادخال!$A$5:$A$1005,0),0)) ->  | K143: =K$6 -> 2
B144: =IF(ROW(A138)<=MAX(الادخال!$A:$A),ROW(A138),"") ->  | C144: =IF(B144="","",INDEX(الادخال!$C$5:$C$1005,MATCH(B144,الادخال!$A$5:$A$1005,0),0)) ->  | D144: =IF(B144="","",INDEX(الادخال!$F$5:$F$1005,MATCH(B144,الادخال!$A$5:$A$1005,0),0)) ->  | E144: =IF(B144="","",INDEX(الادخال!$G$5:G$1005,MATCH(B144,الادخال!$A$5:$A$1005,0),0)) ->  | F144: =IF(B144="","",INDEX(الادخال!$H$5:$H$1005,MATCH(B144,الادخال!$A$5:$A$1005,0),0)) ->  | G144: =IF(B144="","",INDEX(الادخال!$I$5:$I$1005,MATCH(B144,الادخال!$A$5:$A$1005,0),0)) ->  | I144: =IF(B144="","",INDEX(الادخال!$J$5:$J$1005,MATCH(B144,الادخال!$A$5:$A$1005,0),0)) ->  | J144: =IF(B144="","",INDEX(الادخال!$K$5:$K$1005,MATCH(B144,الادخال!$A$5:$A$1005,0),0)) ->  | K144: =K$5 -> 1
B145: =IF(ROW(A139)<=MAX(الادخال!$A:$A),ROW(A139),"") ->  | C145: =IF(B145="","",INDEX(الادخال!$C$5:$C$1005,MATCH(B145,الادخال!$A$5:$A$1005,0),0)) ->  | D145: =IF(B145="","",INDEX(الادخال!$F$5:$F$1005,MATCH(B145,الادخال!$A$5:$A$1005,0),0)) ->  | E145: =IF(B145="","",INDEX(الادخال!$G$5:G$1005,MATCH(B145,الادخال!$A$5:$A$1005,0),0)) ->  | F145: =IF(B145="","",INDEX(الادخال!$H$5:$H$1005,MATCH(B145,الادخال!$A$5:$A$1005,0),0)) ->  | G145: =IF(B145="","",INDEX(الادخال!$I$5:$I$1005,MATCH(B145,الادخال!$A$5:$A$1005,0),0)) ->  | I145: =IF(B145="","",INDEX(الادخال!$J$5:$J$1005,MATCH(B145,الادخال!$A$5:$A$1005,0),0)) ->  | J145: =IF(B145="","",INDEX(الادخال!$K$5:$K$1005,MATCH(B145,الادخال!$A$5:$A$1005,0),0)) ->  | K145: =K$6 -> 2
B146: =IF(ROW(A140)<=MAX(الادخال!$A:$A),ROW(A140),"") ->  | C146: =IF(B146="","",INDEX(الادخال!$C$5:$C$1005,MATCH(B146,الادخال!$A$5:$A$1005,0),0)) ->  | D146: =IF(B146="","",INDEX(الادخال!$F$5:$F$1005,MATCH(B146,الادخال!$A$5:$A$1005,0),0)) ->  | E146: =IF(B146="","",INDEX(الادخال!$G$5:G$1005,MATCH(B146,الادخال!$A$5:$A$1005,0),0)) ->  | F146: =IF(B146="","",INDEX(الادخال!$H$5:$H$1005,MATCH(B146,الادخال!$A$5:$A$1005,0),0)) ->  | G146: =IF(B146="","",INDEX(الادخال!$I$5:$I$1005,MATCH(B146,الادخال!$A$5:$A$1005,0),0)) ->  | I146: =IF(B146="","",INDEX(الادخال!$J$5:$J$1005,MATCH(B146,الادخال!$A$5:$A$1005,0),0)) ->  | J146: =IF(B146="","",INDEX(الادخال!$K$5:$K$1005,MATCH(B146,الادخال!$A$5:$A$1005,0),0)) ->  | K146: =K$5 -> 1
B147: =IF(ROW(A141)<=MAX(الادخال!$A:$A),ROW(A141),"") ->  | C147: =IF(B147="","",INDEX(الادخال!$C$5:$C$1005,MATCH(B147,الادخال!$A$5:$A$1005,0),0)) ->  | D147: =IF(B147="","",INDEX(الادخال!$F$5:$F$1005,MATCH(B147,الادخال!$A$5:$A$1005,0),0)) ->  | E147: =IF(B147="","",INDEX(الادخال!$G$5:G$1005,MATCH(B147,الادخال!$A$5:$A$1005,0),0)) ->  | F147: =IF(B147="","",INDEX(الادخال!$H$5:$H$1005,MATCH(B147,الادخال!$A$5:$A$1005,0),0)) ->  | G147: =IF(B147="","",INDEX(الادخال!$I$5:$I$1005,MATCH(B147,الادخال!$A$5:$A$1005,0),0)) ->  | I147: =IF(B147="","",INDEX(الادخال!$J$5:$J$1005,MATCH(B147,الادخال!$A$5:$A$1005,0),0)) ->  | J147: =IF(B147="","",INDEX(الادخال!$K$5:$K$1005,MATCH(B147,الادخال!$A$5:$A$1005,0),0)) ->  | K147: =K$6 -> 2
B148: =IF(ROW(A142)<=MAX(الادخال!$A:$A),ROW(A142),"") ->  | C148: =IF(B148="","",INDEX(الادخال!$C$5:$C$1005,MATCH(B148,الادخال!$A$5:$A$1005,0),0)) ->  | D148: =IF(B148="","",INDEX(الادخال!$F$5:$F$1005,MATCH(B148,الادخال!$A$5:$A$1005,0),0)) ->  | E148: =IF(B148="","",INDEX(الادخال!$G$5:G$1005,MATCH(B148,الادخال!$A$5:$A$1005,0),0)) ->  | F148: =IF(B148="","",INDEX(الادخال!$H$5:$H$1005,MATCH(B148,الادخال!$A$5:$A$1005,0),0)) ->  | G148: =IF(B148="","",INDEX(الادخال!$I$5:$I$1005,MATCH(B148,الادخال!$A$5:$A$1005,0),0)) ->  | I148: =IF(B148="","",INDEX(الادخال!$J$5:$J$1005,MATCH(B148,الادخال!$A$5:$A$1005,0),0)) ->  | J148: =IF(B148="","",INDEX(الادخال!$K$5:$K$1005,MATCH(B148,الادخال!$A$5:$A$1005,0),0)) ->  | K148: =K$5 -> 1
B149: =IF(ROW(A143)<=MAX(الادخال!$A:$A),ROW(A143),"") ->  | C149: =IF(B149="","",INDEX(الادخال!$C$5:$C$1005,MATCH(B149,الادخال!$A$5:$A$1005,0),0)) ->  | D149: =IF(B149="","",INDEX(الادخال!$F$5:$F$1005,MATCH(B149,الادخال!$A$5:$A$1005,0),0)) ->  | E149: =IF(B149="","",INDEX(الادخال!$G$5:G$1005,MATCH(B149,الادخال!$A$5:$A$1005,0),0)) ->  | F149: =IF(B149="","",INDEX(الادخال!$H$5:$H$1005,MATCH(B149,الادخال!$A$5:$A$1005,0),0)) ->  | G149: =IF(B149="","",INDEX(الادخال!$I$5:$I$1005,MATCH(B149,الادخال!$A$5:$A$1005,0),0)) ->  | I149: =IF(B149="","",INDEX(الادخال!$J$5:$J$1005,MATCH(B149,الادخال!$A$5:$A$1005,0),0)) ->  | J149: =IF(B149="","",INDEX(الادخال!$K$5:$K$1005,MATCH(B149,الادخال!$A$5:$A$1005,0),0)) ->  | K149: =K$6 -> 2
B150: =IF(ROW(A144)<=MAX(الادخال!$A:$A),ROW(A144),"") ->  | C150: =IF(B150="","",INDEX(الادخال!$C$5:$C$1005,MATCH(B150,الادخال!$A$5:$A$1005,0),0)) ->  | D150: =IF(B150="","",INDEX(الادخال!$F$5:$F$1005,MATCH(B150,الادخال!$A$5:$A$1005,0),0)) ->  | E150: =IF(B150="","",INDEX(الادخال!$G$5:G$1005,MATCH(B150,الادخال!$A$5:$A$1005,0),0)) ->  | F150: =IF(B150="","",INDEX(الادخال!$H$5:$H$1005,MATCH(B150,الادخال!$A$5:$A$1005,0),0)) ->  | G150: =IF(B150="","",INDEX(الادخال!$I$5:$I$1005,MATCH(B150,الادخال!$A$5:$A$1005,0),0)) ->  | I150: =IF(B150="","",INDEX(الادخال!$J$5:$J$1005,MATCH(B150,الادخال!$A$5:$A$1005,0),0)) ->  | J150: =IF(B150="","",INDEX(الادخال!$K$5:$K$1005,MATCH(B150,الادخال!$A$5:$A$1005,0),0)) ->  | K150: =K$5 -> 1
B151: =IF(ROW(A145)<=MAX(الادخال!$A:$A),ROW(A145),"") ->  | C151: =IF(B151="","",INDEX(الادخال!$C$5:$C$1005,MATCH(B151,الادخال!$A$5:$A$1005,0),0)) ->  | D151: =IF(B151="","",INDEX(الادخال!$F$5:$F$1005,MATCH(B151,الادخال!$A$5:$A$1005,0),0)) ->  | E151: =IF(B151="","",INDEX(الادخال!$G$5:G$1005,MATCH(B151,الادخال!$A$5:$A$1005,0),0)) ->  | F151: =IF(B151="","",INDEX(الادخال!$H$5:$H$1005,MATCH(B151,الادخال!$A$5:$A$1005,0),0)) ->  | G151: =IF(B151="","",INDEX(الادخال!$I$5:$I$1005,MATCH(B151,الادخال!$A$5:$A$1005,0),0)) ->  | I151: =IF(B151="","",INDEX(الادخال!$J$5:$J$1005,MATCH(B151,الادخال!$A$5:$A$1005,0),0)) ->  | J151: =IF(B151="","",INDEX(الادخال!$K$5:$K$1005,MATCH(B151,الادخال!$A$5:$A$1005,0),0)) ->  | K151: =K$6 -> 2
B152: =IF(ROW(A146)<=MAX(الادخال!$A:$A),ROW(A146),"") ->  | C152: =IF(B152="","",INDEX(الادخال!$C$5:$C$1005,MATCH(B152,الادخال!$A$5:$A$1005,0),0)) ->  | D152: =IF(B152="","",INDEX(الادخال!$F$5:$F$1005,MATCH(B152,الادخال!$A$5:$A$1005,0),0)) ->  | E152: =IF(B152="","",INDEX(الادخال!$G$5:G$1005,MATCH(B152,الادخال!$A$5:$A$1005,0),0)) ->  | F152: =IF(B152="","",INDEX(الادخال!$H$5:$H$1005,MATCH(B152,الادخال!$A$5:$A$1005,0),0)) ->  | G152: =IF(B152="","",INDEX(الادخال!$I$5:$I$1005,MATCH(B152,الادخال!$A$5:$A$1005,0),0)) ->  | I152: =IF(B152="","",INDEX(الادخال!$J$5:$J$1005,MATCH(B152,الادخال!$A$5:$A$1005,0),0)) ->  | J152: =IF(B152="","",INDEX(الادخال!$K$5:$K$1005,MATCH(B152,الادخال!$A$5:$A$1005,0),0)) ->  | K152: =K$5 -> 1
B153: =IF(ROW(A147)<=MAX(الادخال!$A:$A),ROW(A147),"") ->  | C153: =IF(B153="","",INDEX(الادخال!$C$5:$C$1005,MATCH(B153,الادخال!$A$5:$A$1005,0),0)) ->  | D153: =IF(B153="","",INDEX(الادخال!$F$5:$F$1005,MATCH(B153,الادخال!$A$5:$A$1005,0),0)) ->  | E153: =IF(B153="","",INDEX(الادخال!$G$5:G$1005,MATCH(B153,الادخال!$A$5:$A$1005,0),0)) ->  | F153: =IF(B153="","",INDEX(الادخال!$H$5:$H$1005,MATCH(B153,الادخال!$A$5:$A$1005,0),0)) ->  | G153: =IF(B153="","",INDEX(الادخال!$I$5:$I$1005,MATCH(B153,الادخال!$A$5:$A$1005,0),0)) ->  | I153: =IF(B153="","",INDEX(الادخال!$J$5:$J$1005,MATCH(B153,الادخال!$A$5:$A$1005,0),0)) ->  | J153: =IF(B153="","",INDEX(الادخال!$K$5:$K$1005,MATCH(B153,الادخال!$A$5:$A$1005,0),0)) ->  | K153: =K$6 -> 2
B154: =IF(ROW(A148)<=MAX(الادخال!$A:$A),ROW(A148),"") ->  | C154: =IF(B154="","",INDEX(الادخال!$C$5:$C$1005,MATCH(B154,الادخال!$A$5:$A$1005,0),0)) ->  | D154: =IF(B154="","",INDEX(الادخال!$F$5:$F$1005,MATCH(B154,الادخال!$A$5:$A$1005,0),0)) ->  | E154: =IF(B154="","",INDEX(الادخال!$G$5:G$1005,MATCH(B154,الادخال!$A$5:$A$1005,0),0)) ->  | F154: =IF(B154="","",INDEX(الادخال!$H$5:$H$1005,MATCH(B154,الادخال!$A$5:$A$1005,0),0)) ->  | G154: =IF(B154="","",INDEX(الادخال!$I$5:$I$1005,MATCH(B154,الادخال!$A$5:$A$1005,0),0)) ->  | I154: =IF(B154="","",INDEX(الادخال!$J$5:$J$1005,MATCH(B154,الادخال!$A$5:$A$1005,0),0)) ->  | J154: =IF(B154="","",INDEX(الادخال!$K$5:$K$1005,MATCH(B154,الادخال!$A$5:$A$1005,0),0)) ->  | K154: =K$5 -> 1
B155: =IF(ROW(A149)<=MAX(الادخال!$A:$A),ROW(A149),"") ->  | C155: =IF(B155="","",INDEX(الادخال!$C$5:$C$1005,MATCH(B155,الادخال!$A$5:$A$1005,0),0)) ->  | D155: =IF(B155="","",INDEX(الادخال!$F$5:$F$1005,MATCH(B155,الادخال!$A$5:$A$1005,0),0)) ->  | E155: =IF(B155="","",INDEX(الادخال!$G$5:G$1005,MATCH(B155,الادخال!$A$5:$A$1005,0),0)) ->  | F155: =IF(B155="","",INDEX(الادخال!$H$5:$H$1005,MATCH(B155,الادخال!$A$5:$A$1005,0),0)) ->  | G155: =IF(B155="","",INDEX(الادخال!$I$5:$I$1005,MATCH(B155,الادخال!$A$5:$A$1005,0),0)) ->  | I155: =IF(B155="","",INDEX(الادخال!$J$5:$J$1005,MATCH(B155,الادخال!$A$5:$A$1005,0),0)) ->  | J155: =IF(B155="","",INDEX(الادخال!$K$5:$K$1005,MATCH(B155,الادخال!$A$5:$A$1005,0),0)) ->  | K155: =K$6 -> 2
B156: =IF(ROW(A150)<=MAX(الادخال!$A:$A),ROW(A150),"") ->  | C156: =IF(B156="","",INDEX(الادخال!$C$5:$C$1005,MATCH(B156,الادخال!$A$5:$A$1005,0),0)) ->  | D156: =IF(B156="","",INDEX(الادخال!$F$5:$F$1005,MATCH(B156,الادخال!$A$5:$A$1005,0),0)) ->  | E156: =IF(B156="","",INDEX(الادخال!$G$5:G$1005,MATCH(B156,الادخال!$A$5:$A$1005,0),0)) ->  | F156: =IF(B156="","",INDEX(الادخال!$H$5:$H$1005,MATCH(B156,الادخال!$A$5:$A$1005,0),0)) ->  | G156: =IF(B156="","",INDEX(الادخال!$I$5:$I$1005,MATCH(B156,الادخال!$A$5:$A$1005,0),0)) ->  | I156: =IF(B156="","",INDEX(الادخال!$J$5:$J$1005,MATCH(B156,الادخال!$A$5:$A$1005,0),0)) ->  | J156: =IF(B156="","",INDEX(الادخال!$K$5:$K$1005,MATCH(B156,الادخال!$A$5:$A$1005,0),0)) ->  | K156: =K$5 -> 1
B157: =IF(ROW(A151)<=MAX(الادخال!$A:$A),ROW(A151),"") ->  | C157: =IF(B157="","",INDEX(الادخال!$C$5:$C$1005,MATCH(B157,الادخال!$A$5:$A$1005,0),0)) ->  | D157: =IF(B157="","",INDEX(الادخال!$F$5:$F$1005,MATCH(B157,الادخال!$A$5:$A$1005,0),0)) ->  | E157: =IF(B157="","",INDEX(الادخال!$G$5:G$1005,MATCH(B157,الادخال!$A$5:$A$1005,0),0)) ->  | F157: =IF(B157="","",INDEX(الادخال!$H$5:$H$1005,MATCH(B157,الادخال!$A$5:$A$1005,0),0)) ->  | G157: =IF(B157="","",INDEX(الادخال!$I$5:$I$1005,MATCH(B157,الادخال!$A$5:$A$1005,0),0)) ->  | I157: =IF(B157="","",INDEX(الادخال!$J$5:$J$1005,MATCH(B157,الادخال!$A$5:$A$1005,0),0)) ->  | J157: =IF(B157="","",INDEX(الادخال!$K$5:$K$1005,MATCH(B157,الادخال!$A$5:$A$1005,0),0)) ->  | K157: =K$6 -> 2
B158: =IF(ROW(A152)<=MAX(الادخال!$A:$A),ROW(A152),"") ->  | C158: =IF(B158="","",INDEX(الادخال!$C$5:$C$1005,MATCH(B158,الادخال!$A$5:$A$1005,0),0)) ->  | D158: =IF(B158="","",INDEX(الادخال!$F$5:$F$1005,MATCH(B158,الادخال!$A$5:$A$1005,0),0)) ->  | E158: =IF(B158="","",INDEX(الادخال!$G$5:G$1005,MATCH(B158,الادخال!$A$5:$A$1005,0),0)) ->  | F158: =IF(B158="","",INDEX(الادخال!$H$5:$H$1005,MATCH(B158,الادخال!$A$5:$A$1005,0),0)) ->  | G158: =IF(B158="","",INDEX(الادخال!$I$5:$I$1005,MATCH(B158,الادخال!$A$5:$A$1005,0),0)) ->  | I158: =IF(B158="","",INDEX(الادخال!$J$5:$J$1005,MATCH(B158,الادخال!$A$5:$A$1005,0),0)) ->  | J158: =IF(B158="","",INDEX(الادخال!$K$5:$K$1005,MATCH(B158,الادخال!$A$5:$A$1005,0),0)) ->  | K158: =K$5 -> 1
B159: =IF(ROW(A153)<=MAX(الادخال!$A:$A),ROW(A153),"") ->  | C159: =IF(B159="","",INDEX(الادخال!$C$5:$C$1005,MATCH(B159,الادخال!$A$5:$A$1005,0),0)) ->  | D159: =IF(B159="","",INDEX(الادخال!$F$5:$F$1005,MATCH(B159,الادخال!$A$5:$A$1005,0),0)) ->  | E159: =IF(B159="","",INDEX(الادخال!$G$5:G$1005,MATCH(B159,الادخال!$A$5:$A$1005,0),0)) ->  | F159: =IF(B159="","",INDEX(الادخال!$H$5:$H$1005,MATCH(B159,الادخال!$A$5:$A$1005,0),0)) ->  | G159: =IF(B159="","",INDEX(الادخال!$I$5:$I$1005,MATCH(B159,الادخال!$A$5:$A$1005,0),0)) ->  | I159: =IF(B159="","",INDEX(الادخال!$J$5:$J$1005,MATCH(B159,الادخال!$A$5:$A$1005,0),0)) ->  | J159: =IF(B159="","",INDEX(الادخال!$K$5:$K$1005,MATCH(B159,الادخال!$A$5:$A$1005,0),0)) ->  | K159: =K$6 -> 2
B160: =IF(ROW(A154)<=MAX(الادخال!$A:$A),ROW(A154),"") ->  | C160: =IF(B160="","",INDEX(الادخال!$C$5:$C$1005,MATCH(B160,الادخال!$A$5:$A$1005,0),0)) ->  | D160: =IF(B160="","",INDEX(الادخال!$F$5:$F$1005,MATCH(B160,الادخال!$A$5:$A$1005,0),0)) ->  | E160: =IF(B160="","",INDEX(الادخال!$G$5:G$1005,MATCH(B160,الادخال!$A$5:$A$1005,0),0)) ->  | F160: =IF(B160="","",INDEX(الادخال!$H$5:$H$1005,MATCH(B160,الادخال!$A$5:$A$1005,0),0)) ->  | G160: =IF(B160="","",INDEX(الادخال!$I$5:$I$1005,MATCH(B160,الادخال!$A$5:$A$1005,0),0)) ->  | I160: =IF(B160="","",INDEX(الادخال!$J$5:$J$1005,MATCH(B160,الادخال!$A$5:$A$1005,0),0)) ->  | J160: =IF(B160="","",INDEX(الادخال!$K$5:$K$1005,MATCH(B160,الادخال!$A$5:$A$1005,0),0)) ->  | K160: =K$5 -> 1
B161: =IF(ROW(A155)<=MAX(الادخال!$A:$A),ROW(A155),"") ->  | C161: =IF(B161="","",INDEX(الادخال!$C$5:$C$1005,MATCH(B161,الادخال!$A$5:$A$1005,0),0)) ->  | D161: =IF(B161="","",INDEX(الادخال!$F$5:$F$1005,MATCH(B161,الادخال!$A$5:$A$1005,0),0)) ->  | E161: =IF(B161="","",INDEX(الادخال!$G$5:G$1005,MATCH(B161,الادخال!$A$5:$A$1005,0),0)) ->  | F161: =IF(B161="","",INDEX(الادخال!$H$5:$H$1005,MATCH(B161,الادخال!$A$5:$A$1005,0),0)) ->  | G161: =IF(B161="","",INDEX(الادخال!$I$5:$I$1005,MATCH(B161,الادخال!$A$5:$A$1005,0),0)) ->  | I161: =IF(B161="","",INDEX(الادخال!$J$5:$J$1005,MATCH(B161,الادخال!$A$5:$A$1005,0),0)) ->  | J161: =IF(B161="","",INDEX(الادخال!$K$5:$K$1005,MATCH(B161,الادخال!$A$5:$A$1005,0),0)) ->  | K161: =K$6 -> 2
B162: =IF(ROW(A156)<=MAX(الادخال!$A:$A),ROW(A156),"") ->  | C162: =IF(B162="","",INDEX(الادخال!$C$5:$C$1005,MATCH(B162,الادخال!$A$5:$A$1005,0),0)) ->  | D162: =IF(B162="","",INDEX(الادخال!$F$5:$F$1005,MATCH(B162,الادخال!$A$5:$A$1005,0),0)) ->  | E162: =IF(B162="","",INDEX(الادخال!$G$5:G$1005,MATCH(B162,الادخال!$A$5:$A$1005,0),0)) ->  | F162: =IF(B162="","",INDEX(الادخال!$H$5:$H$1005,MATCH(B162,الادخال!$A$5:$A$1005,0),0)) ->  | G162: =IF(B162="","",INDEX(الادخال!$I$5:$I$1005,MATCH(B162,الادخال!$A$5:$A$1005,0),0)) ->  | I162: =IF(B162="","",INDEX(الادخال!$J$5:$J$1005,MATCH(B162,الادخال!$A$5:$A$1005,0),0)) ->  | J162: =IF(B162="","",INDEX(الادخال!$K$5:$K$1005,MATCH(B162,الادخال!$A$5:$A$1005,0),0)) ->  | K162: =K$5 -> 1
B163: =IF(ROW(A157)<=MAX(الادخال!$A:$A),ROW(A157),"") ->  | C163: =IF(B163="","",INDEX(الادخال!$C$5:$C$1005,MATCH(B163,الادخال!$A$5:$A$1005,0),0)) ->  | D163: =IF(B163="","",INDEX(الادخال!$F$5:$F$1005,MATCH(B163,الادخال!$A$5:$A$1005,0),0)) ->  | E163: =IF(B163="","",INDEX(الادخال!$G$5:G$1005,MATCH(B163,الادخال!$A$5:$A$1005,0),0)) ->  | F163: =IF(B163="","",INDEX(الادخال!$H$5:$H$1005,MATCH(B163,الادخال!$A$5:$A$1005,0),0)) ->  | G163: =IF(B163="","",INDEX(الادخال!$I$5:$I$1005,MATCH(B163,الادخال!$A$5:$A$1005,0),0)) ->  | I163: =IF(B163="","",INDEX(الادخال!$J$5:$J$1005,MATCH(B163,الادخال!$A$5:$A$1005,0),0)) ->  | J163: =IF(B163="","",INDEX(الادخال!$K$5:$K$1005,MATCH(B163,الادخال!$A$5:$A$1005,0),0)) ->  | K163: =K$6 -> 2
B164: =IF(ROW(A158)<=MAX(الادخال!$A:$A),ROW(A158),"") ->  | C164: =IF(B164="","",INDEX(الادخال!$C$5:$C$1005,MATCH(B164,الادخال!$A$5:$A$1005,0),0)) ->  | D164: =IF(B164="","",INDEX(الادخال!$F$5:$F$1005,MATCH(B164,الادخال!$A$5:$A$1005,0),0)) ->  | E164: =IF(B164="","",INDEX(الادخال!$G$5:G$1005,MATCH(B164,الادخال!$A$5:$A$1005,0),0)) ->  | F164: =IF(B164="","",INDEX(الادخال!$H$5:$H$1005,MATCH(B164,الادخال!$A$5:$A$1005,0),0)) ->  | G164: =IF(B164="","",INDEX(الادخال!$I$5:$I$1005,MATCH(B164,الادخال!$A$5:$A$1005,0),0)) ->  | I164: =IF(B164="","",INDEX(الادخال!$J$5:$J$1005,MATCH(B164,الادخال!$A$5:$A$1005,0),0)) ->  | J164: =IF(B164="","",INDEX(الادخال!$K$5:$K$1005,MATCH(B164,الادخال!$A$5:$A$1005,0),0)) ->  | K164: =K$5 -> 1
B165: =IF(ROW(A159)<=MAX(الادخال!$A:$A),ROW(A159),"") ->  | C165: =IF(B165="","",INDEX(الادخال!$C$5:$C$1005,MATCH(B165,الادخال!$A$5:$A$1005,0),0)) ->  | D165: =IF(B165="","",INDEX(الادخال!$F$5:$F$1005,MATCH(B165,الادخال!$A$5:$A$1005,0),0)) ->  | E165: =IF(B165="","",INDEX(الادخال!$G$5:G$1005,MATCH(B165,الادخال!$A$5:$A$1005,0),0)) ->  | F165: =IF(B165="","",INDEX(الادخال!$H$5:$H$1005,MATCH(B165,الادخال!$A$5:$A$1005,0),0)) ->  | G165: =IF(B165="","",INDEX(الادخال!$I$5:$I$1005,MATCH(B165,الادخال!$A$5:$A$1005,0),0)) ->  | I165: =IF(B165="","",INDEX(الادخال!$J$5:$J$1005,MATCH(B165,الادخال!$A$5:$A$1005,0),0)) ->  | J165: =IF(B165="","",INDEX(الادخال!$K$5:$K$1005,MATCH(B165,الادخال!$A$5:$A$1005,0),0)) ->  | K165: =K$6 -> 2
B166: =IF(ROW(A160)<=MAX(الادخال!$A:$A),ROW(A160),"") ->  | C166: =IF(B166="","",INDEX(الادخال!$C$5:$C$1005,MATCH(B166,الادخال!$A$5:$A$1005,0),0)) ->  | D166: =IF(B166="","",INDEX(الادخال!$F$5:$F$1005,MATCH(B166,الادخال!$A$5:$A$1005,0),0)) ->  | E166: =IF(B166="","",INDEX(الادخال!$G$5:G$1005,MATCH(B166,الادخال!$A$5:$A$1005,0),0)) ->  | F166: =IF(B166="","",INDEX(الادخال!$H$5:$H$1005,MATCH(B166,الادخال!$A$5:$A$1005,0),0)) ->  | G166: =IF(B166="","",INDEX(الادخال!$I$5:$I$1005,MATCH(B166,الادخال!$A$5:$A$1005,0),0)) ->  | I166: =IF(B166="","",INDEX(الادخال!$J$5:$J$1005,MATCH(B166,الادخال!$A$5:$A$1005,0),0)) ->  | J166: =IF(B166="","",INDEX(الادخال!$K$5:$K$1005,MATCH(B166,الادخال!$A$5:$A$1005,0),0)) ->  | K166: =K$5 -> 1
B167: =IF(ROW(A161)<=MAX(الادخال!$A:$A),ROW(A161),"") ->  | C167: =IF(B167="","",INDEX(الادخال!$C$5:$C$1005,MATCH(B167,الادخال!$A$5:$A$1005,0),0)) ->  | D167: =IF(B167="","",INDEX(الادخال!$F$5:$F$1005,MATCH(B167,الادخال!$A$5:$A$1005,0),0)) ->  | E167: =IF(B167="","",INDEX(الادخال!$G$5:G$1005,MATCH(B167,الادخال!$A$5:$A$1005,0),0)) ->  | F167: =IF(B167="","",INDEX(الادخال!$H$5:$H$1005,MATCH(B167,الادخال!$A$5:$A$1005,0),0)) ->  | G167: =IF(B167="","",INDEX(الادخال!$I$5:$I$1005,MATCH(B167,الادخال!$A$5:$A$1005,0),0)) ->  | I167: =IF(B167="","",INDEX(الادخال!$J$5:$J$1005,MATCH(B167,الادخال!$A$5:$A$1005,0),0)) ->  | J167: =IF(B167="","",INDEX(الادخال!$K$5:$K$1005,MATCH(B167,الادخال!$A$5:$A$1005,0),0)) ->  | K167: =K$6 -> 2
B168: =IF(ROW(A162)<=MAX(الادخال!$A:$A),ROW(A162),"") ->  | C168: =IF(B168="","",INDEX(الادخال!$C$5:$C$1005,MATCH(B168,الادخال!$A$5:$A$1005,0),0)) ->  | D168: =IF(B168="","",INDEX(الادخال!$F$5:$F$1005,MATCH(B168,الادخال!$A$5:$A$1005,0),0)) ->  | E168: =IF(B168="","",INDEX(الادخال!$G$5:G$1005,MATCH(B168,الادخال!$A$5:$A$1005,0),0)) ->  | F168: =IF(B168="","",INDEX(الادخال!$H$5:$H$1005,MATCH(B168,الادخال!$A$5:$A$1005,0),0)) ->  | G168: =IF(B168="","",INDEX(الادخال!$I$5:$I$1005,MATCH(B168,الادخال!$A$5:$A$1005,0),0)) ->  | I168: =IF(B168="","",INDEX(الادخال!$J$5:$J$1005,MATCH(B168,الادخال!$A$5:$A$1005,0),0)) ->  | J168: =IF(B168="","",INDEX(الادخال!$K$5:$K$1005,MATCH(B168,الادخال!$A$5:$A$1005,0),0)) ->  | K168: =K$5 -> 1
B169: =IF(ROW(A163)<=MAX(الادخال!$A:$A),ROW(A163),"") ->  | C169: =IF(B169="","",INDEX(الادخال!$C$5:$C$1005,MATCH(B169,الادخال!$A$5:$A$1005,0),0)) ->  | D169: =IF(B169="","",INDEX(الادخال!$F$5:$F$1005,MATCH(B169,الادخال!$A$5:$A$1005,0),0)) ->  | E169: =IF(B169="","",INDEX(الادخال!$G$5:G$1005,MATCH(B169,الادخال!$A$5:$A$1005,0),0)) ->  | F169: =IF(B169="","",INDEX(الادخال!$H$5:$H$1005,MATCH(B169,الادخال!$A$5:$A$1005,0),0)) ->  | G169: =IF(B169="","",INDEX(الادخال!$I$5:$I$1005,MATCH(B169,الادخال!$A$5:$A$1005,0),0)) ->  | I169: =IF(B169="","",INDEX(الادخال!$J$5:$J$1005,MATCH(B169,الادخال!$A$5:$A$1005,0),0)) ->  | J169: =IF(B169="","",INDEX(الادخال!$K$5:$K$1005,MATCH(B169,الادخال!$A$5:$A$1005,0),0)) ->  | K169: =K$6 -> 2
B170: =IF(ROW(A164)<=MAX(الادخال!$A:$A),ROW(A164),"") ->  | C170: =IF(B170="","",INDEX(الادخال!$C$5:$C$1005,MATCH(B170,الادخال!$A$5:$A$1005,0),0)) ->  | D170: =IF(B170="","",INDEX(الادخال!$F$5:$F$1005,MATCH(B170,الادخال!$A$5:$A$1005,0),0)) ->  | E170: =IF(B170="","",INDEX(الادخال!$G$5:G$1005,MATCH(B170,الادخال!$A$5:$A$1005,0),0)) ->  | F170: =IF(B170="","",INDEX(الادخال!$H$5:$H$1005,MATCH(B170,الادخال!$A$5:$A$1005,0),0)) ->  | G170: =IF(B170="","",INDEX(الادخال!$I$5:$I$1005,MATCH(B170,الادخال!$A$5:$A$1005,0),0)) ->  | I170: =IF(B170="","",INDEX(الادخال!$J$5:$J$1005,MATCH(B170,الادخال!$A$5:$A$1005,0),0)) ->  | J170: =IF(B170="","",INDEX(الادخال!$K$5:$K$1005,MATCH(B170,الادخال!$A$5:$A$1005,0),0)) ->  | K170: =K$5 -> 1
B171: =IF(ROW(A165)<=MAX(الادخال!$A:$A),ROW(A165),"") ->  | C171: =IF(B171="","",INDEX(الادخال!$C$5:$C$1005,MATCH(B171,الادخال!$A$5:$A$1005,0),0)) ->  | D171: =IF(B171="","",INDEX(الادخال!$F$5:$F$1005,MATCH(B171,الادخال!$A$5:$A$1005,0),0)) ->  | E171: =IF(B171="","",INDEX(الادخال!$G$5:G$1005,MATCH(B171,الادخال!$A$5:$A$1005,0),0)) ->  | F171: =IF(B171="","",INDEX(الادخال!$H$5:$H$1005,MATCH(B171,الادخال!$A$5:$A$1005,0),0)) ->  | G171: =IF(B171="","",INDEX(الادخال!$I$5:$I$1005,MATCH(B171,الادخال!$A$5:$A$1005,0),0)) ->  | I171: =IF(B171="","",INDEX(الادخال!$J$5:$J$1005,MATCH(B171,الادخال!$A$5:$A$1005,0),0)) ->  | J171: =IF(B171="","",INDEX(الادخال!$K$5:$K$1005,MATCH(B171,الادخال!$A$5:$A$1005,0),0)) ->  | K171: =K$6 -> 2
B172: =IF(ROW(A166)<=MAX(الادخال!$A:$A),ROW(A166),"") ->  | C172: =IF(B172="","",INDEX(الادخال!$C$5:$C$1005,MATCH(B172,الادخال!$A$5:$A$1005,0),0)) ->  | D172: =IF(B172="","",INDEX(الادخال!$F$5:$F$1005,MATCH(B172,الادخال!$A$5:$A$1005,0),0)) ->  | E172: =IF(B172="","",INDEX(الادخال!$G$5:G$1005,MATCH(B172,الادخال!$A$5:$A$1005,0),0)) ->  | F172: =IF(B172="","",INDEX(الادخال!$H$5:$H$1005,MATCH(B172,الادخال!$A$5:$A$1005,0),0)) ->  | G172: =IF(B172="","",INDEX(الادخال!$I$5:$I$1005,MATCH(B172,الادخال!$A$5:$A$1005,0),0)) ->  | I172: =IF(B172="","",INDEX(الادخال!$J$5:$J$1005,MATCH(B172,الادخال!$A$5:$A$1005,0),0)) ->  | J172: =IF(B172="","",INDEX(الادخال!$K$5:$K$1005,MATCH(B172,الادخال!$A$5:$A$1005,0),0)) ->  | K172: =K$5 -> 1
B173: =IF(ROW(A167)<=MAX(الادخال!$A:$A),ROW(A167),"") ->  | C173: =IF(B173="","",INDEX(الادخال!$C$5:$C$1005,MATCH(B173,الادخال!$A$5:$A$1005,0),0)) ->  | D173: =IF(B173="","",INDEX(الادخال!$F$5:$F$1005,MATCH(B173,الادخال!$A$5:$A$1005,0),0)) ->  | E173: =IF(B173="","",INDEX(الادخال!$G$5:G$1005,MATCH(B173,الادخال!$A$5:$A$1005,0),0)) ->  | F173: =IF(B173="","",INDEX(الادخال!$H$5:$H$1005,MATCH(B173,الادخال!$A$5:$A$1005,0),0)) ->  | G173: =IF(B173="","",INDEX(الادخال!$I$5:$I$1005,MATCH(B173,الادخال!$A$5:$A$1005,0),0)) ->  | I173: =IF(B173="","",INDEX(الادخال!$J$5:$J$1005,MATCH(B173,الادخال!$A$5:$A$1005,0),0)) ->  | J173: =IF(B173="","",INDEX(الادخال!$K$5:$K$1005,MATCH(B173,الادخال!$A$5:$A$1005,0),0)) ->  | K173: =K$6 -> 2
B174: =IF(ROW(A168)<=MAX(الادخال!$A:$A),ROW(A168),"") ->  | C174: =IF(B174="","",INDEX(الادخال!$C$5:$C$1005,MATCH(B174,الادخال!$A$5:$A$1005,0),0)) ->  | D174: =IF(B174="","",INDEX(الادخال!$F$5:$F$1005,MATCH(B174,الادخال!$A$5:$A$1005,0),0)) ->  | E174: =IF(B174="","",INDEX(الادخال!$G$5:G$1005,MATCH(B174,الادخال!$A$5:$A$1005,0),0)) ->  | F174: =IF(B174="","",INDEX(الادخال!$H$5:$H$1005,MATCH(B174,الادخال!$A$5:$A$1005,0),0)) ->  | G174: =IF(B174="","",INDEX(الادخال!$I$5:$I$1005,MATCH(B174,الادخال!$A$5:$A$1005,0),0)) ->  | I174: =IF(B174="","",INDEX(الادخال!$J$5:$J$1005,MATCH(B174,الادخال!$A$5:$A$1005,0),0)) ->  | J174: =IF(B174="","",INDEX(الادخال!$K$5:$K$1005,MATCH(B174,الادخال!$A$5:$A$1005,0),0)) ->  | K174: =K$5 -> 1
B175: =IF(ROW(A169)<=MAX(الادخال!$A:$A),ROW(A169),"") ->  | C175: =IF(B175="","",INDEX(الادخال!$C$5:$C$1005,MATCH(B175,الادخال!$A$5:$A$1005,0),0)) ->  | D175: =IF(B175="","",INDEX(الادخال!$F$5:$F$1005,MATCH(B175,الادخال!$A$5:$A$1005,0),0)) ->  | E175: =IF(B175="","",INDEX(الادخال!$G$5:G$1005,MATCH(B175,الادخال!$A$5:$A$1005,0),0)) ->  | F175: =IF(B175="","",INDEX(الادخال!$H$5:$H$1005,MATCH(B175,الادخال!$A$5:$A$1005,0),0)) ->  | G175: =IF(B175="","",INDEX(الادخال!$I$5:$I$1005,MATCH(B175,الادخال!$A$5:$A$1005,0),0)) ->  | I175: =IF(B175="","",INDEX(الادخال!$J$5:$J$1005,MATCH(B175,الادخال!$A$5:$A$1005,0),0)) ->  | J175: =IF(B175="","",INDEX(الادخال!$K$5:$K$1005,MATCH(B175,الادخال!$A$5:$A$1005,0),0)) ->  | K175: =K$6 -> 2
B176: =IF(ROW(A170)<=MAX(الادخال!$A:$A),ROW(A170),"") ->  | C176: =IF(B176="","",INDEX(الادخال!$C$5:$C$1005,MATCH(B176,الادخال!$A$5:$A$1005,0),0)) ->  | D176: =IF(B176="","",INDEX(الادخال!$F$5:$F$1005,MATCH(B176,الادخال!$A$5:$A$1005,0),0)) ->  | E176: =IF(B176="","",INDEX(الادخال!$G$5:G$1005,MATCH(B176,الادخال!$A$5:$A$1005,0),0)) ->  | F176: =IF(B176="","",INDEX(الادخال!$H$5:$H$1005,MATCH(B176,الادخال!$A$5:$A$1005,0),0)) ->  | G176: =IF(B176="","",INDEX(الادخال!$I$5:$I$1005,MATCH(B176,الادخال!$A$5:$A$1005,0),0)) ->  | I176: =IF(B176="","",INDEX(الادخال!$J$5:$J$1005,MATCH(B176,الادخال!$A$5:$A$1005,0),0)) ->  | J176: =IF(B176="","",INDEX(الادخال!$K$5:$K$1005,MATCH(B176,الادخال!$A$5:$A$1005,0),0)) ->  | K176: =K$5 -> 1
B177: =IF(ROW(A171)<=MAX(الادخال!$A:$A),ROW(A171),"") ->  | C177: =IF(B177="","",INDEX(الادخال!$C$5:$C$1005,MATCH(B177,الادخال!$A$5:$A$1005,0),0)) ->  | D177: =IF(B177="","",INDEX(الادخال!$F$5:$F$1005,MATCH(B177,الادخال!$A$5:$A$1005,0),0)) ->  | E177: =IF(B177="","",INDEX(الادخال!$G$5:G$1005,MATCH(B177,الادخال!$A$5:$A$1005,0),0)) ->  | F177: =IF(B177="","",INDEX(الادخال!$H$5:$H$1005,MATCH(B177,الادخال!$A$5:$A$1005,0),0)) ->  | G177: =IF(B177="","",INDEX(الادخال!$I$5:$I$1005,MATCH(B177,الادخال!$A$5:$A$1005,0),0)) ->  | I177: =IF(B177="","",INDEX(الادخال!$J$5:$J$1005,MATCH(B177,الادخال!$A$5:$A$1005,0),0)) ->  | J177: =IF(B177="","",INDEX(الادخال!$K$5:$K$1005,MATCH(B177,الادخال!$A$5:$A$1005,0),0)) ->  | K177: =K$6 -> 2
B178: =IF(ROW(A172)<=MAX(الادخال!$A:$A),ROW(A172),"") ->  | C178: =IF(B178="","",INDEX(الادخال!$C$5:$C$1005,MATCH(B178,الادخال!$A$5:$A$1005,0),0)) ->  | D178: =IF(B178="","",INDEX(الادخال!$F$5:$F$1005,MATCH(B178,الادخال!$A$5:$A$1005,0),0)) ->  | E178: =IF(B178="","",INDEX(الادخال!$G$5:G$1005,MATCH(B178,الادخال!$A$5:$A$1005,0),0)) ->  | F178: =IF(B178="","",INDEX(الادخال!$H$5:$H$1005,MATCH(B178,الادخال!$A$5:$A$1005,0),0)) ->  | G178: =IF(B178="","",INDEX(الادخال!$I$5:$I$1005,MATCH(B178,الادخال!$A$5:$A$1005,0),0)) ->  | I178: =IF(B178="","",INDEX(الادخال!$J$5:$J$1005,MATCH(B178,الادخال!$A$5:$A$1005,0),0)) ->  | J178: =IF(B178="","",INDEX(الادخال!$K$5:$K$1005,MATCH(B178,الادخال!$A$5:$A$1005,0),0)) ->  | K178: =K$5 -> 1
B179: =IF(ROW(A173)<=MAX(الادخال!$A:$A),ROW(A173),"") ->  | C179: =IF(B179="","",INDEX(الادخال!$C$5:$C$1005,MATCH(B179,الادخال!$A$5:$A$1005,0),0)) ->  | D179: =IF(B179="","",INDEX(الادخال!$F$5:$F$1005,MATCH(B179,الادخال!$A$5:$A$1005,0),0)) ->  | E179: =IF(B179="","",INDEX(الادخال!$G$5:G$1005,MATCH(B179,الادخال!$A$5:$A$1005,0),0)) ->  | F179: =IF(B179="","",INDEX(الادخال!$H$5:$H$1005,MATCH(B179,الادخال!$A$5:$A$1005,0),0)) ->  | G179: =IF(B179="","",INDEX(الادخال!$I$5:$I$1005,MATCH(B179,الادخال!$A$5:$A$1005,0),0)) ->  | I179: =IF(B179="","",INDEX(الادخال!$J$5:$J$1005,MATCH(B179,الادخال!$A$5:$A$1005,0),0)) ->  | J179: =IF(B179="","",INDEX(الادخال!$K$5:$K$1005,MATCH(B179,الادخال!$A$5:$A$1005,0),0)) ->  | K179: =K$6 -> 2
B180: =IF(ROW(A174)<=MAX(الادخال!$A:$A),ROW(A174),"") ->  | C180: =IF(B180="","",INDEX(الادخال!$C$5:$C$1005,MATCH(B180,الادخال!$A$5:$A$1005,0),0)) ->  | D180: =IF(B180="","",INDEX(الادخال!$F$5:$F$1005,MATCH(B180,الادخال!$A$5:$A$1005,0),0)) ->  | E180: =IF(B180="","",INDEX(الادخال!$G$5:G$1005,MATCH(B180,الادخال!$A$5:$A$1005,0),0)) ->  | F180: =IF(B180="","",INDEX(الادخال!$H$5:$H$1005,MATCH(B180,الادخال!$A$5:$A$1005,0),0)) ->  | G180: =IF(B180="","",INDEX(الادخال!$I$5:$I$1005,MATCH(B180,الادخال!$A$5:$A$1005,0),0)) ->  | I180: =IF(B180="","",INDEX(الادخال!$J$5:$J$1005,MATCH(B180,الادخال!$A$5:$A$1005,0),0)) ->  | J180: =IF(B180="","",INDEX(الادخال!$K$5:$K$1005,MATCH(B180,الادخال!$A$5:$A$1005,0),0)) ->  | K180: =K$5 -> 1
B181: =IF(ROW(A175)<=MAX(الادخال!$A:$A),ROW(A175),"") ->  | C181: =IF(B181="","",INDEX(الادخال!$C$5:$C$1005,MATCH(B181,الادخال!$A$5:$A$1005,0),0)) ->  | D181: =IF(B181="","",INDEX(الادخال!$F$5:$F$1005,MATCH(B181,الادخال!$A$5:$A$1005,0),0)) ->  | E181: =IF(B181="","",INDEX(الادخال!$G$5:G$1005,MATCH(B181,الادخال!$A$5:$A$1005,0),0)) ->  | F181: =IF(B181="","",INDEX(الادخال!$H$5:$H$1005,MATCH(B181,الادخال!$A$5:$A$1005,0),0)) ->  | G181: =IF(B181="","",INDEX(الادخال!$I$5:$I$1005,MATCH(B181,الادخال!$A$5:$A$1005,0),0)) ->  | I181: =IF(B181="","",INDEX(الادخال!$J$5:$J$1005,MATCH(B181,الادخال!$A$5:$A$1005,0),0)) ->  | J181: =IF(B181="","",INDEX(الادخال!$K$5:$K$1005,MATCH(B181,الادخال!$A$5:$A$1005,0),0)) ->  | K181: =K$6 -> 2
B182: =IF(ROW(A176)<=MAX(الادخال!$A:$A),ROW(A176),"") ->  | C182: =IF(B182="","",INDEX(الادخال!$C$5:$C$1005,MATCH(B182,الادخال!$A$5:$A$1005,0),0)) ->  | D182: =IF(B182="","",INDEX(الادخال!$F$5:$F$1005,MATCH(B182,الادخال!$A$5:$A$1005,0),0)) ->  | E182: =IF(B182="","",INDEX(الادخال!$G$5:G$1005,MATCH(B182,الادخال!$A$5:$A$1005,0),0)) ->  | F182: =IF(B182="","",INDEX(الادخال!$H$5:$H$1005,MATCH(B182,الادخال!$A$5:$A$1005,0),0)) ->  | G182: =IF(B182="","",INDEX(الادخال!$I$5:$I$1005,MATCH(B182,الادخال!$A$5:$A$1005,0),0)) ->  | I182: =IF(B182="","",INDEX(الادخال!$J$5:$J$1005,MATCH(B182,الادخال!$A$5:$A$1005,0),0)) ->  | J182: =IF(B182="","",INDEX(الادخال!$K$5:$K$1005,MATCH(B182,الادخال!$A$5:$A$1005,0),0)) ->  | K182: =K$5 -> 1
B183: =IF(ROW(A177)<=MAX(الادخال!$A:$A),ROW(A177),"") ->  | C183: =IF(B183="","",INDEX(الادخال!$C$5:$C$1005,MATCH(B183,الادخال!$A$5:$A$1005,0),0)) ->  | D183: =IF(B183="","",INDEX(الادخال!$F$5:$F$1005,MATCH(B183,الادخال!$A$5:$A$1005,0),0)) ->  | E183: =IF(B183="","",INDEX(الادخال!$G$5:G$1005,MATCH(B183,الادخال!$A$5:$A$1005,0),0)) ->  | F183: =IF(B183="","",INDEX(الادخال!$H$5:$H$1005,MATCH(B183,الادخال!$A$5:$A$1005,0),0)) ->  | G183: =IF(B183="","",INDEX(الادخال!$I$5:$I$1005,MATCH(B183,الادخال!$A$5:$A$1005,0),0)) ->  | I183: =IF(B183="","",INDEX(الادخال!$J$5:$J$1005,MATCH(B183,الادخال!$A$5:$A$1005,0),0)) ->  | J183: =IF(B183="","",INDEX(الادخال!$K$5:$K$1005,MATCH(B183,الادخال!$A$5:$A$1005,0),0)) ->  | K183: =K$6 -> 2
B184: =IF(ROW(A178)<=MAX(الادخال!$A:$A),ROW(A178),"") ->  | C184: =IF(B184="","",INDEX(الادخال!$C$5:$C$1005,MATCH(B184,الادخال!$A$5:$A$1005,0),0)) ->  | D184: =IF(B184="","",INDEX(الادخال!$F$5:$F$1005,MATCH(B184,الادخال!$A$5:$A$1005,0),0)) ->  | E184: =IF(B184="","",INDEX(الادخال!$G$5:G$1005,MATCH(B184,الادخال!$A$5:$A$1005,0),0)) ->  | F184: =IF(B184="","",INDEX(الادخال!$H$5:$H$1005,MATCH(B184,الادخال!$A$5:$A$1005,0),0)) ->  | G184: =IF(B184="","",INDEX(الادخال!$I$5:$I$1005,MATCH(B184,الادخال!$A$5:$A$1005,0),0)) ->  | I184: =IF(B184="","",INDEX(الادخال!$J$5:$J$1005,MATCH(B184,الادخال!$A$5:$A$1005,0),0)) ->  | J184: =IF(B184="","",INDEX(الادخال!$K$5:$K$1005,MATCH(B184,الادخال!$A$5:$A$1005,0),0)) ->  | K184: =K$5 -> 1
B185: =IF(ROW(A179)<=MAX(الادخال!$A:$A),ROW(A179),"") ->  | C185: =IF(B185="","",INDEX(الادخال!$C$5:$C$1005,MATCH(B185,الادخال!$A$5:$A$1005,0),0)) ->  | D185: =IF(B185="","",INDEX(الادخال!$F$5:$F$1005,MATCH(B185,الادخال!$A$5:$A$1005,0),0)) ->  | E185: =IF(B185="","",INDEX(الادخال!$G$5:G$1005,MATCH(B185,الادخال!$A$5:$A$1005,0),0)) ->  | F185: =IF(B185="","",INDEX(الادخال!$H$5:$H$1005,MATCH(B185,الادخال!$A$5:$A$1005,0),0)) ->  | G185: =IF(B185="","",INDEX(الادخال!$I$5:$I$1005,MATCH(B185,الادخال!$A$5:$A$1005,0),0)) ->  | I185: =IF(B185="","",INDEX(الادخال!$J$5:$J$1005,MATCH(B185,الادخال!$A$5:$A$1005,0),0)) ->  | J185: =IF(B185="","",INDEX(الادخال!$K$5:$K$1005,MATCH(B185,الادخال!$A$5:$A$1005,0),0)) ->  | K185: =K$6 -> 2
B186: =IF(ROW(A180)<=MAX(الادخال!$A:$A),ROW(A180),"") ->  | C186: =IF(B186="","",INDEX(الادخال!$C$5:$C$1005,MATCH(B186,الادخال!$A$5:$A$1005,0),0)) ->  | D186: =IF(B186="","",INDEX(الادخال!$F$5:$F$1005,MATCH(B186,الادخال!$A$5:$A$1005,0),0)) ->  | E186: =IF(B186="","",INDEX(الادخال!$G$5:G$1005,MATCH(B186,الادخال!$A$5:$A$1005,0),0)) ->  | F186: =IF(B186="","",INDEX(الادخال!$H$5:$H$1005,MATCH(B186,الادخال!$A$5:$A$1005,0),0)) ->  | G186: =IF(B186="","",INDEX(الادخال!$I$5:$I$1005,MATCH(B186,الادخال!$A$5:$A$1005,0),0)) ->  | I186: =IF(B186="","",INDEX(الادخال!$J$5:$J$1005,MATCH(B186,الادخال!$A$5:$A$1005,0),0)) ->  | J186: =IF(B186="","",INDEX(الادخال!$K$5:$K$1005,MATCH(B186,الادخال!$A$5:$A$1005,0),0)) ->  | K186: =K$5 -> 1
B187: =IF(ROW(A181)<=MAX(الادخال!$A:$A),ROW(A181),"") ->  | C187: =IF(B187="","",INDEX(الادخال!$C$5:$C$1005,MATCH(B187,الادخال!$A$5:$A$1005,0),0)) ->  | D187: =IF(B187="","",INDEX(الادخال!$F$5:$F$1005,MATCH(B187,الادخال!$A$5:$A$1005,0),0)) ->  | E187: =IF(B187="","",INDEX(الادخال!$G$5:G$1005,MATCH(B187,الادخال!$A$5:$A$1005,0),0)) ->  | F187: =IF(B187="","",INDEX(الادخال!$H$5:$H$1005,MATCH(B187,الادخال!$A$5:$A$1005,0),0)) ->  | G187: =IF(B187="","",INDEX(الادخال!$I$5:$I$1005,MATCH(B187,الادخال!$A$5:$A$1005,0),0)) ->  | I187: =IF(B187="","",INDEX(الادخال!$J$5:$J$1005,MATCH(B187,الادخال!$A$5:$A$1005,0),0)) ->  | J187: =IF(B187="","",INDEX(الادخال!$K$5:$K$1005,MATCH(B187,الادخال!$A$5:$A$1005,0),0)) ->  | K187: =K$6 -> 2
B188: =IF(ROW(A182)<=MAX(الادخال!$A:$A),ROW(A182),"") ->  | C188: =IF(B188="","",INDEX(الادخال!$C$5:$C$1005,MATCH(B188,الادخال!$A$5:$A$1005,0),0)) ->  | D188: =IF(B188="","",INDEX(الادخال!$F$5:$F$1005,MATCH(B188,الادخال!$A$5:$A$1005,0),0)) ->  | E188: =IF(B188="","",INDEX(الادخال!$G$5:G$1005,MATCH(B188,الادخال!$A$5:$A$1005,0),0)) ->  | F188: =IF(B188="","",INDEX(الادخال!$H$5:$H$1005,MATCH(B188,الادخال!$A$5:$A$1005,0),0)) ->  | G188: =IF(B188="","",INDEX(الادخال!$I$5:$I$1005,MATCH(B188,الادخال!$A$5:$A$1005,0),0)) ->  | I188: =IF(B188="","",INDEX(الادخال!$J$5:$J$1005,MATCH(B188,الادخال!$A$5:$A$1005,0),0)) ->  | J188: =IF(B188="","",INDEX(الادخال!$K$5:$K$1005,MATCH(B188,الادخال!$A$5:$A$1005,0),0)) ->  | K188: =K$5 -> 1
B189: =IF(ROW(A183)<=MAX(الادخال!$A:$A),ROW(A183),"") ->  | C189: =IF(B189="","",INDEX(الادخال!$C$5:$C$1005,MATCH(B189,الادخال!$A$5:$A$1005,0),0)) ->  | D189: =IF(B189="","",INDEX(الادخال!$F$5:$F$1005,MATCH(B189,الادخال!$A$5:$A$1005,0),0)) ->  | E189: =IF(B189="","",INDEX(الادخال!$G$5:G$1005,MATCH(B189,الادخال!$A$5:$A$1005,0),0)) ->  | F189: =IF(B189="","",INDEX(الادخال!$H$5:$H$1005,MATCH(B189,الادخال!$A$5:$A$1005,0),0)) ->  | G189: =IF(B189="","",INDEX(الادخال!$I$5:$I$1005,MATCH(B189,الادخال!$A$5:$A$1005,0),0)) ->  | I189: =IF(B189="","",INDEX(الادخال!$J$5:$J$1005,MATCH(B189,الادخال!$A$5:$A$1005,0),0)) ->  | J189: =IF(B189="","",INDEX(الادخال!$K$5:$K$1005,MATCH(B189,الادخال!$A$5:$A$1005,0),0)) ->  | K189: =K$6 -> 2
B190: =IF(ROW(A184)<=MAX(الادخال!$A:$A),ROW(A184),"") ->  | C190: =IF(B190="","",INDEX(الادخال!$C$5:$C$1005,MATCH(B190,الادخال!$A$5:$A$1005,0),0)) ->  | D190: =IF(B190="","",INDEX(الادخال!$F$5:$F$1005,MATCH(B190,الادخال!$A$5:$A$1005,0),0)) ->  | E190: =IF(B190="","",INDEX(الادخال!$G$5:G$1005,MATCH(B190,الادخال!$A$5:$A$1005,0),0)) ->  | F190: =IF(B190="","",INDEX(الادخال!$H$5:$H$1005,MATCH(B190,الادخال!$A$5:$A$1005,0),0)) ->  | G190: =IF(B190="","",INDEX(الادخال!$I$5:$I$1005,MATCH(B190,الادخال!$A$5:$A$1005,0),0)) ->  | I190: =IF(B190="","",INDEX(الادخال!$J$5:$J$1005,MATCH(B190,الادخال!$A$5:$A$1005,0),0)) ->  | J190: =IF(B190="","",INDEX(الادخال!$K$5:$K$1005,MATCH(B190,الادخال!$A$5:$A$1005,0),0)) ->  | K190: =K$5 -> 1
B191: =IF(ROW(A185)<=MAX(الادخال!$A:$A),ROW(A185),"") ->  | C191: =IF(B191="","",INDEX(الادخال!$C$5:$C$1005,MATCH(B191,الادخال!$A$5:$A$1005,0),0)) ->  | D191: =IF(B191="","",INDEX(الادخال!$F$5:$F$1005,MATCH(B191,الادخال!$A$5:$A$1005,0),0)) ->  | E191: =IF(B191="","",INDEX(الادخال!$G$5:G$1005,MATCH(B191,الادخال!$A$5:$A$1005,0),0)) ->  | F191: =IF(B191="","",INDEX(الادخال!$H$5:$H$1005,MATCH(B191,الادخال!$A$5:$A$1005,0),0)) ->  | G191: =IF(B191="","",INDEX(الادخال!$I$5:$I$1005,MATCH(B191,الادخال!$A$5:$A$1005,0),0)) ->  | I191: =IF(B191="","",INDEX(الادخال!$J$5:$J$1005,MATCH(B191,الادخال!$A$5:$A$1005,0),0)) ->  | J191: =IF(B191="","",INDEX(الادخال!$K$5:$K$1005,MATCH(B191,الادخال!$A$5:$A$1005,0),0)) ->  | K191: =K$6 -> 2
B192: =IF(ROW(A186)<=MAX(الادخال!$A:$A),ROW(A186),"") ->  | C192: =IF(B192="","",INDEX(الادخال!$C$5:$C$1005,MATCH(B192,الادخال!$A$5:$A$1005,0),0)) ->  | D192: =IF(B192="","",INDEX(الادخال!$F$5:$F$1005,MATCH(B192,الادخال!$A$5:$A$1005,0),0)) ->  | E192: =IF(B192="","",INDEX(الادخال!$G$5:G$1005,MATCH(B192,الادخال!$A$5:$A$1005,0),0)) ->  | F192: =IF(B192="","",INDEX(الادخال!$H$5:$H$1005,MATCH(B192,الادخال!$A$5:$A$1005,0),0)) ->  | G192: =IF(B192="","",INDEX(الادخال!$I$5:$I$1005,MATCH(B192,الادخال!$A$5:$A$1005,0),0)) ->  | I192: =IF(B192="","",INDEX(الادخال!$J$5:$J$1005,MATCH(B192,الادخال!$A$5:$A$1005,0),0)) ->  | J192: =IF(B192="","",INDEX(الادخال!$K$5:$K$1005,MATCH(B192,الادخال!$A$5:$A$1005,0),0)) ->  | K192: =K$5 -> 1
B193: =IF(ROW(A187)<=MAX(الادخال!$A:$A),ROW(A187),"") ->  | C193: =IF(B193="","",INDEX(الادخال!$C$5:$C$1005,MATCH(B193,الادخال!$A$5:$A$1005,0),0)) ->  | D193: =IF(B193="","",INDEX(الادخال!$F$5:$F$1005,MATCH(B193,الادخال!$A$5:$A$1005,0),0)) ->  | E193: =IF(B193="","",INDEX(الادخال!$G$5:G$1005,MATCH(B193,الادخال!$A$5:$A$1005,0),0)) ->  | F193: =IF(B193="","",INDEX(الادخال!$H$5:$H$1005,MATCH(B193,الادخال!$A$5:$A$1005,0),0)) ->  | G193: =IF(B193="","",INDEX(الادخال!$I$5:$I$1005,MATCH(B193,الادخال!$A$5:$A$1005,0),0)) ->  | I193: =IF(B193="","",INDEX(الادخال!$J$5:$J$1005,MATCH(B193,الادخال!$A$5:$A$1005,0),0)) ->  | J193: =IF(B193="","",INDEX(الادخال!$K$5:$K$1005,MATCH(B193,الادخال!$A$5:$A$1005,0),0)) ->  | K193: =K$6 -> 2
B194: =IF(ROW(A188)<=MAX(الادخال!$A:$A),ROW(A188),"") ->  | C194: =IF(B194="","",INDEX(الادخال!$C$5:$C$1005,MATCH(B194,الادخال!$A$5:$A$1005,0),0)) ->  | D194: =IF(B194="","",INDEX(الادخال!$F$5:$F$1005,MATCH(B194,الادخال!$A$5:$A$1005,0),0)) ->  | E194: =IF(B194="","",INDEX(الادخال!$G$5:G$1005,MATCH(B194,الادخال!$A$5:$A$1005,0),0)) ->  | F194: =IF(B194="","",INDEX(الادخال!$H$5:$H$1005,MATCH(B194,الادخال!$A$5:$A$1005,0),0)) ->  | G194: =IF(B194="","",INDEX(الادخال!$I$5:$I$1005,MATCH(B194,الادخال!$A$5:$A$1005,0),0)) ->  | I194: =IF(B194="","",INDEX(الادخال!$J$5:$J$1005,MATCH(B194,الادخال!$A$5:$A$1005,0),0)) ->  | J194: =IF(B194="","",INDEX(الادخال!$K$5:$K$1005,MATCH(B194,الادخال!$A$5:$A$1005,0),0)) ->  | K194: =K$5 -> 1
B195: =IF(ROW(A189)<=MAX(الادخال!$A:$A),ROW(A189),"") ->  | C195: =IF(B195="","",INDEX(الادخال!$C$5:$C$1005,MATCH(B195,الادخال!$A$5:$A$1005,0),0)) ->  | D195: =IF(B195="","",INDEX(الادخال!$F$5:$F$1005,MATCH(B195,الادخال!$A$5:$A$1005,0),0)) ->  | E195: =IF(B195="","",INDEX(الادخال!$G$5:G$1005,MATCH(B195,الادخال!$A$5:$A$1005,0),0)) ->  | F195: =IF(B195="","",INDEX(الادخال!$H$5:$H$1005,MATCH(B195,الادخال!$A$5:$A$1005,0),0)) ->  | G195: =IF(B195="","",INDEX(الادخال!$I$5:$I$1005,MATCH(B195,الادخال!$A$5:$A$1005,0),0)) ->  | I195: =IF(B195="","",INDEX(الادخال!$J$5:$J$1005,MATCH(B195,الادخال!$A$5:$A$1005,0),0)) ->  | J195: =IF(B195="","",INDEX(الادخال!$K$5:$K$1005,MATCH(B195,الادخال!$A$5:$A$1005,0),0)) ->  | K195: =K$6 -> 2
B196: =IF(ROW(A190)<=MAX(الادخال!$A:$A),ROW(A190),"") ->  | C196: =IF(B196="","",INDEX(الادخال!$C$5:$C$1005,MATCH(B196,الادخال!$A$5:$A$1005,0),0)) ->  | D196: =IF(B196="","",INDEX(الادخال!$F$5:$F$1005,MATCH(B196,الادخال!$A$5:$A$1005,0),0)) ->  | E196: =IF(B196="","",INDEX(الادخال!$G$5:G$1005,MATCH(B196,الادخال!$A$5:$A$1005,0),0)) ->  | F196: =IF(B196="","",INDEX(الادخال!$H$5:$H$1005,MATCH(B196,الادخال!$A$5:$A$1005,0),0)) ->  | G196: =IF(B196="","",INDEX(الادخال!$I$5:$I$1005,MATCH(B196,الادخال!$A$5:$A$1005,0),0)) ->  | I196: =IF(B196="","",INDEX(الادخال!$J$5:$J$1005,MATCH(B196,الادخال!$A$5:$A$1005,0),0)) ->  | J196: =IF(B196="","",INDEX(الادخال!$K$5:$K$1005,MATCH(B196,الادخال!$A$5:$A$1005,0),0)) ->  | K196: =K$5 -> 1
B197: =IF(ROW(A191)<=MAX(الادخال!$A:$A),ROW(A191),"") ->  | C197: =IF(B197="","",INDEX(الادخال!$C$5:$C$1005,MATCH(B197,الادخال!$A$5:$A$1005,0),0)) ->  | D197: =IF(B197="","",INDEX(الادخال!$F$5:$F$1005,MATCH(B197,الادخال!$A$5:$A$1005,0),0)) ->  | E197: =IF(B197="","",INDEX(الادخال!$G$5:G$1005,MATCH(B197,الادخال!$A$5:$A$1005,0),0)) ->  | F197: =IF(B197="","",INDEX(الادخال!$H$5:$H$1005,MATCH(B197,الادخال!$A$5:$A$1005,0),0)) ->  | G197: =IF(B197="","",INDEX(الادخال!$I$5:$I$1005,MATCH(B197,الادخال!$A$5:$A$1005,0),0)) ->  | I197: =IF(B197="","",INDEX(الادخال!$J$5:$J$1005,MATCH(B197,الادخال!$A$5:$A$1005,0),0)) ->  | J197: =IF(B197="","",INDEX(الادخال!$K$5:$K$1005,MATCH(B197,الادخال!$A$5:$A$1005,0),0)) ->  | K197: =K$6 -> 2
B198: =IF(ROW(A192)<=MAX(الادخال!$A:$A),ROW(A192),"") ->  | C198: =IF(B198="","",INDEX(الادخال!$C$5:$C$1005,MATCH(B198,الادخال!$A$5:$A$1005,0),0)) ->  | D198: =IF(B198="","",INDEX(الادخال!$F$5:$F$1005,MATCH(B198,الادخال!$A$5:$A$1005,0),0)) ->  | E198: =IF(B198="","",INDEX(الادخال!$G$5:G$1005,MATCH(B198,الادخال!$A$5:$A$1005,0),0)) ->  | F198: =IF(B198="","",INDEX(الادخال!$H$5:$H$1005,MATCH(B198,الادخال!$A$5:$A$1005,0),0)) ->  | G198: =IF(B198="","",INDEX(الادخال!$I$5:$I$1005,MATCH(B198,الادخال!$A$5:$A$1005,0),0)) ->  | I198: =IF(B198="","",INDEX(الادخال!$J$5:$J$1005,MATCH(B198,الادخال!$A$5:$A$1005,0),0)) ->  | J198: =IF(B198="","",INDEX(الادخال!$K$5:$K$1005,MATCH(B198,الادخال!$A$5:$A$1005,0),0)) ->  | K198: =K$5 -> 1
B199: =IF(ROW(A193)<=MAX(الادخال!$A:$A),ROW(A193),"") ->  | C199: =IF(B199="","",INDEX(الادخال!$C$5:$C$1005,MATCH(B199,الادخال!$A$5:$A$1005,0),0)) ->  | D199: =IF(B199="","",INDEX(الادخال!$F$5:$F$1005,MATCH(B199,الادخال!$A$5:$A$1005,0),0)) ->  | E199: =IF(B199="","",INDEX(الادخال!$G$5:G$1005,MATCH(B199,الادخال!$A$5:$A$1005,0),0)) ->  | F199: =IF(B199="","",INDEX(الادخال!$H$5:$H$1005,MATCH(B199,الادخال!$A$5:$A$1005,0),0)) ->  | G199: =IF(B199="","",INDEX(الادخال!$I$5:$I$1005,MATCH(B199,الادخال!$A$5:$A$1005,0),0)) ->  | I199: =IF(B199="","",INDEX(الادخال!$J$5:$J$1005,MATCH(B199,الادخال!$A$5:$A$1005,0),0)) ->  | J199: =IF(B199="","",INDEX(الادخال!$K$5:$K$1005,MATCH(B199,الادخال!$A$5:$A$1005,0),0)) ->  | K199: =K$6 -> 2
B200: =IF(ROW(A194)<=MAX(الادخال!$A:$A),ROW(A194),"") ->  | C200: =IF(B200="","",INDEX(الادخال!$C$5:$C$1005,MATCH(B200,الادخال!$A$5:$A$1005,0),0)) ->  | D200: =IF(B200="","",INDEX(الادخال!$F$5:$F$1005,MATCH(B200,الادخال!$A$5:$A$1005,0),0)) ->  | E200: =IF(B200="","",INDEX(الادخال!$G$5:G$1005,MATCH(B200,الادخال!$A$5:$A$1005,0),0)) ->  | F200: =IF(B200="","",INDEX(الادخال!$H$5:$H$1005,MATCH(B200,الادخال!$A$5:$A$1005,0),0)) ->  | G200: =IF(B200="","",INDEX(الادخال!$I$5:$I$1005,MATCH(B200,الادخال!$A$5:$A$1005,0),0)) ->  | H200: =IFERROR((H199+E200)-(F200+G200),"") ->  | I200: =IF(B200="","",INDEX(الادخال!$J$5:$J$1005,MATCH(B200,الادخال!$A$5:$A$1005,0),0)) ->  | J200: =IF(B200="","",INDEX(الادخال!$K$5:$K$1005,MATCH(B200,الادخال!$A$5:$A$1005,0),0)) ->  | K200: =K$5 -> 1
B201: =IF(ROW(A195)<=MAX(الادخال!$A:$A),ROW(A195),"") ->  | C201: =IF(B201="","",INDEX(الادخال!$C$5:$C$1005,MATCH(B201,الادخال!$A$5:$A$1005,0),0)) ->  | D201: =IF(B201="","",INDEX(الادخال!$F$5:$F$1005,MATCH(B201,الادخال!$A$5:$A$1005,0),0)) ->  | E201: =IF(B201="","",INDEX(الادخال!$G$5:G$1005,MATCH(B201,الادخال!$A$5:$A$1005,0),0)) ->  | F201: =IF(B201="","",INDEX(الادخال!$H$5:$H$1005,MATCH(B201,الادخال!$A$5:$A$1005,0),0)) ->  | G201: =IF(B201="","",INDEX(الادخال!$I$5:$I$1005,MATCH(B201,الادخال!$A$5:$A$1005,0),0)) ->  | I201: =IF(B201="","",INDEX(الادخال!$J$5:$J$1005,MATCH(B201,الادخال!$A$5:$A$1005,0),0)) ->  | J201: =IF(B201="","",INDEX(الادخال!$K$5:$K$1005,MATCH(B201,الادخال!$A$5:$A$1005,0),0)) ->  | K201: =K$6 -> 2
... 171 more rows
